Organisation Code,Organisation Label,Effective Date,Organisational Unit,Service Division Label,Category Internal Name,Purpose,Detailed Expenditure Code,Payment Date,Transaction Number,Irrecoverable VAT Amount,Amount,Capital Or Revenue,Benificiary Name,Procurement Card
Http://opendatacommunities.org/id/metropolitan-district-council/leeds,Leeds City Council,30/04/2017,Environment & Housing,Leeds Building Services,Supplies and Services,Operational Materials,205,13/04/2017,1704-00001,0.00,150.00,R,A & A Electrical Distributors Ltd,No
Http://opendatacommunities.org/id/metropolitan-district-council/leeds,Leeds City Council,30/04/2017,Environment & Housing,Environmental Health,Supplies And Services,Construction,3,20/04/2017,1704-00002,0.00,7975.40,C,A & P Crontractors Ltd,No
Http://opendatacommunities.org/id/metropolitan-district-council/leeds,Leeds City Council,30/04/2017,Environment & Housing,Environmental Health,Supplies And Services,Construction,3,20/04/2017,1704-00003,0.00,7975.40,C,A & P Crontractors Ltd,No
Http://opendatacommunities.org/id/metropolitan-district-council/leeds,Leeds City Council,30/04/2017,Environment & Housing,Leeds Building Services,Supplies and Services,Operational Materials,205,04/04/2017,1704-00004,0.00,546.62,R,A Andrews & Sons (Marbles & Tiles),No
Http://opendatacommunities.org/id/metropolitan-district-council/leeds,Leeds City Council,30/04/2017,Environment & Housing,Leeds Building Services,Supplies and Services,Operational Materials,205,25/04/2017,1704-00005,0.00,29.95,R,A Andrews & Sons (Marbles & Tiles),No
Http://opendatacommunities.org/id/metropolitan-district-council/leeds,Leeds City Council,30/04/2017,City Development,Libraries  Arts & Heritage,Supplies and Services,Resaleable Materials,204,21/04/2017,1704-00006,0.00,360.49,R,A C Entertainment Technologies Ltd,No
Http://opendatacommunities.org/id/metropolitan-district-council/leeds,Leeds City Council,30/04/2017,City Development,Libraries  Arts & Heritage,Supplies and Services,Operational Materials,205,21/04/2017,1704-00007,0.00,71.32,R,A C Entertainment Technologies Ltd,No
Http://opendatacommunities.org/id/metropolitan-district-council/leeds,Leeds City Council,30/04/2017,City Development,Libraries  Arts & Heritage,Supplies and Services,Operational Materials,205,26/04/2017,1704-00008,0.00,297.50,R,A C Entertainment Technologies Ltd,No
Http://opendatacommunities.org/id/metropolitan-district-council/leeds,Leeds City Council,30/04/2017,Childrens Services,Learning Skills & Universal,Third Party Payments,Services Rendered By Other Organisations,511,28/04/2017,1704-00009,0.00,655.20,R,REDACTED PERSONAL DATA,No
Http://opendatacommunities.org/id/metropolitan-district-council/leeds,Leeds City Council,30/04/2017,Childrens Services,Learning Skills & Universal,Third Party Payments,Services Rendered By Other Organisations,511,28/04/2017,1704-00010,0.00,832.18,R,A Clarkson,No
Http://opendatacommunities.org/id/metropolitan-district-council/leeds,Leeds City Council,30/04/2017,Childrens Services,Learning Skills & Universal,Third Party Payments,Services Rendered By Other Organisations,511,28/04/2017,1704-00011,0.00,655.20,R,A Clarkson,No
Http://opendatacommunities.org/id/metropolitan-district-council/leeds,Leeds City Council,30/04/2017,Environment & Housing,Parks and Countryside,Supplies and Services,Bought In Professional Services,277,13/04/2017,1704-00012,0.00,1261.03,R,REDACTED COMMERCIAL CONFIDENTIALITY,No
Http://opendatacommunities.org/id/metropolitan-district-council/leeds,Leeds City Council,30/04/2017,Childrens Services,Learning Skills & Universal,Third Party Payments,Services Rendered By Voluntary Sector,505,21/04/2017,1704-00013,0.00,5514.60,R,A E Speight,No
Http://opendatacommunities.org/id/metropolitan-district-council/leeds,Leeds City Council,30/04/2017,Childrens Services,Learning Skills & Universal,Third Party Payments,Services Rendered By Voluntary Sector,505,28/04/2017,1704-00014,0.00,11793.60,R,A E Speight,No
Http://opendatacommunities.org/id/metropolitan-district-council/leeds,Leeds City Council,30/04/2017,Childrens Services,Learning Skills & Universal,Third Party Payments,Services Rendered By Other Organisations,511,28/04/2017,1704-00015,0.00,655.20,R,A Foley,No
Http://opendatacommunities.org/id/metropolitan-district-council/leeds,Leeds City Council,30/04/2017,Childrens Services,Learning Skills & Universal,Third Party Payments,Services Rendered By Other Organisations,511,21/04/2017,1704-00016,0.00,787.80,R,A Green,No
Http://opendatacommunities.org/id/metropolitan-district-council/leeds,Leeds City Council,30/04/2017,Childrens Services,Learning Skills & Universal,Third Party Payments,Services Rendered By Other Organisations,511,28/04/2017,1704-00017,0.00,655.20,R,A Green,No
Http://opendatacommunities.org/id/metropolitan-district-council/leeds,Leeds City Council,30/04/2017,Childrens Services,Learning Skills & Universal,Third Party Payments,Services Rendered By Other Organisations,511,28/04/2017,1704-00018,0.00,1092.00,R,A Hodgson,No
Http://opendatacommunities.org/id/metropolitan-district-council/leeds,Leeds City Council,30/04/2017,Environment & Housing,Leeds Building Services,Supplies and Services,Operational Materials,205,04/04/2017,1704-00019,0.00,35.94,R,A J H  Pump Supply & Repair Ltd,No
Http://opendatacommunities.org/id/metropolitan-district-council/leeds,Leeds City Council,30/04/2017,Environment & Housing,Leeds Building Services,Supplies and Services,Operational Materials,205,04/04/2017,1704-00020,0.00,230.00,R,A J H  Pump Supply & Repair Ltd,No
Http://opendatacommunities.org/id/metropolitan-district-council/leeds,Leeds City Council,30/04/2017,Environment & Housing,Leeds Building Services,Supplies and Services,Operational Materials,205,07/04/2017,1704-00021,0.00,117.27,R,A J H  Pump Supply & Repair Ltd,No
Http://opendatacommunities.org/id/metropolitan-district-council/leeds,Leeds City Council,30/04/2017,Environment & Housing,Leeds Building Services,Supplies and Services,Operational Materials,205,07/04/2017,1704-00022,0.00,434.00,R,A J H  Pump Supply & Repair Ltd,No
Http://opendatacommunities.org/id/metropolitan-district-council/leeds,Leeds City Council,30/04/2017,Environment & Housing,Leeds Building Services,Supplies and Services,Operational Materials,205,20/04/2017,1704-00023,0.00,127.00,R,A J H  Pump Supply & Repair Ltd,No
Http://opendatacommunities.org/id/metropolitan-district-council/leeds,Leeds City Council,30/04/2017,Environment & Housing,Leeds Building Services,Supplies and Services,Operational Materials,205,28/04/2017,1704-00024,0.00,130.00,R,A J H  Pump Supply & Repair Ltd,No
Http://opendatacommunities.org/id/metropolitan-district-council/leeds,Leeds City Council,30/04/2017,Environment & Housing,Leeds Building Services,Supplies and Services,Operational Materials,205,28/04/2017,1704-00025,0.00,101.00,R,A J H  Pump Supply & Repair Ltd,No
Http://opendatacommunities.org/id/metropolitan-district-council/leeds,Leeds City Council,30/04/2017,Environment & Housing,Leeds Building Services,Supplies and Services,Operational Materials,205,28/04/2017,1704-00026,0.00,163.00,R,A J H  Pump Supply & Repair Ltd,No
Http://opendatacommunities.org/id/metropolitan-district-council/leeds,Leeds City Council,30/04/2017,Environment & Housing,Leeds Building Services,Supplies and Services,Operational Materials,205,28/04/2017,1704-00027,0.00,181.43,R,A J H  Pump Supply & Repair Ltd,No
Http://opendatacommunities.org/id/metropolitan-district-council/leeds,Leeds City Council,30/04/2017,Environment & Housing,Leeds Building Services,Supplies and Services,Operational Materials,205,28/04/2017,1704-00028,0.00,16.20,R,A J H  Pump Supply & Repair Ltd,No
Http://opendatacommunities.org/id/metropolitan-district-council/leeds,Leeds City Council,30/04/2017,Environment & Housing,Leeds Building Services,Supplies and Services,Operational Materials,205,28/04/2017,1704-00029,0.00,105.00,R,A J H  Pump Supply & Repair Ltd,No
Http://opendatacommunities.org/id/metropolitan-district-council/leeds,Leeds City Council,30/04/2017,Environment & Housing,Leeds Building Services,Supplies and Services,Operational Materials,205,28/04/2017,1704-00030,0.00,28.40,R,A J H  Pump Supply & Repair Ltd,No
Http://opendatacommunities.org/id/metropolitan-district-council/leeds,Leeds City Council,30/04/2017,Environment & Housing,Leeds Building Services,Supplies and Services,Operational Materials,205,28/04/2017,1704-00031,0.00,111.00,R,A J H  Pump Supply & Repair Ltd,No
Http://opendatacommunities.org/id/metropolitan-district-council/leeds,Leeds City Council,30/04/2017,Environment & Housing,Leeds Building Services,Supplies and Services,Operational Materials,205,28/04/2017,1704-00032,0.00,8.50,R,A J H  Pump Supply & Repair Ltd,No
Http://opendatacommunities.org/id/metropolitan-district-council/leeds,Leeds City Council,30/04/2017,Environment & Housing,Leeds Building Services,Supplies and Services,Operational Materials,205,28/04/2017,1704-00033,0.00,64.00,R,A J H  Pump Supply & Repair Ltd,No
Http://opendatacommunities.org/id/metropolitan-district-council/leeds,Leeds City Council,30/04/2017,Environment & Housing,Leeds Building Services,Supplies and Services,Operational Materials,205,28/04/2017,1704-00034,0.00,134.27,R,A J H  Pump Supply & Repair Ltd,No
Http://opendatacommunities.org/id/metropolitan-district-council/leeds,Leeds City Council,30/04/2017,Environment & Housing,Leeds Building Services,Supplies and Services,Operational Materials,205,28/04/2017,1704-00035,0.00,445.00,R,A J H  Pump Supply & Repair Ltd,No
Http://opendatacommunities.org/id/metropolitan-district-council/leeds,Leeds City Council,30/04/2017,Environment & Housing,Leeds Building Services,Supplies and Services,Operational Materials,205,28/04/2017,1704-00036,0.00,12.50,R,A J H  Pump Supply & Repair Ltd,No
Http://opendatacommunities.org/id/metropolitan-district-council/leeds,Leeds City Council,30/04/2017,Environment & Housing,Leeds Building Services,Supplies and Services,Operational Materials,205,28/04/2017,1704-00037,0.00,210.00,R,A J H  Pump Supply & Repair Ltd,No
Http://opendatacommunities.org/id/metropolitan-district-council/leeds,Leeds City Council,30/04/2017,Environment & Housing,Leeds Building Services,Supplies and Services,Operational Materials,205,28/04/2017,1704-00038,0.00,488.00,R,A J H  Pump Supply & Repair Ltd,No
Http://opendatacommunities.org/id/metropolitan-district-council/leeds,Leeds City Council,30/04/2017,Environment & Housing,Leeds Building Services,Supplies and Services,Operational Materials,205,28/04/2017,1704-00039,0.00,151.90,R,A J H  Pump Supply & Repair Ltd,No
Http://opendatacommunities.org/id/metropolitan-district-council/leeds,Leeds City Council,30/04/2017,Environment & Housing,Leeds Building Services,Supplies and Services,Operational Materials,205,28/04/2017,1704-00040,0.00,3250.00,R,A J H  Pump Supply & Repair Ltd,No
Http://opendatacommunities.org/id/metropolitan-district-council/leeds,Leeds City Council,30/04/2017,Environment & Housing,Leeds Building Services,Supplies and Services,Operational Materials,205,28/04/2017,1704-00041,0.00,27.72,R,A J H  Pump Supply & Repair Ltd,No
Http://opendatacommunities.org/id/metropolitan-district-council/leeds,Leeds City Council,30/04/2017,Environment & Housing,Leeds Building Services,Supplies and Services,Operational Furniture And Equipment,203,28/04/2017,1704-00042,0.00,40.00,R,A J H  Pump Supply & Repair Ltd,No
Http://opendatacommunities.org/id/metropolitan-district-council/leeds,Leeds City Council,30/04/2017,Environment & Housing,Leeds Building Services,Supplies and Services,Operational Materials,205,28/04/2017,1704-00043,0.00,123.69,R,A J H  Pump Supply & Repair Ltd,No
Http://opendatacommunities.org/id/metropolitan-district-council/leeds,Leeds City Council,30/04/2017,Environment & Housing,Leeds Building Services,Supplies and Services,Operational Materials,205,28/04/2017,1704-00044,0.00,57.78,R,A J H  Pump Supply & Repair Ltd,No
Http://opendatacommunities.org/id/metropolitan-district-council/leeds,Leeds City Council,30/04/2017,Environment & Housing,Leeds Building Services,Supplies and Services,Operational Materials,205,28/04/2017,1704-00045,0.00,50.65,R,A J H  Pump Supply & Repair Ltd,No
Http://opendatacommunities.org/id/metropolitan-district-council/leeds,Leeds City Council,30/04/2017,Environment & Housing,Leeds Building Services,Supplies and Services,Operational Materials,205,28/04/2017,1704-00046,0.00,213.14,R,A J H  Pump Supply & Repair Ltd,No
Http://opendatacommunities.org/id/metropolitan-district-council/leeds,Leeds City Council,30/04/2017,Environment & Housing,Leeds Building Services,Supplies and Services,Operational Materials,205,28/04/2017,1704-00047,0.00,35.40,R,A J H  Pump Supply & Repair Ltd,No
Http://opendatacommunities.org/id/metropolitan-district-council/leeds,Leeds City Council,30/04/2017,Environment & Housing,Leeds Building Services,Supplies and Services,Operational Materials,205,28/04/2017,1704-00048,0.00,67.35,R,A J H  Pump Supply & Repair Ltd,No
Http://opendatacommunities.org/id/metropolitan-district-council/leeds,Leeds City Council,30/04/2017,Environment & Housing,Leeds Building Services,Supplies and Services,Operational Materials,205,28/04/2017,1704-00049,0.00,191.00,R,A J H  Pump Supply & Repair Ltd,No
Http://opendatacommunities.org/id/metropolitan-district-council/leeds,Leeds City Council,30/04/2017,Environment & Housing,Leeds Building Services,Supplies and Services,Operational Materials,205,28/04/2017,1704-00050,0.00,46.00,R,A J H  Pump Supply & Repair Ltd,No
Http://opendatacommunities.org/id/metropolitan-district-council/leeds,Leeds City Council,30/04/2017,Environment & Housing,Leeds Building Services,Supplies and Services,Operational Materials,205,28/04/2017,1704-00051,0.00,217.63,R,A J H  Pump Supply & Repair Ltd,No
Http://opendatacommunities.org/id/metropolitan-district-council/leeds,Leeds City Council,30/04/2017,Environment & Housing,Leeds Building Services,Supplies and Services,Operational Materials,205,28/04/2017,1704-00052,0.00,25.66,R,A J H  Pump Supply & Repair Ltd,No
Http://opendatacommunities.org/id/metropolitan-district-council/leeds,Leeds City Council,30/04/2017,Environment & Housing,Leeds Building Services,Supplies and Services,Operational Materials,205,28/04/2017,1704-00053,0.00,42.90,R,A J H  Pump Supply & Repair Ltd,No
Http://opendatacommunities.org/id/metropolitan-district-council/leeds,Leeds City Council,30/04/2017,Environment & Housing,Leeds Building Services,Supplies and Services,Operational Materials,205,28/04/2017,1704-00054,0.00,134.50,R,A J H  Pump Supply & Repair Ltd,No
Http://opendatacommunities.org/id/metropolitan-district-council/leeds,Leeds City Council,30/04/2017,Environment & Housing,Leeds Building Services,Supplies and Services,Operational Materials,205,28/04/2017,1704-00055,0.00,134.12,R,A J H  Pump Supply & Repair Ltd,No
Http://opendatacommunities.org/id/metropolitan-district-council/leeds,Leeds City Council,30/04/2017,Environment & Housing,Leeds Building Services,Supplies and Services,Operational Materials,205,28/04/2017,1704-00056,0.00,35.95,R,A J H  Pump Supply & Repair Ltd,No
Http://opendatacommunities.org/id/metropolitan-district-council/leeds,Leeds City Council,30/04/2017,Environment & Housing,Leeds Building Services,Supplies and Services,Operational Materials,205,28/04/2017,1704-00057,0.00,66.10,R,A J H  Pump Supply & Repair Ltd,No
Http://opendatacommunities.org/id/metropolitan-district-council/leeds,Leeds City Council,30/04/2017,Environment & Housing,Leeds Building Services,Supplies and Services,Operational Materials,205,28/04/2017,1704-00058,0.00,36.85,R,A J H  Pump Supply & Repair Ltd,No
Http://opendatacommunities.org/id/metropolitan-district-council/leeds,Leeds City Council,30/04/2017,Environment & Housing,Leeds Building Services,Supplies and Services,Operational Materials,205,28/04/2017,1704-00059,0.00,66.19,R,A J H  Pump Supply & Repair Ltd,No
Http://opendatacommunities.org/id/metropolitan-district-council/leeds,Leeds City Council,30/04/2017,Environment & Housing,Leeds Building Services,Supplies and Services,Operational Materials,205,28/04/2017,1704-00060,0.00,27.95,R,A J H  Pump Supply & Repair Ltd,No
Http://opendatacommunities.org/id/metropolitan-district-council/leeds,Leeds City Council,30/04/2017,Environment & Housing,Leeds Building Services,Supplies and Services,Operational Materials,205,28/04/2017,1704-00061,0.00,25.00,R,A J H  Pump Supply & Repair Ltd,No
Http://opendatacommunities.org/id/metropolitan-district-council/leeds,Leeds City Council,30/04/2017,Environment & Housing,Leeds Building Services,Supplies and Services,Operational Materials,205,28/04/2017,1704-00062,0.00,15.49,R,A J H  Pump Supply & Repair Ltd,No
Http://opendatacommunities.org/id/metropolitan-district-council/leeds,Leeds City Council,30/04/2017,Environment & Housing,Leeds Building Services,Supplies and Services,Operational Materials,205,28/04/2017,1704-00063,0.00,321.94,R,A J H  Pump Supply & Repair Ltd,No
Http://opendatacommunities.org/id/metropolitan-district-council/leeds,Leeds City Council,30/04/2017,Environment & Housing,Leeds Building Services,Supplies and Services,Operational Materials,205,28/04/2017,1704-00064,0.00,171.98,R,A J H  Pump Supply & Repair Ltd,No
Http://opendatacommunities.org/id/metropolitan-district-council/leeds,Leeds City Council,30/04/2017,Environment & Housing,Leeds Building Services,Supplies and Services,Operational Materials,205,28/04/2017,1704-00065,0.00,79.50,R,A J H  Pump Supply & Repair Ltd,No
Http://opendatacommunities.org/id/metropolitan-district-council/leeds,Leeds City Council,30/04/2017,Environment & Housing,Leeds Building Services,Supplies and Services,Operational Materials,205,28/04/2017,1704-00066,0.00,98.81,R,A J H  Pump Supply & Repair Ltd,No
Http://opendatacommunities.org/id/metropolitan-district-council/leeds,Leeds City Council,30/04/2017,Environment & Housing,Leeds Building Services,Supplies and Services,Operational Materials,205,28/04/2017,1704-00067,0.00,125.00,R,A J H  Pump Supply & Repair Ltd,No
Http://opendatacommunities.org/id/metropolitan-district-council/leeds,Leeds City Council,30/04/2017,Environment & Housing,Leeds Building Services,Supplies and Services,Operational Materials,205,28/04/2017,1704-00068,0.00,28.92,R,A J H  Pump Supply & Repair Ltd,No
Http://opendatacommunities.org/id/metropolitan-district-council/leeds,Leeds City Council,30/04/2017,City Development,Economic Development,Supplies and Services,Publication And Promotion,267,13/04/2017,1704-00069,0.00,333.82,R,A J Promotions,No
Http://opendatacommunities.org/id/metropolitan-district-council/leeds,Leeds City Council,30/04/2017,City Development,Libraries  Arts & Heritage,Supplies and Services,Art Galleries Total Stores,3,28/04/2017,1704-00070,0.00,69.60,R,A J Promotions,No
Http://opendatacommunities.org/id/metropolitan-district-council/leeds,Leeds City Council,30/04/2017,City Development,Economic Development,Supplies And Services,Construction,3,07/04/2017,1704-00071,0.00,1000.00,C,A J Wells & Sons,No
Http://opendatacommunities.org/id/metropolitan-district-council/leeds,Leeds City Council,30/04/2017,Childrens Services,Learning Skills & Universal,Third Party Payments,Services Rendered By Other Organisations,511,28/04/2017,1704-00072,0.00,3657.60,R,A K Walsh,No
Http://opendatacommunities.org/id/metropolitan-district-council/leeds,Leeds City Council,30/04/2017,Childrens Services,Learning Skills & Universal,Third Party Payments,Services Rendered By Voluntary Sector,505,03/04/2017,1704-00073,0.00,60.00,R,A Little Something Extra Ltd,No
Http://opendatacommunities.org/id/metropolitan-district-council/leeds,Leeds City Council,30/04/2017,Childrens Services,Learning Skills & Universal,Third Party Payments,Services Rendered By Voluntary Sector,505,05/04/2017,1704-00074,0.00,180.00,R,A Little Something Extra Ltd,No
Http://opendatacommunities.org/id/metropolitan-district-council/leeds,Leeds City Council,30/04/2017,Childrens Services,Learning Skills & Universal,Third Party Payments,Services Rendered By Voluntary Sector,505,05/04/2017,1704-00075,0.00,180.00,R,A Little Something Extra Ltd,No
Http://opendatacommunities.org/id/metropolitan-district-council/leeds,Leeds City Council,30/04/2017,Childrens Services,Learning Skills & Universal,Third Party Payments,Services Rendered By Voluntary Sector,505,05/04/2017,1704-00076,0.00,180.00,R,A Little Something Extra Ltd,No
Http://opendatacommunities.org/id/metropolitan-district-council/leeds,Leeds City Council,30/04/2017,Childrens Services,Learning Skills & Universal,Third Party Payments,Services Rendered By Voluntary Sector,505,05/04/2017,1704-00077,0.00,180.00,R,A Little Something Extra Ltd,No
Http://opendatacommunities.org/id/metropolitan-district-council/leeds,Leeds City Council,30/04/2017,Childrens Services,Learning Skills & Universal,Third Party Payments,Services Rendered By Voluntary Sector,505,05/04/2017,1704-00078,0.00,600.00,R,A Little Something Extra Ltd,No
Http://opendatacommunities.org/id/metropolitan-district-council/leeds,Leeds City Council,30/04/2017,Childrens Services,Learning Skills & Universal,Third Party Payments,Services Rendered By Other Organisations,511,10/04/2017,1704-00079,0.00,112.50,R,A Little Something Extra Ltd,No
Http://opendatacommunities.org/id/metropolitan-district-council/leeds,Leeds City Council,30/04/2017,Childrens Services,Learning Skills & Universal,Third Party Payments,Services Rendered By Voluntary Sector,505,10/04/2017,1704-00080,0.00,675.00,R,A Little Something Extra Ltd,No
Http://opendatacommunities.org/id/metropolitan-district-council/leeds,Leeds City Council,30/04/2017,Childrens Services,Learning Skills & Universal,Third Party Payments,Services Rendered By Voluntary Sector,505,19/04/2017,1704-00081,0.00,360.00,R,A Little Something Extra Ltd,No
Http://opendatacommunities.org/id/metropolitan-district-council/leeds,Leeds City Council,30/04/2017,Childrens Services,Learning Skills & Universal,Third Party Payments,Services Rendered By Voluntary Sector,505,19/04/2017,1704-00082,0.00,720.00,R,A Little Something Extra Ltd,No
Http://opendatacommunities.org/id/metropolitan-district-council/leeds,Leeds City Council,30/04/2017,Childrens Services,Learning Skills & Universal,Third Party Payments,Services Rendered By Other Organisations,511,21/04/2017,1704-00083,0.00,180.00,R,A Little Something Extra Ltd,No
Http://opendatacommunities.org/id/metropolitan-district-council/leeds,Leeds City Council,30/04/2017,Childrens Services,Learning Skills & Universal,Third Party Payments,Services Rendered By Other Organisations,511,21/04/2017,1704-00084,0.00,977.68,R,A Longbottom,No
Http://opendatacommunities.org/id/metropolitan-district-council/leeds,Leeds City Council,30/04/2017,Childrens Services,Learning Skills & Universal,Third Party Payments,Services Rendered By Other Organisations,511,28/04/2017,1704-00085,0.00,813.12,R,A Longbottom,No
Http://opendatacommunities.org/id/metropolitan-district-council/leeds,Leeds City Council,30/04/2017,Citizens and Communities,Customer Access,Supplies and Services,Other Hired And Contracted Services,265,04/04/2017,1704-00086,0.00,891.75,R,A Mohammed,No
Http://opendatacommunities.org/id/metropolitan-district-council/leeds,Leeds City Council,30/04/2017,Citizens and Communities,Customer Access,Supplies and Services,Other Hired And Contracted Services,265,06/04/2017,1704-00087,0.00,148.95,R,A Musalam,No
Http://opendatacommunities.org/id/metropolitan-district-council/leeds,Leeds City Council,30/04/2017,Citizens and Communities,Customer Access,Supplies and Services,Other Hired And Contracted Services,265,04/04/2017,1704-00088,0.00,1173.50,R,A Namaki,No
Http://opendatacommunities.org/id/metropolitan-district-council/leeds,Leeds City Council,30/04/2017,Citizens and Communities,Customer Access,Supplies and Services,Other Hired And Contracted Services,265,18/04/2017,1704-00089,0.00,170.00,R,A Namaki,No
Http://opendatacommunities.org/id/metropolitan-district-council/leeds,Leeds City Council,30/04/2017,Environment & Housing,Parks and Countryside,Supplies and Services,Operational Materials,205,12/04/2017,1704-00090,0.00,225.00,R,A Newton,No
Http://opendatacommunities.org/id/metropolitan-district-council/leeds,Leeds City Council,30/04/2017,Environment & Housing,Parks and Countryside,Supplies and Services,Operational Materials,205,13/04/2017,1704-00091,0.00,171.00,R,A Newton,No
Http://opendatacommunities.org/id/metropolitan-district-council/leeds,Leeds City Council,30/04/2017,Environment & Housing,Housing Leeds Service,Employees,Other Costs,7,06/04/2017,1704-00092,0.00,400.00,C,REDACTED PERSONAL DATA,No
Http://opendatacommunities.org/id/metropolitan-district-council/leeds,Leeds City Council,30/04/2017,Citizens and Communities,Customer Access,Supplies and Services,Books & Audio-Visual Materials,206,03/04/2017,1704-00093,0.00,139.32,R,A S Jhagra,No
Http://opendatacommunities.org/id/metropolitan-district-council/leeds,Leeds City Council,30/04/2017,Citizens and Communities,Customer Access,Supplies and Services,Books & Audio-Visual Materials,206,12/04/2017,1704-00094,0.00,140.68,R,A S Jhagra,No
Http://opendatacommunities.org/id/metropolitan-district-council/leeds,Leeds City Council,30/04/2017,Citizens and Communities,Customer Access,Supplies and Services,Books & Audio-Visual Materials,206,20/04/2017,1704-00095,0.00,96.62,R,A S Jhagra,No
Http://opendatacommunities.org/id/metropolitan-district-council/leeds,Leeds City Council,30/04/2017,Civic Enterprise Leeds,Shared Services,Supplies and Services,Other Hired And Contracted Services,265,26/04/2017,1704-00096,0.00,46.25,R,A Star Couriers Ltd,No
Http://opendatacommunities.org/id/metropolitan-district-council/leeds,Leeds City Council,30/04/2017,Childrens Services,Learning Skills & Universal,Third Party Payments,Services Rendered By Other Organisations,511,21/04/2017,1704-00097,0.00,220.35,R,A Walding,No
Http://opendatacommunities.org/id/metropolitan-district-council/leeds,Leeds City Council,30/04/2017,Childrens Services,Learning Skills & Universal,Third Party Payments,Services Rendered By Other Organisations,511,28/04/2017,1704-00098,0.00,2751.84,R,A Walding,No
Http://opendatacommunities.org/id/metropolitan-district-council/leeds,Leeds City Council,30/04/2017,Central & Corporate,Strategy And Improvement ,Supplies and Services,Office Furniture & Equipment,201,01/03/2017,1704-00099,0.00,28.47,R,A2b Office Technol,Yes
Http://opendatacommunities.org/id/metropolitan-district-council/leeds,Leeds City Council as Accountable Body,30/04/2017,Social Services Pooled Budgets,Leeds Community Equip Store Pooled Budgt,Supplies and Services,Other Equipment,203,20/04/2017,1704-00100,0.00,720.00,R,Aat (Gb) Ltd,No
Http://opendatacommunities.org/id/metropolitan-district-council/leeds,Leeds City Council,30/04/2017,Central & Corporate,Strategy And Improvement ,Supplies and Services,Publication And Promotion,267,28/03/2017,1704-00101,0.00,60.00,R,Ab Print Group Ltd,Yes
Http://opendatacommunities.org/id/metropolitan-district-council/leeds,Leeds City Council,30/04/2017,Environment & Housing,Streetscene Environmental Services ,Supplies and Services,Postages,212,13/03/2017,1704-00102,0.00,52.14,R,Abacus Express,Yes
Http://opendatacommunities.org/id/metropolitan-district-council/leeds,Leeds City Council,30/04/2017,Childrens Services,Safeguarding Targeted & Specialist,Support Services,Legal Disbursements,411,03/04/2017,1704-00103,0.00,26.77,R,Abacus Express Limited,No
Http://opendatacommunities.org/id/metropolitan-district-council/leeds,Leeds City Council,30/04/2017,Adult Social Care,Services For Adults Under 65 Mental/Dis,Support Services,Legal Disbursements,411,04/04/2017,1704-00104,0.00,18.25,R,Abacus Express Limited,No
Http://opendatacommunities.org/id/metropolitan-district-council/leeds,Leeds City Council,30/04/2017,Childrens Services,Safeguarding Targeted & Specialist,Support Services,Legal Disbursements,411,05/04/2017,1704-00105,0.00,15.59,R,Abacus Express Limited,No
Http://opendatacommunities.org/id/metropolitan-district-council/leeds,Leeds City Council,30/04/2017,Childrens Services,Partnerships,Support Services,Legal Disbursements,411,05/04/2017,1704-00106,0.00,20.96,R,Abacus Express Limited,No
Http://opendatacommunities.org/id/metropolitan-district-council/leeds,Leeds City Council,30/04/2017,City Development,Highways,Supplies and Services,Postages,212,05/04/2017,1704-00107,0.00,15.59,R,Abacus Express Limited,No
Http://opendatacommunities.org/id/metropolitan-district-council/leeds,Leeds City Council,30/04/2017,City Development,Highways,Supplies and Services,Other Hired And Contracted Services,265,05/04/2017,1704-00108,0.00,15.59,R,Abacus Express Limited,No
Http://opendatacommunities.org/id/metropolitan-district-council/leeds,Leeds City Council,30/04/2017,Childrens Services,Safeguarding Targeted & Specialist,Support Services,Legal Disbursements,411,07/04/2017,1704-00109,0.00,31.02,R,Abacus Express Limited,No
Http://opendatacommunities.org/id/metropolitan-district-council/leeds,Leeds City Council,30/04/2017,Childrens Services,Safeguarding Targeted & Specialist,Support Services,Legal Disbursements,411,07/04/2017,1704-00110,0.00,26.77,R,Abacus Express Limited,No
Http://opendatacommunities.org/id/metropolitan-district-council/leeds,Leeds City Council,30/04/2017,Childrens Services,Safeguarding Targeted & Specialist,Support Services,Legal Disbursements,411,07/04/2017,1704-00111,0.00,31.02,R,Abacus Express Limited,No
Http://opendatacommunities.org/id/metropolitan-district-council/leeds,Leeds City Council,30/04/2017,Childrens Services,Safeguarding Targeted & Specialist,Support Services,Legal Disbursements,411,07/04/2017,1704-00112,0.00,31.02,R,Abacus Express Limited,No
Http://opendatacommunities.org/id/metropolitan-district-council/leeds,Leeds City Council,30/04/2017,Childrens Services,Safeguarding Targeted & Specialist,Support Services,Legal Disbursements,411,07/04/2017,1704-00113,0.00,31.02,R,Abacus Express Limited,No
Http://opendatacommunities.org/id/metropolitan-district-council/leeds,Leeds City Council,30/04/2017,Childrens Services,Safeguarding Targeted & Specialist,Support Services,Legal Disbursements,411,21/04/2017,1704-00114,0.00,31.02,R,Abacus Express Limited,No
Http://opendatacommunities.org/id/metropolitan-district-council/leeds,Leeds City Council,30/04/2017,Childrens Services,Safeguarding Targeted & Specialist,Support Services,Legal Disbursements,411,21/04/2017,1704-00115,0.00,86.00,R,Abacus Express Limited,No
Http://opendatacommunities.org/id/metropolitan-district-council/leeds,Leeds City Council,30/04/2017,Childrens Services,Safeguarding Targeted & Specialist,Support Services,Legal Disbursements,411,21/04/2017,1704-00116,0.00,31.02,R,Abacus Express Limited,No
Http://opendatacommunities.org/id/metropolitan-district-council/leeds,Leeds City Council,30/04/2017,City Development,Libraries  Arts & Heritage,Supplies and Services,Other Hired And Contracted Services,265,21/04/2017,1704-00117,0.00,25.00,R,Abacus Express Limited,No
Http://opendatacommunities.org/id/metropolitan-district-council/leeds,Leeds City Council,30/04/2017,Childrens Services,Safeguarding Targeted & Specialist,Support Services,Legal Disbursements,411,28/04/2017,1704-00118,0.00,22.04,R,Abacus Express Limited,No
Http://opendatacommunities.org/id/metropolitan-district-council/leeds,Leeds City Council,30/04/2017,Adult Social Care,Services For Older People - 65 And Over,Third Party Payments,Nursing Care Dementia,574,05/04/2017,1704-00119,0.00,1556.00,R,Abbendon Nursing Home,No
Http://opendatacommunities.org/id/metropolitan-district-council/leeds,Leeds City Council,30/04/2017,City Development,Libraries  Arts & Heritage ,Supplies and Services,Food & Drink,231,09/03/2017,1704-00120,0.00,55.20,R,Abbey House Museum Caf,Yes
Http://opendatacommunities.org/id/metropolitan-district-council/leeds,Leeds City Council,30/04/2017,City Development,Libraries  Arts & Heritage ,Supplies and Services,Food & Drink,231,22/03/2017,1704-00121,0.00,14.04,R,Abbey House Museum Caf,Yes
Http://opendatacommunities.org/id/metropolitan-district-council/leeds,Leeds City Council,30/04/2017,City Development,Libraries  Arts & Heritage ,Supplies and Services,Food & Drink,231,23/03/2017,1704-00122,0.00,31.67,R,Abbey House Museum Caf,Yes
Http://opendatacommunities.org/id/metropolitan-district-council/leeds,Leeds City Council,30/04/2017,Environment & Housing,Environmental Action (South),Supplies and Services,Bought In Professional Services,277,06/04/2017,1704-00123,0.00,125.00,R,Abbey House Veterinary Hospital,No
Http://opendatacommunities.org/id/metropolitan-district-council/leeds,Leeds City Council,30/04/2017,Childrens Services,Learning Skills & Universal,Third Party Payments,Services Rendered By Other Organisations,511,21/04/2017,1704-00124,0.00,8665.80,R,Abc Daycare And Ozone Out Of School,No
Http://opendatacommunities.org/id/metropolitan-district-council/leeds,Leeds City Council,30/04/2017,Childrens Services,Learning Skills & Universal,Third Party Payments,Services Rendered By Other Organisations,511,28/04/2017,1704-00125,0.00,10634.40,R,Abc Daycare And Ozone Out Of School,No
Http://opendatacommunities.org/id/metropolitan-district-council/leeds,Leeds City Council,30/04/2017,Childrens Services,Learning Skills & Universal,Third Party Payments,Services Rendered By Other Organisations,511,21/04/2017,1704-00126,0.00,6565.00,R,Abc Nursery At Lufc,No
Http://opendatacommunities.org/id/metropolitan-district-council/leeds,Leeds City Council,30/04/2017,Childrens Services,Learning Skills & Universal,Third Party Payments,Services Rendered By Other Organisations,511,28/04/2017,1704-00127,0.00,14851.20,R,Abc Nursery At Lufc,No
Http://opendatacommunities.org/id/metropolitan-district-council/leeds,Leeds City Council,30/04/2017,Childrens Services,Learning Skills & Universal,Third Party Payments,Services Rendered By Other Organisations,511,21/04/2017,1704-00128,0.00,4726.80,R,Abc@D'S Childcare Services,No
Http://opendatacommunities.org/id/metropolitan-district-council/leeds,Leeds City Council,30/04/2017,Childrens Services,Learning Skills & Universal,Third Party Payments,Services Rendered By Other Organisations,511,28/04/2017,1704-00129,0.00,5896.80,R,Abc@D'S Childcare Services,No
Http://opendatacommunities.org/id/metropolitan-district-council/leeds,Leeds City Council,30/04/2017,Citizens and Communities,Customer Access,Supplies and Services,Other Hired And Contracted Services,265,04/04/2017,1704-00130,0.00,583.75,R,Abdul Wadood Kazizadha,No
Http://opendatacommunities.org/id/metropolitan-district-council/leeds,Leeds City Council,30/04/2017,Citizens and Communities,Customer Access,Supplies and Services,Other Hired And Contracted Services,265,18/04/2017,1704-00131,0.00,115.75,R,Abdul Wadood Kazizadha,No
Http://opendatacommunities.org/id/metropolitan-district-council/leeds,Leeds City Council,30/04/2017,Citizens and Communities,Customer Access,Supplies and Services,Other Hired And Contracted Services,265,18/04/2017,1704-00132,0.00,159.65,R,Abdur Rahman Khan,No
Http://opendatacommunities.org/id/metropolitan-district-council/leeds,Leeds City Council,30/04/2017,City Development,Economic Development,Supplies and Services,Bought In Professional Services,277,06/04/2017,1704-00133,0.00,5000.00,R,Aberfield Communications Limited,No
Http://opendatacommunities.org/id/metropolitan-district-council/leeds,Leeds City Council,30/04/2017,City Development,Economic Development,Supplies and Services,Other Hired And Contracted Services,265,27/04/2017,1704-00134,0.00,1505.00,R,Aberfield Communications Limited,No
Http://opendatacommunities.org/id/metropolitan-district-council/leeds,Leeds City Council,30/04/2017,Strategic Accounts,Strategic,Supplies and Services,Non-Recurring Grants,227,03/04/2017,1704-00135,0.00,389.00,R,Aberford And District Parish Council,No
Http://opendatacommunities.org/id/metropolitan-district-council/leeds,Leeds City Council,30/04/2017,Strategic Accounts,Strategic,Supplies and Services,Office Consumables,210,03/04/2017,1704-00136,0.00,15750.00,R,Aberford And District Parish Council,No
Http://opendatacommunities.org/id/metropolitan-district-council/leeds,Leeds City Council,30/04/2017,Adult Social Care,Services For Older People - 65 And Over,Third Party Payments,Nursing Home,570,05/04/2017,1704-00137,0.00,28026.68,R,Aberford Hall,No
Http://opendatacommunities.org/id/metropolitan-district-council/leeds,Leeds City Council,30/04/2017,Adult Social Care,Services For Older People - 65 And Over,Third Party Payments,Nursing Care Dementia,574,05/04/2017,1704-00138,0.00,1489.95,R,Aberford Hall,No
Http://opendatacommunities.org/id/metropolitan-district-council/leeds,Leeds City Council,30/04/2017,Adult Social Care,Services For Older People - 65 And Over,Third Party Payments,Residential,580,05/04/2017,1704-00139,0.00,1987.23,R,Aberford Hall,No
Http://opendatacommunities.org/id/metropolitan-district-council/leeds,Leeds City Council,30/04/2017,Environment & Housing,Leeds Building Services,Supplies and Services,Operational Materials,205,21/04/2017,1704-00140,0.00,225.00,R,Abi Garage Doors Ltd,No
Http://opendatacommunities.org/id/metropolitan-district-council/leeds,Leeds City Council,30/04/2017,Environment & Housing,Leeds Building Services,Supplies and Services,Operational Materials,205,25/04/2017,1704-00141,0.00,225.00,R,Abi Garage Doors Ltd,No
Http://opendatacommunities.org/id/metropolitan-district-council/leeds,Leeds City Council,30/04/2017,Environment & Housing,Leeds Building Services,Supplies and Services,Operational Materials,205,25/04/2017,1704-00142,0.00,225.00,R,Abi Garage Doors Ltd,No
Http://opendatacommunities.org/id/metropolitan-district-council/leeds,Leeds City Council,30/04/2017,Environment & Housing,Leeds Building Services,Supplies and Services,Operational Materials,205,28/04/2017,1704-00143,0.00,250.00,R,Abi Garage Doors Ltd,No
Http://opendatacommunities.org/id/metropolitan-district-council/leeds,Leeds City Council,30/04/2017,Childrens Services,Safeguarding Targeted & Specialist,Supplies and Services,Telephones,213,05/04/2017,1704-00144,0.00,4.40,R,REDACTED PERSONAL DATA,No
Http://opendatacommunities.org/id/metropolitan-district-council/leeds,Leeds City Council,30/04/2017,Childrens Services,Safeguarding Targeted & Specialist,Supplies and Services,Food & Drink,231,05/04/2017,1704-00145,0.00,23.64,R,REDACTED PERSONAL DATA,No
Http://opendatacommunities.org/id/metropolitan-district-council/leeds,Leeds City Council,30/04/2017,Childrens Services,Safeguarding Targeted & Specialist,Transport,Public Transport Expenses,310,05/04/2017,1704-00146,0.00,2.40,R,REDACTED PERSONAL DATA,No
Http://opendatacommunities.org/id/metropolitan-district-council/leeds,Leeds City Council,30/04/2017,Childrens Services,Safeguarding Targeted & Specialist,Transport,Car & Motorcycle Allowances,311,05/04/2017,1704-00147,0.00,10.80,R,REDACTED PERSONAL DATA,No
Http://opendatacommunities.org/id/metropolitan-district-council/leeds,Leeds City Council,30/04/2017,City Development,Economic Development,Supplies and Services,Publication And Promotion,267,04/04/2017,1704-00148,0.00,55.00,R,Absolute Media Ltd,No
Http://opendatacommunities.org/id/metropolitan-district-council/leeds,Leeds City Council,30/04/2017,City Development,Economic Development,Supplies and Services,Publication And Promotion,267,04/04/2017,1704-00149,0.00,275.00,R,Absolute Media Ltd,No
Http://opendatacommunities.org/id/metropolitan-district-council/leeds,Leeds City Council,30/04/2017,City Development,Economic Development,Supplies and Services,Publication And Promotion,267,21/04/2017,1704-00150,0.00,220.00,R,Absolute Media Ltd,No
Http://opendatacommunities.org/id/metropolitan-district-council/leeds,Leeds City Council,30/04/2017,City Development,Economic Development,Supplies and Services,Publication And Promotion,267,28/04/2017,1704-00151,0.00,2400.00,R,Absolute Media Ltd,No
Http://opendatacommunities.org/id/metropolitan-district-council/leeds,Leeds City Council,30/04/2017,City Development,Libraries  Arts & Heritage,Supplies and Services,Other Hired And Contracted Services,265,21/04/2017,1704-00152,0.00,1317.13,R,Absolute Museum & Gallery Products Ltd,No
Http://opendatacommunities.org/id/metropolitan-district-council/leeds,Leeds City Council,30/04/2017,Childrens Services,Safeguarding Targeted & Specialist ,Transfer Payments,Leaving Care Allowances,634,10/03/2017,1704-00153,0.00,23.15,R,Abu Bakar Ltd,Yes
Http://opendatacommunities.org/id/metropolitan-district-council/leeds,Leeds City Council,30/04/2017,Childrens Services,Safeguarding Targeted & Specialist ,Transfer Payments,Leaving Care Allowances,634,28/03/2017,1704-00154,0.00,26.62,R,Abu Bakar Ltd,Yes
Http://opendatacommunities.org/id/metropolitan-district-council/leeds,Leeds City Council,30/04/2017,Childrens Services,Safeguarding Targeted & Specialist,Employees,Agency Staff,8,12/04/2017,1704-00155,0.00,1653.70,R,Academic Appointments Ltd,No
Http://opendatacommunities.org/id/metropolitan-district-council/leeds,Leeds City Council,30/04/2017,Childrens Services,Safeguarding Targeted & Specialist,Employees,Agency Staff,8,13/04/2017,1704-00156,0.00,2133.70,R,Academic Appointments Ltd,No
Http://opendatacommunities.org/id/metropolitan-district-council/leeds,Leeds City Council,30/04/2017,Childrens Services,Safeguarding Targeted & Specialist,Employees,Agency Staff,8,21/04/2017,1704-00157,0.00,1653.70,R,Academic Appointments Ltd,No
Http://opendatacommunities.org/id/metropolitan-district-council/leeds,Leeds City Council,30/04/2017,Childrens Services,Safeguarding Targeted & Specialist,Employees,Agency Staff,8,28/04/2017,1704-00158,0.00,1823.70,R,Academic Appointments Ltd,No
Http://opendatacommunities.org/id/metropolitan-district-council/leeds,Leeds City Council,30/04/2017,Childrens Services,Safeguarding Targeted & Specialist,Employees,Agency Staff,8,28/04/2017,1704-00159,0.00,960.00,R,Academic Appointments Ltd,No
Http://opendatacommunities.org/id/metropolitan-district-council/leeds,Leeds City Council,30/04/2017,Environment & Housing,Community Safety,Supplies and Services,Operational Materials,205,13/04/2017,1704-00160,0.00,85.00,R,Access Hire Nationwide Ltd,No
Http://opendatacommunities.org/id/metropolitan-district-council/leeds,Leeds City Council,30/04/2017,Environment & Housing,Community Safety,Supplies and Services,Operational Materials,205,28/04/2017,1704-00161,0.00,331.43,R,Access Hire Nationwide Ltd,No
Http://opendatacommunities.org/id/metropolitan-district-council/leeds,Leeds City Council,30/04/2017,Environment & Housing,Community Safety,Supplies and Services,Operational Materials,205,28/04/2017,1704-00162,0.00,1002.14,R,Access Hire Nationwide Ltd,No
Http://opendatacommunities.org/id/metropolitan-district-council/leeds,Leeds City Council,30/04/2017,Central & Corporate,Strategy and Improvement,Supplies and Services,Computer Software & Equipment,214,28/04/2017,1704-00163,0.00,5600.00,R,Access Intelligence Media And,No
Http://opendatacommunities.org/id/metropolitan-district-council/leeds,Leeds City Council,30/04/2017,Environment & Housing,Parks And Countryside ,Supplies and Services,Operational Materials,205,06/03/2017,1704-00164,0.00,44.33,R,Access Locksmiths,Yes
Http://opendatacommunities.org/id/metropolitan-district-council/leeds,Leeds City Council,30/04/2017,Environment & Housing,Leeds Building Services,Supplies and Services,Operational Materials,205,04/04/2017,1704-00165,0.00,15.63,R,Access Locksmiths (Leeds) Limited,No
Http://opendatacommunities.org/id/metropolitan-district-council/leeds,Leeds City Council,30/04/2017,Environment & Housing,Housing Leeds Service,Supplies And Services,Construction,3,13/04/2017,1704-00166,0.00,495.73,C,Access Locksmiths (Leeds) Limited,No
Http://opendatacommunities.org/id/metropolitan-district-council/leeds,Leeds City Council,30/04/2017,Strategic Landlord,Property and Contracts,Premises,General Maintenance,104,13/04/2017,1704-00167,0.00,167.81,R,Access Locksmiths (Leeds) Limited,No
Http://opendatacommunities.org/id/metropolitan-district-council/leeds,Leeds City Council,30/04/2017,Strategic Landlord,Property and Contracts,Premises,General Maintenance,104,13/04/2017,1704-00168,0.00,96.80,R,Access Locksmiths (Leeds) Limited,No
Http://opendatacommunities.org/id/metropolitan-district-council/leeds,Leeds City Council,30/04/2017,Environment & Housing,Leeds Building Services,Supplies and Services,Operational Materials,205,13/04/2017,1704-00169,0.00,8.90,R,Access Locksmiths (Leeds) Limited,No
Http://opendatacommunities.org/id/metropolitan-district-council/leeds,Leeds City Council,30/04/2017,Environment & Housing,Leeds Building Services,Supplies and Services,Operational Materials,205,13/04/2017,1704-00170,0.00,15.48,R,Access Locksmiths (Leeds) Limited,No
Http://opendatacommunities.org/id/metropolitan-district-council/leeds,Leeds City Council,30/04/2017,Environment & Housing,Leeds Building Services,Supplies and Services,Operational Materials,205,13/04/2017,1704-00171,0.00,46.62,R,Access Locksmiths (Leeds) Limited,No
Http://opendatacommunities.org/id/metropolitan-district-council/leeds,Leeds City Council,30/04/2017,Environment & Housing,Leeds Building Services,Supplies and Services,Operational Materials,205,13/04/2017,1704-00172,0.00,94.20,R,Access Locksmiths (Leeds) Limited,No
Http://opendatacommunities.org/id/metropolitan-district-council/leeds,Leeds City Council,30/04/2017,Environment & Housing,Leeds Building Services,Supplies and Services,Operational Materials,205,13/04/2017,1704-00173,0.00,7.13,R,Access Locksmiths (Leeds) Limited,No
Http://opendatacommunities.org/id/metropolitan-district-council/leeds,Leeds City Council,30/04/2017,Strategic Landlord,Housing Management,Premises,General Maintenance,104,18/04/2017,1704-00174,0.00,228.00,R,Access Locksmiths (Leeds) Limited,No
Http://opendatacommunities.org/id/metropolitan-district-council/leeds,Leeds City Council,30/04/2017,Strategic Landlord,Property and Contracts,Premises,General Maintenance,104,18/04/2017,1704-00175,0.00,121.10,R,Access Locksmiths (Leeds) Limited,No
Http://opendatacommunities.org/id/metropolitan-district-council/leeds,Leeds City Council,30/04/2017,Strategic Landlord,Property and Contracts,Premises,General Maintenance,104,18/04/2017,1704-00176,0.00,102.94,R,Access Locksmiths (Leeds) Limited,No
Http://opendatacommunities.org/id/metropolitan-district-council/leeds,Leeds City Council,30/04/2017,Environment & Housing,Leeds Building Services,Supplies and Services,Operational Materials,205,19/04/2017,1704-00177,0.00,13.50,R,Access Locksmiths (Leeds) Limited,No
Http://opendatacommunities.org/id/metropolitan-district-council/leeds,Leeds City Council,30/04/2017,Environment & Housing,Leeds Building Services,Supplies and Services,Operational Materials,205,19/04/2017,1704-00178,0.00,335.60,R,Access Locksmiths (Leeds) Limited,No
Http://opendatacommunities.org/id/metropolitan-district-council/leeds,Leeds City Council,30/04/2017,Environment & Housing,Leeds Building Services,Supplies and Services,Operational Materials,205,19/04/2017,1704-00179,0.00,17.06,R,Access Locksmiths (Leeds) Limited,No
Http://opendatacommunities.org/id/metropolitan-district-council/leeds,Leeds City Council,30/04/2017,Environment & Housing,Leeds Building Services,Supplies and Services,Operational Materials,205,19/04/2017,1704-00180,0.00,85.00,R,Access Locksmiths (Leeds) Limited,No
Http://opendatacommunities.org/id/metropolitan-district-council/leeds,Leeds City Council,30/04/2017,Environment & Housing,Leeds Building Services,Supplies and Services,Operational Materials,205,19/04/2017,1704-00181,0.00,31.61,R,Access Locksmiths (Leeds) Limited,No
Http://opendatacommunities.org/id/metropolitan-district-council/leeds,Leeds City Council,30/04/2017,Environment & Housing,Leeds Building Services,Supplies and Services,Operational Materials,205,19/04/2017,1704-00182,0.00,11.25,R,Access Locksmiths (Leeds) Limited,No
Http://opendatacommunities.org/id/metropolitan-district-council/leeds,Leeds City Council,30/04/2017,Environment & Housing,Leeds Building Services,Supplies and Services,Operational Materials,205,19/04/2017,1704-00183,0.00,46.08,R,Access Locksmiths (Leeds) Limited,No
Http://opendatacommunities.org/id/metropolitan-district-council/leeds,Leeds City Council,30/04/2017,Environment & Housing,Leeds Building Services,Supplies and Services,Operational Materials,205,19/04/2017,1704-00184,0.00,18.04,R,Access Locksmiths (Leeds) Limited,No
Http://opendatacommunities.org/id/metropolitan-district-council/leeds,Leeds City Council,30/04/2017,Environment & Housing,Leeds Building Services,Supplies and Services,Operational Materials,205,19/04/2017,1704-00185,0.00,103.61,R,Access Locksmiths (Leeds) Limited,No
Http://opendatacommunities.org/id/metropolitan-district-council/leeds,Leeds City Council,30/04/2017,Environment & Housing,Leeds Building Services,Supplies and Services,Operational Materials,205,19/04/2017,1704-00186,0.00,11.21,R,Access Locksmiths (Leeds) Limited,No
Http://opendatacommunities.org/id/metropolitan-district-council/leeds,Leeds City Council,30/04/2017,Environment & Housing,Leeds Building Services,Supplies and Services,Operational Materials,205,19/04/2017,1704-00187,0.00,32.86,R,Access Locksmiths (Leeds) Limited,No
Http://opendatacommunities.org/id/metropolitan-district-council/leeds,Leeds City Council,30/04/2017,Environment & Housing,Leeds Building Services,Supplies and Services,Operational Materials,205,19/04/2017,1704-00188,0.00,24.56,R,Access Locksmiths (Leeds) Limited,No
Http://opendatacommunities.org/id/metropolitan-district-council/leeds,Leeds City Council,30/04/2017,Environment & Housing,Leeds Building Services,Supplies and Services,Operational Materials,205,19/04/2017,1704-00189,0.00,5.94,R,Access Locksmiths (Leeds) Limited,No
Http://opendatacommunities.org/id/metropolitan-district-council/leeds,Leeds City Council,30/04/2017,Environment & Housing,Leeds Building Services,Supplies and Services,Operational Materials,205,19/04/2017,1704-00190,0.00,77.99,R,Access Locksmiths (Leeds) Limited,No
Http://opendatacommunities.org/id/metropolitan-district-council/leeds,Leeds City Council,30/04/2017,Environment & Housing,Leeds Building Services,Supplies and Services,Operational Materials,205,19/04/2017,1704-00191,0.00,30.00,R,Access Locksmiths (Leeds) Limited,No
Http://opendatacommunities.org/id/metropolitan-district-council/leeds,Leeds City Council,30/04/2017,Environment & Housing,Leeds Building Services,Supplies and Services,Operational Materials,205,19/04/2017,1704-00192,0.00,60.00,R,Access Locksmiths (Leeds) Limited,No
Http://opendatacommunities.org/id/metropolitan-district-council/leeds,Leeds City Council,30/04/2017,Environment & Housing,Leeds Building Services,Supplies and Services,Operational Materials,205,27/04/2017,1704-00193,0.00,-27.98,R,Access Locksmiths (Leeds) Limited,No
Http://opendatacommunities.org/id/metropolitan-district-council/leeds,Leeds City Council,30/04/2017,Environment & Housing,Housing Leeds Service,Supplies And Services,Construction,3,28/04/2017,1704-00194,0.00,665.80,C,Access Locksmiths (Leeds) Limited,No
Http://opendatacommunities.org/id/metropolitan-district-council/leeds,Leeds City Council,30/04/2017,Environment & Housing,Leeds Building Services,Supplies and Services,Operational Materials,205,28/04/2017,1704-00195,0.00,23.66,R,Access Locksmiths (Leeds) Limited,No
Http://opendatacommunities.org/id/metropolitan-district-council/leeds,Leeds City Council,30/04/2017,Environment & Housing,Leeds Building Services,Supplies and Services,Operational Materials,205,28/04/2017,1704-00196,0.00,18.77,R,Access Locksmiths (Leeds) Limited,No
Http://opendatacommunities.org/id/metropolitan-district-council/leeds,Leeds City Council,30/04/2017,Environment & Housing,Leeds Building Services,Supplies and Services,Operational Materials,205,28/04/2017,1704-00197,0.00,18.63,R,Access Locksmiths (Leeds) Limited,No
Http://opendatacommunities.org/id/metropolitan-district-council/leeds,Leeds City Council,30/04/2017,Environment & Housing,Leeds Building Services,Supplies and Services,Other Hired And Contracted Services,265,04/04/2017,1704-00198,0.00,85.00,R,Access Opening Systems Limited,No
Http://opendatacommunities.org/id/metropolitan-district-council/leeds,Leeds City Council,30/04/2017,Environment & Housing,Leeds Building Services,Supplies and Services,Other Hired And Contracted Services,265,04/04/2017,1704-00199,0.00,85.00,R,Access Opening Systems Limited,No
Http://opendatacommunities.org/id/metropolitan-district-council/leeds,Leeds City Council,30/04/2017,Environment & Housing,Leeds Building Services,Supplies and Services,Other Hired And Contracted Services,265,04/04/2017,1704-00200,0.00,85.00,R,Access Opening Systems Limited,No
Http://opendatacommunities.org/id/metropolitan-district-council/leeds,Leeds City Council,30/04/2017,Environment & Housing,Leeds Building Services,Supplies and Services,Other Hired And Contracted Services,265,04/04/2017,1704-00201,0.00,340.12,R,Access Opening Systems Limited,No
Http://opendatacommunities.org/id/metropolitan-district-council/leeds,Leeds City Council,30/04/2017,Environment & Housing,Leeds Building Services,Supplies and Services,Other Hired And Contracted Services,265,11/04/2017,1704-00202,0.00,11662.00,R,Access Opening Systems Limited,No
Http://opendatacommunities.org/id/metropolitan-district-council/leeds,Leeds City Council,30/04/2017,Environment & Housing,Leeds Building Services,Supplies and Services,Other Hired And Contracted Services,265,19/04/2017,1704-00203,0.00,1190.00,R,Access Opening Systems Limited,No
Http://opendatacommunities.org/id/metropolitan-district-council/leeds,Leeds City Council,30/04/2017,Insurance,Insurance,Supplies and Services,Insurance Claims,248,10/04/2017,1704-00204,0.00,720.00,R,Accident Advice Solicitors,No
Http://opendatacommunities.org/id/metropolitan-district-council/leeds,Leeds City Council,30/04/2017,City Development,Recreation,Transport,External Hire -Occasional,304,28/04/2017,1704-00205,0.00,124.50,R,Ace Container Services Limited,No
Http://opendatacommunities.org/id/metropolitan-district-council/leeds,Leeds City Council,30/04/2017,City Development,Libraries  Arts & Heritage,Transport,Hire Of Movable Plant & Machinery,315,28/04/2017,1704-00206,0.00,45.00,R,Ace Container Services Limited,No
Http://opendatacommunities.org/id/metropolitan-district-council/leeds,Leeds City Council,30/04/2017,City Development,Highways,Supplies and Services,Publication And Promotion,267,07/04/2017,1704-00207,0.00,1029.00,R,Ace Leaflet Distribution & Print Ltd,No
Http://opendatacommunities.org/id/metropolitan-district-council/leeds,Leeds City Council,30/04/2017,Childrens Services,Safeguarding Targeted & Specialist,Third Party Payments,SEN Placements,566,28/04/2017,1704-00208,0.00,16640.00,R,Ackworth School,No
Http://opendatacommunities.org/id/metropolitan-district-council/leeds,Leeds City Council,30/04/2017,Childrens Services,Safeguarding Targeted & Specialist,Third Party Payments,SEN Placements,566,28/04/2017,1704-00209,0.00,16640.00,R,Ackworth School,No
Http://opendatacommunities.org/id/metropolitan-district-council/leeds,Leeds City Council,30/04/2017,Childrens Services,Safeguarding Targeted & Specialist,Third Party Payments,SEN Placements,566,28/04/2017,1704-00210,0.00,16644.79,R,Ackworth School,No
Http://opendatacommunities.org/id/metropolitan-district-council/leeds,Leeds City Council,30/04/2017,Childrens Services,Safeguarding Targeted & Specialist,Third Party Payments,SEN Placements,566,28/04/2017,1704-00211,0.00,16640.00,R,Ackworth School,No
Http://opendatacommunities.org/id/metropolitan-district-council/leeds,Leeds City Council,30/04/2017,Childrens Services,Safeguarding Targeted & Specialist,Third Party Payments,SEN Placements,566,28/04/2017,1704-00212,0.00,24440.00,R,Ackworth School,No
Http://opendatacommunities.org/id/metropolitan-district-council/leeds,Leeds City Council,30/04/2017,Childrens Services,Safeguarding Targeted & Specialist,Third Party Payments,SEN Placements,566,28/04/2017,1704-00213,0.00,22997.00,R,Ackworth School,No
Http://opendatacommunities.org/id/metropolitan-district-council/leeds,Leeds City Council,30/04/2017,Civic Enterprise Leeds,Commercial Services,Supplies and Services,Operational Furniture And Equipment,203,10/04/2017,1704-00214,0.00,1190.00,R,Acme Facilities Group Ltd,No
Http://opendatacommunities.org/id/metropolitan-district-council/leeds,Leeds City Council,30/04/2017,Childrens Services,Safeguarding Targeted & Specialist,Third Party Payments,SEN Placements,566,24/04/2017,1704-00215,0.00,18138.67,R,Acorn Care And Education Ltd,No
Http://opendatacommunities.org/id/metropolitan-district-council/leeds,Leeds City Council,30/04/2017,Childrens Services,Safeguarding Targeted & Specialist,Third Party Payments,SEN Placements,566,24/04/2017,1704-00216,0.00,18138.67,R,Acorn Care And Education Ltd,No
Http://opendatacommunities.org/id/metropolitan-district-council/leeds,Leeds City Council,30/04/2017,Childrens Services,Safeguarding Targeted & Specialist,Third Party Payments,SEN Placements,566,24/04/2017,1704-00217,0.00,18138.67,R,Acorn Care And Education Ltd,No
Http://opendatacommunities.org/id/metropolitan-district-council/leeds,Leeds City Council,30/04/2017,Childrens Services,Safeguarding Targeted & Specialist,Third Party Payments,SEN Placements,566,25/04/2017,1704-00218,0.00,18138.67,R,Acorn Care And Education Ltd,No
Http://opendatacommunities.org/id/metropolitan-district-council/leeds,Leeds City Council,30/04/2017,Childrens Services,Safeguarding Targeted & Specialist,Third Party Payments,SEN Placements,566,25/04/2017,1704-00219,0.00,18138.67,R,Acorn Care And Education Ltd,No
Http://opendatacommunities.org/id/metropolitan-district-council/leeds,Leeds City Council,30/04/2017,Childrens Services,Safeguarding Targeted & Specialist,Third Party Payments,SEN Placements,566,25/04/2017,1704-00220,0.00,18138.67,R,Acorn Care And Education Ltd,No
Http://opendatacommunities.org/id/metropolitan-district-council/leeds,Leeds City Council,30/04/2017,Childrens Services,Safeguarding Targeted & Specialist,Third Party Payments,SEN Placements,566,25/04/2017,1704-00221,0.00,18138.67,R,Acorn Care And Education Ltd,No
Http://opendatacommunities.org/id/metropolitan-district-council/leeds,Leeds City Council,30/04/2017,Childrens Services,Safeguarding Targeted & Specialist,Third Party Payments,SEN Placements,566,25/04/2017,1704-00222,0.00,18138.67,R,Acorn Care And Education Ltd,No
Http://opendatacommunities.org/id/metropolitan-district-council/leeds,Leeds City Council,30/04/2017,Childrens Services,Safeguarding Targeted & Specialist,Third Party Payments,SEN Placements,566,25/04/2017,1704-00223,0.00,18138.67,R,Acorn Care And Education Ltd,No
Http://opendatacommunities.org/id/metropolitan-district-council/leeds,Leeds City Council,30/04/2017,Childrens Services,Safeguarding Targeted & Specialist,Third Party Payments,SEN Placements,566,25/04/2017,1704-00224,0.00,18138.67,R,Acorn Care And Education Ltd,No
Http://opendatacommunities.org/id/metropolitan-district-council/leeds,Leeds City Council,30/04/2017,Childrens Services,Safeguarding Targeted & Specialist,Third Party Payments,SEN Placements,566,25/04/2017,1704-00225,0.00,18138.67,R,Acorn Care And Education Ltd,No
Http://opendatacommunities.org/id/metropolitan-district-council/leeds,Leeds City Council,30/04/2017,Childrens Services,Safeguarding Targeted & Specialist,Third Party Payments,SEN Placements,566,25/04/2017,1704-00226,0.00,18138.67,R,Acorn Care And Education Ltd,No
Http://opendatacommunities.org/id/metropolitan-district-council/leeds,Leeds City Council,30/04/2017,Childrens Services,Safeguarding Targeted & Specialist,Third Party Payments,SEN Placements,566,25/04/2017,1704-00227,0.00,18138.67,R,Acorn Care And Education Ltd,No
Http://opendatacommunities.org/id/metropolitan-district-council/leeds,Leeds City Council,30/04/2017,Childrens Services,Safeguarding Targeted & Specialist,Third Party Payments,SEN Placements,566,25/04/2017,1704-00228,0.00,18138.67,R,Acorn Care And Education Ltd,No
Http://opendatacommunities.org/id/metropolitan-district-council/leeds,Leeds City Council,30/04/2017,Childrens Services,Safeguarding Targeted & Specialist,Third Party Payments,SEN Placements,566,25/04/2017,1704-00229,0.00,18138.67,R,Acorn Care And Education Ltd,No
Http://opendatacommunities.org/id/metropolitan-district-council/leeds,Leeds City Council,30/04/2017,Childrens Services,Safeguarding Targeted & Specialist,Third Party Payments,SEN Placements,566,25/04/2017,1704-00230,0.00,18138.67,R,Acorn Care And Education Ltd,No
Http://opendatacommunities.org/id/metropolitan-district-council/leeds,Leeds City Council,30/04/2017,Childrens Services,Safeguarding Targeted & Specialist,Third Party Payments,SEN Placements,566,25/04/2017,1704-00231,0.00,18138.67,R,Acorn Care And Education Ltd,No
Http://opendatacommunities.org/id/metropolitan-district-council/leeds,Leeds City Council,30/04/2017,Childrens Services,Safeguarding Targeted & Specialist,Third Party Payments,SEN Placements,566,25/04/2017,1704-00232,0.00,18138.67,R,Acorn Care And Education Ltd,No
Http://opendatacommunities.org/id/metropolitan-district-council/leeds,Leeds City Council,30/04/2017,Childrens Services,Safeguarding Targeted & Specialist,Third Party Payments,SEN Placements,566,25/04/2017,1704-00233,0.00,18138.67,R,Acorn Care And Education Ltd,No
Http://opendatacommunities.org/id/metropolitan-district-council/leeds,Leeds City Council,30/04/2017,Childrens Services,Safeguarding Targeted & Specialist,Third Party Payments,SEN Placements,566,25/04/2017,1704-00234,0.00,18138.67,R,Acorn Care And Education Ltd,No
Http://opendatacommunities.org/id/metropolitan-district-council/leeds,Leeds City Council,30/04/2017,Childrens Services,Safeguarding Targeted & Specialist,Third Party Payments,SEN Placements,566,25/04/2017,1704-00235,0.00,18138.67,R,Acorn Care And Education Ltd,No
Http://opendatacommunities.org/id/metropolitan-district-council/leeds,Leeds City Council,30/04/2017,Childrens Services,Safeguarding Targeted & Specialist,Third Party Payments,SEN Placements,566,25/04/2017,1704-00236,0.00,18138.67,R,Acorn Care And Education Ltd,No
Http://opendatacommunities.org/id/metropolitan-district-council/leeds,Leeds City Council,30/04/2017,Childrens Services,Safeguarding Targeted & Specialist,Third Party Payments,SEN Placements,566,25/04/2017,1704-00237,0.00,18138.67,R,Acorn Care And Education Ltd,No
Http://opendatacommunities.org/id/metropolitan-district-council/leeds,Leeds City Council,30/04/2017,Adult Social Care,Services For Older People - 65 And Over,Third Party Payments,Nursing Care Dementia,574,05/04/2017,1704-00238,0.00,1470.09,R,Acorn Nursing Home,No
Http://opendatacommunities.org/id/metropolitan-district-council/leeds,Leeds City Council,30/04/2017,Adult Social Care,Other Adult Services,Third Party Payments,Residential - Drugs & Alcohol,583,07/04/2017,1704-00239,0.00,2200.00,R,Acorn Treatment & Housing,No
Http://opendatacommunities.org/id/metropolitan-district-council/leeds,Leeds City Council,30/04/2017,Childrens Services,Learning Skills & Universal,Third Party Payments,Services Rendered By Other Organisations,511,21/04/2017,1704-00240,0.00,977.68,R,Acorns Nursery,No
Http://opendatacommunities.org/id/metropolitan-district-council/leeds,Leeds City Council,30/04/2017,Environment & Housing,Parks and Countryside,Supplies and Services,Operational Furniture And Equipment,203,28/04/2017,1704-00241,0.00,23473.28,R,Acoustic Arrangments Limited,No
Http://opendatacommunities.org/id/metropolitan-district-council/leeds,Leeds City Council,30/04/2017,Environment & Housing,Community Safety,Employees,Training & Development,70,07/04/2017,1704-00242,0.00,40.00,R,Acoustic Instruments International,No
Http://opendatacommunities.org/id/metropolitan-district-council/leeds,Leeds City Council,30/04/2017,Adult Social Care,Services For Adults Under 65 Mental/Dis,Third Party Payments,Residential,580,05/04/2017,1704-00243,0.00,1459.20,R,Acre Green,No
Http://opendatacommunities.org/id/metropolitan-district-council/leeds,Leeds City Council,30/04/2017,Adult Social Care,Services For Older People - 65 And Over,Third Party Payments,Nursing Home,570,05/04/2017,1704-00244,0.00,23449.92,R,Acre Green,No
Http://opendatacommunities.org/id/metropolitan-district-council/leeds,Leeds City Council,30/04/2017,Adult Social Care,Services For Older People - 65 And Over,Third Party Payments,Nursing Care Dementia,574,05/04/2017,1704-00245,0.00,1641.73,R,Acre Green,No
Http://opendatacommunities.org/id/metropolitan-district-council/leeds,Leeds City Council,30/04/2017,Adult Social Care,Services For Older People - 65 And Over,Third Party Payments,Residential,580,05/04/2017,1704-00246,0.00,9700.25,R,Acre Green,No
Http://opendatacommunities.org/id/metropolitan-district-council/leeds,Leeds City Council,30/04/2017,Adult Social Care,Services For Older People Under 65 P/Dis,Third Party Payments,Nursing Home,570,05/04/2017,1704-00247,0.00,5682.64,R,Acre Green,No
Http://opendatacommunities.org/id/metropolitan-district-council/leeds,Leeds City Council,30/04/2017,Adult Social Care,Services For Older People Under 65 P/Dis,Third Party Payments,Residential,580,05/04/2017,1704-00248,0.00,3145.20,R,Acre Green,No
Http://opendatacommunities.org/id/metropolitan-district-council/leeds,Leeds City Council,30/04/2017,Childrens Services,Learning Skills & Universal,Third Party Payments,Services Rendered By Other Organisations,511,21/04/2017,1704-00249,0.00,8665.80,R,Acre Wood Day Nursery,No
Http://opendatacommunities.org/id/metropolitan-district-council/leeds,Leeds City Council,30/04/2017,Childrens Services,Learning Skills & Universal,Third Party Payments,Services Rendered By Other Organisations,511,28/04/2017,1704-00250,0.00,21621.60,R,Acre Wood Day Nursery,No
Http://opendatacommunities.org/id/metropolitan-district-council/leeds,Leeds City Council,30/04/2017,Central & Corporate,Strategy And Improvement ,Employees,Best Value Training,70,23/03/2017,1704-00251,0.00,1780.40,R,Act Now Training,Yes
Http://opendatacommunities.org/id/metropolitan-district-council/leeds,Leeds City Council as Accountable Body,30/04/2017,Social Services Pooled Budgets,Leeds Community Equip Store Pooled Budgt,Supplies and Services,Other Equipment,203,21/04/2017,1704-00252,0.00,36.50,R,Action Assist Ltd,No
Http://opendatacommunities.org/id/metropolitan-district-council/leeds,Leeds City Council,30/04/2017,Childrens Services,Safeguarding Targeted & Specialist,Third Party Payments,Semi-Supported Independent Living,529,13/04/2017,1704-00253,0.00,4776.48,R,Action For Children,No
Http://opendatacommunities.org/id/metropolitan-district-council/leeds,Leeds City Council,30/04/2017,Childrens Services,Safeguarding Targeted & Specialist,Third Party Payments,Semi-Supported Independent Living,529,13/04/2017,1704-00254,0.00,4776.48,R,Action For Children,No
Http://opendatacommunities.org/id/metropolitan-district-council/leeds,Leeds City Council,30/04/2017,Childrens Services,Safeguarding Targeted & Specialist,Third Party Payments,Semi-Supported Independent Living,529,13/04/2017,1704-00255,0.00,4776.48,R,Action For Children,No
Http://opendatacommunities.org/id/metropolitan-district-council/leeds,Leeds City Council,30/04/2017,Childrens Services,Safeguarding Targeted & Specialist,Third Party Payments,Semi-Supported Independent Living,529,13/04/2017,1704-00256,0.00,4776.48,R,Action For Children,No
Http://opendatacommunities.org/id/metropolitan-district-council/leeds,Leeds City Council,30/04/2017,Childrens Services,Safeguarding Targeted & Specialist,Third Party Payments,Independent Fostering Agencies,509,13/04/2017,1704-00257,0.00,5163.67,R,Action For Children,No
Http://opendatacommunities.org/id/metropolitan-district-council/leeds,Leeds City Council,30/04/2017,Adult Social Care,Services For Older People - 65 And Over,Third Party Payments,Payments To Voluntary Organisations,561,03/04/2017,1704-00258,0.00,34505.50,R,Action For Gipton Elderly,No
Http://opendatacommunities.org/id/metropolitan-district-council/leeds,Leeds City Council,30/04/2017,Childrens Services,Safeguarding Targeted & Specialist,Third Party Payments,Placement Support,550,07/04/2017,1704-00259,0.00,516.00,R,Active Kids Yeadon Llp,No
Http://opendatacommunities.org/id/metropolitan-district-council/leeds,Leeds City Council,30/04/2017,Childrens Services,Learning Skills & Universal,Third Party Payments,Services Rendered By Other Organisations,511,21/04/2017,1704-00260,0.00,2363.40,R,Active Kids Yeadon Llp,No
Http://opendatacommunities.org/id/metropolitan-district-council/leeds,Leeds City Council,30/04/2017,Childrens Services,Learning Skills & Universal,Third Party Payments,Services Rendered By Other Organisations,511,28/04/2017,1704-00261,0.00,15069.60,R,Active Kids Yeadon Llp,No
Http://opendatacommunities.org/id/metropolitan-district-council/leeds,Leeds City Council,30/04/2017,Environment & Housing,Waste Management,Supplies and Services,Recycling & Reuse Charges,234,07/04/2017,1704-00262,0.00,8740.82,R,Acumen Waste Services Ltd,No
Http://opendatacommunities.org/id/metropolitan-district-council/leeds,Leeds City Council,30/04/2017,Environment & Housing,Environmental Action (East North East),Supplies and Services,Bought In Professional Services,277,10/04/2017,1704-00263,0.00,110.00,R,Acumen Waste Services Ltd,No
Http://opendatacommunities.org/id/metropolitan-district-council/leeds,Leeds City Council,30/04/2017,Environment & Housing,Waste Management,Supplies and Services,Recycling & Reuse Charges,234,12/04/2017,1704-00264,0.00,3757.36,R,Acumen Waste Services Ltd,No
Http://opendatacommunities.org/id/metropolitan-district-council/leeds,Leeds City Council,30/04/2017,Environment & Housing,Parks and Countryside,Supplies and Services,Resaleable Materials,204,05/04/2017,1704-00265,0.00,128.00,R,Acushnet Europe Limited,No
Http://opendatacommunities.org/id/metropolitan-district-council/leeds,Leeds City Council,30/04/2017,Civic Enterprise Leeds,Shared Services,Supplies and Services,Other Hired And Contracted Services,265,07/04/2017,1704-00266,0.00,564.92,R,Ad3 Envelope Printers Limited,No
Http://opendatacommunities.org/id/metropolitan-district-council/leeds,Leeds City Council,30/04/2017,Civic Enterprise Leeds,Shared Services,Supplies and Services,Other Hired And Contracted Services,265,07/04/2017,1704-00267,0.00,67.38,R,Ad3 Envelope Printers Limited,No
Http://opendatacommunities.org/id/metropolitan-district-council/leeds,Leeds City Council,30/04/2017,Civic Enterprise Leeds,Shared Services,Supplies and Services,Operational Materials,205,07/04/2017,1704-00268,0.00,645.00,R,Ad3 Envelope Printers Limited,No
Http://opendatacommunities.org/id/metropolitan-district-council/leeds,Leeds City Council,30/04/2017,Civic Enterprise Leeds,Shared Services,Supplies and Services,Other Hired And Contracted Services,265,28/04/2017,1704-00269,0.00,96.44,R,Ad3 Envelope Printers Limited,No
Http://opendatacommunities.org/id/metropolitan-district-council/leeds,Leeds City Council,30/04/2017,Civic Enterprise Leeds,Shared Services,Supplies and Services,Other Hired And Contracted Services,265,28/04/2017,1704-00270,0.00,645.00,R,Ad3 Envelope Printers Limited,No
Http://opendatacommunities.org/id/metropolitan-district-council/leeds,Leeds City Council,30/04/2017,City Development,Recreation,Income,Swimming Bath Charges,923,20/04/2017,1704-00271,0.00,21.85,R,REDACTED PERSONAL DATA,No
Http://opendatacommunities.org/id/metropolitan-district-council/leeds,Leeds City Council,30/04/2017,Environment & Housing,Waste Management,Support Services,Legal Disbursements,411,25/04/2017,1704-00272,0.00,1500.00,R,Adam Fullwood,No
Http://opendatacommunities.org/id/metropolitan-district-council/leeds,Leeds City Council,30/04/2017,Adult Social Care,Services For Older People - 65 And Over,Third Party Payments,Nursing Home,570,05/04/2017,1704-00273,0.00,2120.00,R,Adbolton Hall,No
Http://opendatacommunities.org/id/metropolitan-district-council/leeds,Leeds City Council,30/04/2017,Environment & Housing,Environmental Health,Employees,Other Costs,7,13/04/2017,1704-00274,0.00,1306.50,C,Addleshaw Goddard Llp,No
Http://opendatacommunities.org/id/metropolitan-district-council/leeds,Leeds City Council,30/04/2017,Environment & Housing,Environmental Health,Employees,Other Costs,7,28/04/2017,1704-00275,0.00,7924.34,C,Addleshaw Goddard Llp,No
Http://opendatacommunities.org/id/metropolitan-district-council/leeds,Leeds City Council,30/04/2017,Environment & Housing,Parks and Countryside,Supplies and Services,Other Hired And Contracted Services,265,21/04/2017,1704-00276,0.00,8624.00,R,Addlestone & Partners,No
Http://opendatacommunities.org/id/metropolitan-district-council/leeds,Leeds City Council,30/04/2017,Central & Corporate,Technology ,Employees,Agency Staff,8,22/03/2017,1704-00277,0.00,5520.00,R,Adecco Alfred Marks,Yes
Http://opendatacommunities.org/id/metropolitan-district-council/leeds,Leeds City Council,30/04/2017,Central & Corporate,Technology ,Employees,Agency Staff,8,22/03/2017,1704-00278,0.00,2508.60,R,Adecco Alfred Marks,Yes
Http://opendatacommunities.org/id/metropolitan-district-council/leeds,Leeds City Council,30/04/2017,Central & Corporate,Technology ,Employees,Agency Staff,8,22/03/2017,1704-00279,0.00,6176.40,R,Adecco Alfred Marks,Yes
Http://opendatacommunities.org/id/metropolitan-district-council/leeds,Leeds City Council,30/04/2017,Central & Corporate,Technology ,Employees,Agency Staff,8,22/03/2017,1704-00280,0.00,8340.00,R,Adecco Alfred Marks,Yes
Http://opendatacommunities.org/id/metropolitan-district-council/leeds,Leeds City Council,30/04/2017,Central & Corporate,Technology ,Employees,Agency Staff,8,22/03/2017,1704-00281,0.00,3428.50,R,Adecco Alfred Marks,Yes
Http://opendatacommunities.org/id/metropolitan-district-council/leeds,Leeds City Council,30/04/2017,Central & Corporate,Technology ,Employees,Agency Staff,8,24/03/2017,1704-00282,0.00,1714.25,R,Adecco Alfred Marks,Yes
Http://opendatacommunities.org/id/metropolitan-district-council/leeds,Leeds City Council,30/04/2017,Central & Corporate,Technology ,Employees,Agency Staff,8,24/03/2017,1704-00283,0.00,3475.00,R,Adecco Alfred Marks,Yes
Http://opendatacommunities.org/id/metropolitan-district-council/leeds,Leeds City Council,30/04/2017,Central & Corporate,Technology ,Employees,Agency Staff,8,29/03/2017,1704-00284,0.00,2058.80,R,Adecco Alfred Marks,Yes
Http://opendatacommunities.org/id/metropolitan-district-council/leeds,Leeds City Council,30/04/2017,Citizens and Communities,Communities,Supplies and Services,Well Being Small Grants Projects,228,07/04/2017,1704-00285,0.00,995.00,R,Adel Baby And Toddler Group,No
Http://opendatacommunities.org/id/metropolitan-district-council/leeds,Leeds City Council,30/04/2017,Strategic Accounts,Miscellaneous,Supplies and Services,Non-Recurring Grants,227,25/04/2017,1704-00286,0.00,150.00,R,Adel Baby And Toddler Group,No
Http://opendatacommunities.org/id/metropolitan-district-council/leeds,Leeds City Council,30/04/2017,Childrens Services,Learning Skills & Universal,Third Party Payments,Services Rendered By Voluntary Sector,505,21/04/2017,1704-00287,0.00,2363.40,R,Adel Pre School,No
Http://opendatacommunities.org/id/metropolitan-district-council/leeds,Leeds City Council,30/04/2017,Childrens Services,Learning Skills & Universal,Third Party Payments,Services Rendered By Other Organisations,511,28/04/2017,1704-00288,0.00,20442.24,R,Adel Pre School,No
Http://opendatacommunities.org/id/metropolitan-district-council/leeds,Leeds City Council,30/04/2017,Strategic Accounts,Miscellaneous,Supplies and Services,Non-Recurring Grants,227,27/04/2017,1704-00289,0.00,296.00,R,Adel War Memorial Association,No
Http://opendatacommunities.org/id/metropolitan-district-council/leeds,Leeds City Council,30/04/2017,Childrens Services,Learning Skills & Universal,Third Party Payments,Services Rendered By Other Organisations,511,28/04/2017,1704-00290,0.00,1965.60,R,Adele Harrington,No
Http://opendatacommunities.org/id/metropolitan-district-council/leeds,Leeds City Council,30/04/2017,Childrens Services,Learning Skills & Universal,Third Party Payments,Services Rendered By Other Organisations,511,28/04/2017,1704-00291,0.00,611.52,R,REDACTED PERSONAL DATA,No
Http://opendatacommunities.org/id/metropolitan-district-council/leeds,Leeds City Council,30/04/2017,Childrens Services,Learning Skills & Universal,Third Party Payments,Services Rendered By Other Organisations,511,28/04/2017,1704-00292,0.00,655.20,R,Adele Thompson,No
Http://opendatacommunities.org/id/metropolitan-district-council/leeds,Leeds City Council,30/04/2017,City Development,Libraries  Arts & Heritage,Supplies and Services,Other Hired And Contracted Services,265,06/04/2017,1704-00293,0.00,1500.00,R,Adelle Stripe,No
Http://opendatacommunities.org/id/metropolitan-district-council/leeds,Leeds City Council,30/04/2017,Adult Social Care,Services For Older People - 65 And Over,Third Party Payments,Nursing Home,570,05/04/2017,1704-00294,0.00,1120.19,R,Aden House,No
Http://opendatacommunities.org/id/metropolitan-district-council/leeds,Leeds City Council,30/04/2017,City Development,Support Services,Supplies and Services,Licences,266,18/04/2017,1704-00295,0.00,2040.00,R,Adept,No
Http://opendatacommunities.org/id/metropolitan-district-council/leeds,Leeds City Council,30/04/2017,Environment & Housing,Leeds Building Services,Supplies and Services,Operational Materials,205,10/04/2017,1704-00296,0.00,17.58,R,Adi Global,No
Http://opendatacommunities.org/id/metropolitan-district-council/leeds,Leeds City Council,30/04/2017,Environment & Housing,Leeds Building Services,Supplies and Services,Operational Materials,205,25/04/2017,1704-00297,0.00,25.28,R,Adi Global,No
Http://opendatacommunities.org/id/metropolitan-district-council/leeds,Leeds City Council,30/04/2017,Environment & Housing,Leeds Building Services,Supplies and Services,Operational Materials,205,25/04/2017,1704-00298,0.00,58.14,R,Adi Global,No
Http://opendatacommunities.org/id/metropolitan-district-council/leeds,Leeds City Council,30/04/2017,Environment & Housing,Leeds Building Services,Supplies and Services,Operational Materials,205,25/04/2017,1704-00299,0.00,56.98,R,Adi Global,No
Http://opendatacommunities.org/id/metropolitan-district-council/leeds,Leeds City Council,30/04/2017,Environment & Housing,Leeds Building Services,Supplies and Services,Operational Materials,205,25/04/2017,1704-00300,0.00,135.72,R,Adi Global,No
Http://opendatacommunities.org/id/metropolitan-district-council/leeds,Leeds City Council,30/04/2017,Environment & Housing,Leeds Building Services,Supplies and Services,Operational Materials,205,25/04/2017,1704-00301,0.00,199.99,R,Adi Global,No
Http://opendatacommunities.org/id/metropolitan-district-council/leeds,Leeds City Council,30/04/2017,Environment & Housing,Community Safety,Supplies and Services,Other Hired And Contracted Services,265,27/04/2017,1704-00302,0.00,3599.82,R,Adi Global,No
Http://opendatacommunities.org/id/metropolitan-district-council/leeds,Leeds City Council,30/04/2017,Environment & Housing,Community Safety,Supplies and Services,Other Hired And Contracted Services,265,27/04/2017,1704-00303,0.00,6986.92,R,Adi Global,No
Http://opendatacommunities.org/id/metropolitan-district-council/leeds,Leeds City Council,30/04/2017,Environment & Housing,Leeds Building Services,Supplies and Services,Operational Materials,205,27/04/2017,1704-00304,0.00,351.72,R,Adi Global,No
Http://opendatacommunities.org/id/metropolitan-district-council/leeds,Leeds City Council,30/04/2017,Childrens Services,Safeguarding Targeted & Specialist,Third Party Payments,Independent Fostering Agencies,509,03/04/2017,1704-00305,0.00,2800.00,R,Adolescent And Childrens Trust,No
Http://opendatacommunities.org/id/metropolitan-district-council/leeds,Leeds City Council,30/04/2017,Childrens Services,Safeguarding Targeted & Specialist,Third Party Payments,Independent Fostering Agencies,509,03/04/2017,1704-00306,0.00,2800.00,R,Adolescent And Childrens Trust,No
Http://opendatacommunities.org/id/metropolitan-district-council/leeds,Leeds City Council,30/04/2017,Childrens Services,Safeguarding Targeted & Specialist,Third Party Payments,Independent Fostering Agencies,509,06/04/2017,1704-00307,0.00,2660.00,R,Adolescent And Childrens Trust,No
Http://opendatacommunities.org/id/metropolitan-district-council/leeds,Leeds City Council,30/04/2017,Childrens Services,Safeguarding Targeted & Specialist,Third Party Payments,Independent Fostering Agencies,509,06/04/2017,1704-00308,0.00,2660.00,R,Adolescent And Childrens Trust,No
Http://opendatacommunities.org/id/metropolitan-district-council/leeds,Leeds City Council,30/04/2017,Childrens Services,Safeguarding Targeted & Specialist,Third Party Payments,Independent Fostering Agencies,509,28/04/2017,1704-00309,0.00,2945.00,R,Adolescent And Childrens Trust,No
Http://opendatacommunities.org/id/metropolitan-district-council/leeds,Leeds City Council,30/04/2017,Childrens Services,Safeguarding Targeted & Specialist,Supplies and Services,Conference Meetings,253,28/04/2017,1704-00310,0.00,239.60,R,Adoption Matters Northwest,No
Http://opendatacommunities.org/id/metropolitan-district-council/leeds,Leeds City Council,30/04/2017,Childrens Services,Safeguarding Targeted & Specialist,Third Party Payments,Placement Support,550,13/04/2017,1704-00311,0.00,95.00,R,Adoptionplus Ltd,No
Http://opendatacommunities.org/id/metropolitan-district-council/leeds,Leeds City Council as Accountable Body,30/04/2017,Social Services Pooled Budgets,Jcs For People With Learning Disabilitie,Third Party Payments,Residential,580,27/04/2017,1704-00312,0.00,2609.36,R,Adrian House,No
Http://opendatacommunities.org/id/metropolitan-district-council/leeds,Leeds City Council as Accountable Body,30/04/2017,Social Services Pooled Budgets,Jcs For People With Learning Disabilitie,Third Party Payments,Residential,580,27/04/2017,1704-00313,0.00,2609.36,R,Adrian House,No
Http://opendatacommunities.org/id/metropolitan-district-council/leeds,Leeds City Council as Accountable Body,30/04/2017,Social Services Pooled Budgets,Jcs For People With Learning Disabilitie,Third Party Payments,Residential,580,27/04/2017,1704-00314,0.00,2609.36,R,Adrian House,No
Http://opendatacommunities.org/id/metropolitan-district-council/leeds,Leeds City Council,30/04/2017,Environment & Housing,Strategic Housing Support,Supplies and Services,Other Hired And Contracted Services,265,28/04/2017,1704-00315,0.00,239.46,R,Adrian Shaw,No
Http://opendatacommunities.org/id/metropolitan-district-council/leeds,Leeds City Council,30/04/2017,Citizens and Communities,Customer Access,Supplies and Services,Other Hired And Contracted Services,265,04/04/2017,1704-00316,0.00,106.95,R,Adrien Kaponczai,No
Http://opendatacommunities.org/id/metropolitan-district-council/leeds,Leeds City Council,30/04/2017,Civic Enterprise Leeds,Corporate Property Management,Premises,Maintenance Of Buildings,101,10/04/2017,1704-00317,0.00,153.63,R,Adt Fire And Security Plc,No
Http://opendatacommunities.org/id/metropolitan-district-council/leeds,Leeds City Council,30/04/2017,Strategic Landlord,Housing Management,Premises,Cleaning Maintenance & Toiletries,127,20/04/2017,1704-00318,0.00,143.56,R,Adt Fire And Security Plc,No
Http://opendatacommunities.org/id/metropolitan-district-council/leeds,Leeds City Council as Accountable Body,30/04/2017,Social Services Pooled Budgets,Jcs For People With Learning Disabilitie,Third Party Payments,Sheltered Accommodation,569,21/04/2017,1704-00319,0.00,1332.20,R,Adult Placement Services,No
Http://opendatacommunities.org/id/metropolitan-district-council/leeds,Leeds City Council as Accountable Body,30/04/2017,Social Services Pooled Budgets,Jcs For People With Learning Disabilitie,Third Party Payments,Sheltered Accommodation,569,21/04/2017,1704-00320,0.00,805.74,R,Adult Placement Services,No
Http://opendatacommunities.org/id/metropolitan-district-council/leeds,Leeds City Council,30/04/2017,Adult Social Care,Services For Adults Under 65 Mental/Dis,Third Party Payments,Nursing Home,570,05/04/2017,1704-00321,0.00,1541.96,R,Adult Supported Living Ltd,No
Http://opendatacommunities.org/id/metropolitan-district-council/leeds,Leeds City Council,30/04/2017,City Development,Recreation,Supplies and Services,External Audit Fees,261,03/04/2017,1704-00322,0.00,235.00,R,Advance Stocks Ltd,No
Http://opendatacommunities.org/id/metropolitan-district-council/leeds,Leeds City Council,30/04/2017,City Development,Recreation,Supplies and Services,External Audit Fees,261,03/04/2017,1704-00323,0.00,85.00,R,Advance Stocks Ltd,No
Http://opendatacommunities.org/id/metropolitan-district-council/leeds,Leeds City Council,30/04/2017,City Development,Libraries  Arts & Heritage,Supplies and Services,External Audit Fees,261,11/04/2017,1704-00324,0.00,90.00,R,Advance Stocks Ltd,No
Http://opendatacommunities.org/id/metropolitan-district-council/leeds,Leeds City Council,30/04/2017,City Development,Recreation,Supplies and Services,External Audit Fees,261,28/04/2017,1704-00325,0.00,235.00,R,Advance Stocks Ltd,No
Http://opendatacommunities.org/id/metropolitan-district-council/leeds,Leeds City Council,30/04/2017,City Development,Recreation,Supplies and Services,External Audit Fees,261,28/04/2017,1704-00326,0.00,85.00,R,Advance Stocks Ltd,No
Http://opendatacommunities.org/id/metropolitan-district-council/leeds,Leeds City Council,30/04/2017,Childrens Services,Safeguarding Targeted & Specialist,Support Services,Legal Disbursements,411,13/04/2017,1704-00327,0.00,170.80,R,Advanced Child Care Assessments Ltd,No
Http://opendatacommunities.org/id/metropolitan-district-council/leeds,Leeds City Council,30/04/2017,Adult Social Care,Social Services Support Services,Employees,Training Costs,71,26/04/2017,1704-00328,0.00,3315.00,R,Advinia Healthcare Ltd,No
Http://opendatacommunities.org/id/metropolitan-district-council/leeds,Leeds City Council as Accountable Body,30/04/2017,Social Services Pooled Budgets,Jcs For People With Learning Disabilitie,Third Party Payments,Residential,580,05/04/2017,1704-00329,0.00,20191.38,R,Advitam Ltd,No
Http://opendatacommunities.org/id/metropolitan-district-council/leeds,Leeds City Council as Accountable Body,30/04/2017,Social Services Pooled Budgets,Jcs For People With Learning Disabilitie,Third Party Payments,Day Centre,564,20/04/2017,1704-00330,0.00,416.35,R,Advitam Ltd,No
Http://opendatacommunities.org/id/metropolitan-district-council/leeds,Leeds City Council,30/04/2017,Adult Social Care,Services For Adults Under 65 Mental/Dis,Third Party Payments,Payments To Voluntary Organisations,561,10/04/2017,1704-00331,0.00,781.96,R,Advonet,No
Http://opendatacommunities.org/id/metropolitan-district-council/leeds,Leeds City Council,30/04/2017,Adult Social Care,Services For Adults Under 65 Mental/Dis,Third Party Payments,Payments To Voluntary Organisations,561,10/04/2017,1704-00332,0.00,8459.06,R,Advonet,No
Http://opendatacommunities.org/id/metropolitan-district-council/leeds,Leeds City Council,30/04/2017,Adult Social Care,Services For Adults Under 65 Mental/Dis,Third Party Payments,Payments To Voluntary Organisations,561,10/04/2017,1704-00333,0.00,8884.99,R,Advonet,No
Http://opendatacommunities.org/id/metropolitan-district-council/leeds,Leeds City Council,30/04/2017,Adult Social Care,Services For Adults Under 65 Mental/Dis,Third Party Payments,Payments To Voluntary Organisations,561,12/04/2017,1704-00334,0.00,10101.23,R,Advonet,No
Http://opendatacommunities.org/id/metropolitan-district-council/leeds,Leeds City Council,30/04/2017,Adult Social Care,Services For Adults Under 65 Mental/Dis,Third Party Payments,Payments To Voluntary Organisations,561,12/04/2017,1704-00335,0.00,631.91,R,Advonet,No
Http://opendatacommunities.org/id/metropolitan-district-council/leeds,Leeds City Council,30/04/2017,Adult Social Care,Services For Adults Under 65 Mental/Dis,Third Party Payments,Payments To Voluntary Organisations,561,12/04/2017,1704-00336,0.00,10534.97,R,Advonet,No
Http://opendatacommunities.org/id/metropolitan-district-council/leeds,Leeds City Council,30/04/2017,Adult Social Care,Services For Adults Under 65 Mental/Dis,Third Party Payments,Payments To Voluntary Organisations,561,12/04/2017,1704-00337,0.00,4961.21,R,Advonet,No
Http://opendatacommunities.org/id/metropolitan-district-council/leeds,Leeds City Council as Accountable Body,30/04/2017,Social Services Pooled Budgets,Jcs For People With Learning Disabilitie,Third Party Payments,Other Agency Services,561,28/04/2017,1704-00338,0.00,9894.18,R,Advonet,No
Http://opendatacommunities.org/id/metropolitan-district-council/leeds,Leeds City Council as Accountable Body,30/04/2017,Social Services Pooled Budgets,Jcs For People With Learning Disabilitie,Third Party Payments,Other Agency Services,561,28/04/2017,1704-00339,0.00,-970.08,R,Advonet,No
Http://opendatacommunities.org/id/metropolitan-district-council/leeds,Leeds City Council as Accountable Body,30/04/2017,Social Services Pooled Budgets,Jcs For People With Learning Disabilitie,Third Party Payments,Other Agency Services,561,28/04/2017,1704-00340,0.00,-1124.33,R,Advonet,No
Http://opendatacommunities.org/id/metropolitan-district-council/leeds,Leeds City Council as Accountable Body,30/04/2017,Social Services Pooled Budgets,Jcs For People With Learning Disabilitie,Third Party Payments,Other Agency Services,561,28/04/2017,1704-00341,0.00,-1027.68,R,Advonet,No
Http://opendatacommunities.org/id/metropolitan-district-council/leeds,Leeds City Council,30/04/2017,Childrens Services,Safeguarding Targeted & Specialist,Support Services,Legal Disbursements,411,24/04/2017,1704-00342,0.00,769.98,R,Afd Medical Services,No
Http://opendatacommunities.org/id/metropolitan-district-council/leeds,Leeds City Council,30/04/2017,Environment & Housing,Hra,Employees,Other Costs,7,07/04/2017,1704-00343,0.00,418634.00,C,Affinity Sutton Homes Ltd,No
Http://opendatacommunities.org/id/metropolitan-district-council/leeds,Leeds City Council,30/04/2017,Adult Social Care,Services For Older People Under 65 P/Dis,Third Party Payments,Home Care,568,04/04/2017,1704-00344,0.00,803.99,R,Affinity Trust,No
Http://opendatacommunities.org/id/metropolitan-district-council/leeds,Leeds City Council,30/04/2017,Adult Social Care,Services For Older People - 65 And Over,Third Party Payments,Home Care,568,04/04/2017,1704-00345,0.00,319.60,R,Affinity Trust,No
Http://opendatacommunities.org/id/metropolitan-district-council/leeds,Leeds City Council,30/04/2017,Adult Social Care,Services For Older People - 65 And Over,Third Party Payments,Home Care,568,04/04/2017,1704-00346,0.00,1076.48,R,Affinity Trust,No
Http://opendatacommunities.org/id/metropolitan-district-council/leeds,Leeds City Council as Accountable Body,30/04/2017,Social Services Pooled Budgets,Jcs For People With Learning Disabilitie,Third Party Payments,Home Care,568,05/04/2017,1704-00347,0.00,1106.16,R,Affinity Trust,No
Http://opendatacommunities.org/id/metropolitan-district-council/leeds,Leeds City Council as Accountable Body,30/04/2017,Social Services Pooled Budgets,Jcs For People With Learning Disabilitie,Third Party Payments,Home Care,568,05/04/2017,1704-00348,0.00,1106.16,R,Affinity Trust,No
Http://opendatacommunities.org/id/metropolitan-district-council/leeds,Leeds City Council,30/04/2017,Adult Social Care,Assessment And Care Management,Third Party Payments,Home Care,568,13/04/2017,1704-00349,0.00,127.84,R,Affinity Trust,No
Http://opendatacommunities.org/id/metropolitan-district-council/leeds,Leeds City Council as Accountable Body,30/04/2017,Social Services Pooled Budgets,Jcs For People With Learning Disabilitie,Third Party Payments,Home Care,568,20/04/2017,1704-00350,0.00,714.00,R,Affinity Trust,No
Http://opendatacommunities.org/id/metropolitan-district-council/leeds,Leeds City Council as Accountable Body,30/04/2017,Social Services Pooled Budgets,Jcs For People With Learning Disabilitie,Third Party Payments,Day Centre,564,20/04/2017,1704-00351,0.00,416.64,R,Affinity Trust,No
Http://opendatacommunities.org/id/metropolitan-district-council/leeds,Leeds City Council as Accountable Body,30/04/2017,Social Services Pooled Budgets,Jcs For People With Learning Disabilitie,Third Party Payments,Home Care,568,20/04/2017,1704-00352,0.00,767.04,R,Affinity Trust,No
Http://opendatacommunities.org/id/metropolitan-district-council/leeds,Leeds City Council as Accountable Body,30/04/2017,Social Services Pooled Budgets,Jcs For People With Learning Disabilitie,Third Party Payments,Home Care,568,20/04/2017,1704-00353,0.00,1518.00,R,Affinity Trust,No
Http://opendatacommunities.org/id/metropolitan-district-council/leeds,Leeds City Council as Accountable Body,30/04/2017,Social Services Pooled Budgets,Jcs For People With Learning Disabilitie,Third Party Payments,Home Care,568,20/04/2017,1704-00354,0.00,1211.04,R,Affinity Trust,No
Http://opendatacommunities.org/id/metropolitan-district-council/leeds,Leeds City Council as Accountable Body,30/04/2017,Social Services Pooled Budgets,Jcs For People With Learning Disabilitie,Third Party Payments,Home Care,568,20/04/2017,1704-00355,0.00,1246.44,R,Affinity Trust,No
Http://opendatacommunities.org/id/metropolitan-district-council/leeds,Leeds City Council as Accountable Body,30/04/2017,Social Services Pooled Budgets,Jcs For People With Learning Disabilitie,Third Party Payments,Home Care,568,20/04/2017,1704-00356,0.00,383.52,R,Affinity Trust,No
Http://opendatacommunities.org/id/metropolitan-district-council/leeds,Leeds City Council as Accountable Body,30/04/2017,Social Services Pooled Budgets,Jcs For People With Learning Disabilitie,Third Party Payments,Home Care,568,20/04/2017,1704-00357,0.00,2508.86,R,Affinity Trust,No
Http://opendatacommunities.org/id/metropolitan-district-council/leeds,Leeds City Council as Accountable Body,30/04/2017,Social Services Pooled Budgets,Jcs For People With Learning Disabilitie,Third Party Payments,Home Care,568,20/04/2017,1704-00358,0.00,383.52,R,Affinity Trust,No
Http://opendatacommunities.org/id/metropolitan-district-council/leeds,Leeds City Council as Accountable Body,30/04/2017,Social Services Pooled Budgets,Jcs For People With Learning Disabilitie,Third Party Payments,Home Care,568,20/04/2017,1704-00359,0.00,2276.60,R,Affinity Trust,No
Http://opendatacommunities.org/id/metropolitan-district-council/leeds,Leeds City Council as Accountable Body,30/04/2017,Social Services Pooled Budgets,Jcs For People With Learning Disabilitie,Third Party Payments,Day Centre,564,20/04/2017,1704-00360,0.00,1440.00,R,Affinity Trust,No
Http://opendatacommunities.org/id/metropolitan-district-council/leeds,Leeds City Council as Accountable Body,30/04/2017,Social Services Pooled Budgets,Jcs For People With Learning Disabilitie,Third Party Payments,Home Care,568,20/04/2017,1704-00361,0.00,1560.00,R,Affinity Trust,No
Http://opendatacommunities.org/id/metropolitan-district-council/leeds,Leeds City Council as Accountable Body,30/04/2017,Social Services Pooled Budgets,Jcs For People With Learning Disabilitie,Third Party Payments,Home Care,568,20/04/2017,1704-00362,0.00,1006.65,R,Affinity Trust,No
Http://opendatacommunities.org/id/metropolitan-district-council/leeds,Leeds City Council as Accountable Body,30/04/2017,Social Services Pooled Budgets,Jcs For People With Learning Disabilitie,Third Party Payments,Home Care,568,20/04/2017,1704-00363,0.00,2940.23,R,Affinity Trust,No
Http://opendatacommunities.org/id/metropolitan-district-council/leeds,Leeds City Council as Accountable Body,30/04/2017,Social Services Pooled Budgets,Jcs For People With Learning Disabilitie,Third Party Payments,Home Care,568,20/04/2017,1704-00364,0.00,1532.40,R,Affinity Trust,No
Http://opendatacommunities.org/id/metropolitan-district-council/leeds,Leeds City Council as Accountable Body,30/04/2017,Social Services Pooled Budgets,Jcs For People With Learning Disabilitie,Third Party Payments,Day Centre,564,20/04/2017,1704-00365,0.00,871.52,R,Affinity Trust,No
Http://opendatacommunities.org/id/metropolitan-district-council/leeds,Leeds City Council as Accountable Body,30/04/2017,Social Services Pooled Budgets,Jcs For People With Learning Disabilitie,Third Party Payments,Home Care,568,20/04/2017,1704-00366,0.00,525.72,R,Affinity Trust,No
Http://opendatacommunities.org/id/metropolitan-district-council/leeds,Leeds City Council as Accountable Body,30/04/2017,Social Services Pooled Budgets,Jcs For People With Learning Disabilitie,Third Party Payments,Day Centre,564,20/04/2017,1704-00367,0.00,2701.45,R,Affinity Trust,No
Http://opendatacommunities.org/id/metropolitan-district-council/leeds,Leeds City Council as Accountable Body,30/04/2017,Social Services Pooled Budgets,Jcs For People With Learning Disabilitie,Third Party Payments,Home Care,568,20/04/2017,1704-00368,0.00,1273.86,R,Affinity Trust,No
Http://opendatacommunities.org/id/metropolitan-district-council/leeds,Leeds City Council as Accountable Body,30/04/2017,Social Services Pooled Budgets,Jcs For People With Learning Disabilitie,Third Party Payments,Home Care,568,20/04/2017,1704-00369,0.00,703.92,R,Affinity Trust,No
Http://opendatacommunities.org/id/metropolitan-district-council/leeds,Leeds City Council as Accountable Body,30/04/2017,Social Services Pooled Budgets,Jcs For People With Learning Disabilitie,Third Party Payments,Home Care,568,20/04/2017,1704-00370,0.00,1077.77,R,Affinity Trust,No
Http://opendatacommunities.org/id/metropolitan-district-council/leeds,Leeds City Council as Accountable Body,30/04/2017,Social Services Pooled Budgets,Jcs For People With Learning Disabilitie,Third Party Payments,Home Care,568,20/04/2017,1704-00371,0.00,1726.65,R,Affinity Trust,No
Http://opendatacommunities.org/id/metropolitan-district-council/leeds,Leeds City Council as Accountable Body,30/04/2017,Social Services Pooled Budgets,Jcs For People With Learning Disabilitie,Third Party Payments,Home Care,568,20/04/2017,1704-00372,0.00,838.00,R,Affinity Trust,No
Http://opendatacommunities.org/id/metropolitan-district-council/leeds,Leeds City Council as Accountable Body,30/04/2017,Social Services Pooled Budgets,Jcs For People With Learning Disabilitie,Third Party Payments,Home Care,568,20/04/2017,1704-00373,0.00,990.76,R,Affinity Trust,No
Http://opendatacommunities.org/id/metropolitan-district-council/leeds,Leeds City Council as Accountable Body,30/04/2017,Social Services Pooled Budgets,Jcs For People With Learning Disabilitie,Third Party Payments,Home Care,568,20/04/2017,1704-00374,0.00,1258.43,R,Affinity Trust,No
Http://opendatacommunities.org/id/metropolitan-district-council/leeds,Leeds City Council as Accountable Body,30/04/2017,Social Services Pooled Budgets,Jcs For People With Learning Disabilitie,Third Party Payments,Home Care,568,20/04/2017,1704-00375,0.00,300.00,R,Affinity Trust,No
Http://opendatacommunities.org/id/metropolitan-district-council/leeds,Leeds City Council as Accountable Body,30/04/2017,Social Services Pooled Budgets,Jcs For People With Learning Disabilitie,Third Party Payments,Home Care,568,20/04/2017,1704-00376,0.00,1342.32,R,Affinity Trust,No
Http://opendatacommunities.org/id/metropolitan-district-council/leeds,Leeds City Council as Accountable Body,30/04/2017,Social Services Pooled Budgets,Jcs For People With Learning Disabilitie,Third Party Payments,Home Care,568,20/04/2017,1704-00377,0.00,267.58,R,Affinity Trust,No
Http://opendatacommunities.org/id/metropolitan-district-council/leeds,Leeds City Council as Accountable Body,30/04/2017,Social Services Pooled Budgets,Jcs For People With Learning Disabilitie,Third Party Payments,Home Care,568,20/04/2017,1704-00378,0.00,982.77,R,Affinity Trust,No
Http://opendatacommunities.org/id/metropolitan-district-council/leeds,Leeds City Council as Accountable Body,30/04/2017,Social Services Pooled Budgets,Jcs For People With Learning Disabilitie,Third Party Payments,Home Care,568,20/04/2017,1704-00379,0.00,902.87,R,Affinity Trust,No
Http://opendatacommunities.org/id/metropolitan-district-council/leeds,Leeds City Council as Accountable Body,30/04/2017,Social Services Pooled Budgets,Jcs For People With Learning Disabilitie,Third Party Payments,Home Care,568,20/04/2017,1704-00380,0.00,300.00,R,Affinity Trust,No
Http://opendatacommunities.org/id/metropolitan-district-council/leeds,Leeds City Council as Accountable Body,30/04/2017,Social Services Pooled Budgets,Jcs For People With Learning Disabilitie,Third Party Payments,Home Care,568,20/04/2017,1704-00381,0.00,1070.66,R,Affinity Trust,No
Http://opendatacommunities.org/id/metropolitan-district-council/leeds,Leeds City Council as Accountable Body,30/04/2017,Social Services Pooled Budgets,Jcs For People With Learning Disabilitie,Third Party Payments,Home Care,568,20/04/2017,1704-00382,0.00,714.00,R,Affinity Trust,No
Http://opendatacommunities.org/id/metropolitan-district-council/leeds,Leeds City Council as Accountable Body,30/04/2017,Social Services Pooled Budgets,Jcs For People With Learning Disabilitie,Third Party Payments,Day Centre,564,20/04/2017,1704-00383,0.00,312.48,R,Affinity Trust,No
Http://opendatacommunities.org/id/metropolitan-district-council/leeds,Leeds City Council as Accountable Body,30/04/2017,Social Services Pooled Budgets,Jcs For People With Learning Disabilitie,Third Party Payments,Home Care,568,20/04/2017,1704-00384,0.00,767.04,R,Affinity Trust,No
Http://opendatacommunities.org/id/metropolitan-district-council/leeds,Leeds City Council as Accountable Body,30/04/2017,Social Services Pooled Budgets,Jcs For People With Learning Disabilitie,Third Party Payments,Home Care,568,20/04/2017,1704-00385,0.00,1386.00,R,Affinity Trust,No
Http://opendatacommunities.org/id/metropolitan-district-council/leeds,Leeds City Council as Accountable Body,30/04/2017,Social Services Pooled Budgets,Jcs For People With Learning Disabilitie,Third Party Payments,Home Care,568,20/04/2017,1704-00386,0.00,1211.04,R,Affinity Trust,No
Http://opendatacommunities.org/id/metropolitan-district-council/leeds,Leeds City Council as Accountable Body,30/04/2017,Social Services Pooled Budgets,Jcs For People With Learning Disabilitie,Third Party Payments,Home Care,568,20/04/2017,1704-00387,0.00,1294.38,R,Affinity Trust,No
Http://opendatacommunities.org/id/metropolitan-district-council/leeds,Leeds City Council as Accountable Body,30/04/2017,Social Services Pooled Budgets,Jcs For People With Learning Disabilitie,Third Party Payments,Home Care,568,20/04/2017,1704-00388,0.00,639.20,R,Affinity Trust,No
Http://opendatacommunities.org/id/metropolitan-district-council/leeds,Leeds City Council as Accountable Body,30/04/2017,Social Services Pooled Budgets,Jcs For People With Learning Disabilitie,Third Party Payments,Home Care,568,20/04/2017,1704-00389,0.00,204.00,R,Affinity Trust,No
Http://opendatacommunities.org/id/metropolitan-district-council/leeds,Leeds City Council as Accountable Body,30/04/2017,Social Services Pooled Budgets,Jcs For People With Learning Disabilitie,Third Party Payments,Home Care,568,20/04/2017,1704-00390,0.00,1006.74,R,Affinity Trust,No
Http://opendatacommunities.org/id/metropolitan-district-council/leeds,Leeds City Council as Accountable Body,30/04/2017,Social Services Pooled Budgets,Jcs For People With Learning Disabilitie,Third Party Payments,Home Care,568,20/04/2017,1704-00391,0.00,2940.32,R,Affinity Trust,No
Http://opendatacommunities.org/id/metropolitan-district-council/leeds,Leeds City Council as Accountable Body,30/04/2017,Social Services Pooled Budgets,Jcs For People With Learning Disabilitie,Third Party Payments,Home Care,568,20/04/2017,1704-00392,0.00,383.52,R,Affinity Trust,No
Http://opendatacommunities.org/id/metropolitan-district-council/leeds,Leeds City Council as Accountable Body,30/04/2017,Social Services Pooled Budgets,Jcs For People With Learning Disabilitie,Third Party Payments,Home Care,568,20/04/2017,1704-00393,0.00,255.68,R,Affinity Trust,No
Http://opendatacommunities.org/id/metropolitan-district-council/leeds,Leeds City Council as Accountable Body,30/04/2017,Social Services Pooled Budgets,Jcs For People With Learning Disabilitie,Third Party Payments,Home Care,568,20/04/2017,1704-00394,0.00,495.38,R,Affinity Trust,No
Http://opendatacommunities.org/id/metropolitan-district-council/leeds,Leeds City Council as Accountable Body,30/04/2017,Social Services Pooled Budgets,Jcs For People With Learning Disabilitie,Third Party Payments,Home Care,568,20/04/2017,1704-00395,0.00,736.65,R,Affinity Trust,No
Http://opendatacommunities.org/id/metropolitan-district-council/leeds,Leeds City Council as Accountable Body,30/04/2017,Social Services Pooled Budgets,Jcs For People With Learning Disabilitie,Third Party Payments,Home Care,568,20/04/2017,1704-00396,0.00,2435.79,R,Affinity Trust,No
Http://opendatacommunities.org/id/metropolitan-district-council/leeds,Leeds City Council as Accountable Body,30/04/2017,Social Services Pooled Budgets,Jcs For People With Learning Disabilitie,Third Party Payments,Day Centre,564,20/04/2017,1704-00397,0.00,469.28,R,Affinity Trust,No
Http://opendatacommunities.org/id/metropolitan-district-council/leeds,Leeds City Council as Accountable Body,30/04/2017,Social Services Pooled Budgets,Jcs For People With Learning Disabilitie,Third Party Payments,Home Care,568,20/04/2017,1704-00398,0.00,404.40,R,Affinity Trust,No
Http://opendatacommunities.org/id/metropolitan-district-council/leeds,Leeds City Council as Accountable Body,30/04/2017,Social Services Pooled Budgets,Jcs For People With Learning Disabilitie,Third Party Payments,Day Centre,564,20/04/2017,1704-00399,0.00,2511.03,R,Affinity Trust,No
Http://opendatacommunities.org/id/metropolitan-district-council/leeds,Leeds City Council as Accountable Body,30/04/2017,Social Services Pooled Budgets,Jcs For People With Learning Disabilitie,Third Party Payments,Home Care,568,20/04/2017,1704-00400,0.00,1007.00,R,Affinity Trust,No
Http://opendatacommunities.org/id/metropolitan-district-council/leeds,Leeds City Council as Accountable Body,30/04/2017,Social Services Pooled Budgets,Jcs For People With Learning Disabilitie,Third Party Payments,Home Care,568,20/04/2017,1704-00401,0.00,553.08,R,Affinity Trust,No
Http://opendatacommunities.org/id/metropolitan-district-council/leeds,Leeds City Council as Accountable Body,30/04/2017,Social Services Pooled Budgets,Jcs For People With Learning Disabilitie,Third Party Payments,Home Care,568,20/04/2017,1704-00402,0.00,965.62,R,Affinity Trust,No
Http://opendatacommunities.org/id/metropolitan-district-council/leeds,Leeds City Council as Accountable Body,30/04/2017,Social Services Pooled Budgets,Jcs For People With Learning Disabilitie,Third Party Payments,Home Care,568,20/04/2017,1704-00403,0.00,901.98,R,Affinity Trust,No
Http://opendatacommunities.org/id/metropolitan-district-council/leeds,Leeds City Council as Accountable Body,30/04/2017,Social Services Pooled Budgets,Jcs For People With Learning Disabilitie,Third Party Payments,Home Care,568,20/04/2017,1704-00404,0.00,921.80,R,Affinity Trust,No
Http://opendatacommunities.org/id/metropolitan-district-council/leeds,Leeds City Council as Accountable Body,30/04/2017,Social Services Pooled Budgets,Jcs For People With Learning Disabilitie,Third Party Payments,Home Care,568,20/04/2017,1704-00405,0.00,270.00,R,Affinity Trust,No
Http://opendatacommunities.org/id/metropolitan-district-council/leeds,Leeds City Council,30/04/2017,Adult Social Care,Services For Older People Under 65 P/Dis,Third Party Payments,Home Care,568,24/04/2017,1704-00406,0.00,526.68,R,Affinity Trust,No
Http://opendatacommunities.org/id/metropolitan-district-council/leeds,Leeds City Council,30/04/2017,Adult Social Care,Services For Older People Under 65 P/Dis,Third Party Payments,Home Care,568,24/04/2017,1704-00407,0.00,134.56,R,Affinity Trust,No
Http://opendatacommunities.org/id/metropolitan-district-council/leeds,Leeds City Council as Accountable Body,30/04/2017,Social Services Pooled Budgets,Jcs For People With Learning Disabilitie,Third Party Payments,Home Care,568,28/04/2017,1704-00408,0.00,306.48,R,Affinity Trust,No
Http://opendatacommunities.org/id/metropolitan-district-council/leeds,Leeds City Council as Accountable Body,30/04/2017,Social Services Pooled Budgets,Jcs For People With Learning Disabilitie,Third Party Payments,Home Care,568,28/04/2017,1704-00409,0.00,824.18,R,Affinity Trust,No
Http://opendatacommunities.org/id/metropolitan-district-council/leeds,Leeds City Council as Accountable Body,30/04/2017,Social Services Pooled Budgets,Jcs For People With Learning Disabilitie,Third Party Payments,Home Care,568,28/04/2017,1704-00410,0.00,767.97,R,Affinity Trust,No
Http://opendatacommunities.org/id/metropolitan-district-council/leeds,Leeds City Council as Accountable Body,30/04/2017,Social Services Pooled Budgets,Jcs For People With Learning Disabilitie,Third Party Payments,Day Centre,564,28/04/2017,1704-00411,0.00,1234.62,R,Affinity Trust,No
Http://opendatacommunities.org/id/metropolitan-district-council/leeds,Leeds City Council as Accountable Body,30/04/2017,Social Services Pooled Budgets,Jcs For People With Learning Disabilitie,Third Party Payments,Home Care,568,28/04/2017,1704-00412,0.00,1050.00,R,Affinity Trust,No
Http://opendatacommunities.org/id/metropolitan-district-council/leeds,Leeds City Council as Accountable Body,30/04/2017,Social Services Pooled Budgets,Jcs For People With Learning Disabilitie,Third Party Payments,Home Care,568,28/04/2017,1704-00413,0.00,2752.80,R,Affinity Trust,No
Http://opendatacommunities.org/id/metropolitan-district-council/leeds,Leeds City Council as Accountable Body,30/04/2017,Social Services Pooled Budgets,Jcs For People With Learning Disabilitie,Third Party Payments,Day Centre,564,28/04/2017,1704-00414,0.00,714.78,R,Affinity Trust,No
Http://opendatacommunities.org/id/metropolitan-district-council/leeds,Leeds City Council as Accountable Body,30/04/2017,Social Services Pooled Budgets,Jcs For People With Learning Disabilitie,Third Party Payments,Day Centre,564,28/04/2017,1704-00415,0.00,2346.40,R,Affinity Trust,No
Http://opendatacommunities.org/id/metropolitan-district-council/leeds,Leeds City Council as Accountable Body,30/04/2017,Social Services Pooled Budgets,Jcs For People With Learning Disabilitie,Third Party Payments,Home Care,568,28/04/2017,1704-00416,0.00,1206.72,R,Affinity Trust,No
Http://opendatacommunities.org/id/metropolitan-district-council/leeds,Leeds City Council as Accountable Body,30/04/2017,Social Services Pooled Budgets,Jcs For People With Learning Disabilitie,Third Party Payments,Home Care,568,28/04/2017,1704-00417,0.00,287.64,R,Affinity Trust,No
Http://opendatacommunities.org/id/metropolitan-district-council/leeds,Leeds City Council as Accountable Body,30/04/2017,Social Services Pooled Budgets,Jcs For People With Learning Disabilitie,Third Party Payments,Home Care,568,28/04/2017,1704-00418,0.00,75.00,R,Affinity Trust,No
Http://opendatacommunities.org/id/metropolitan-district-council/leeds,Leeds City Council as Accountable Body,30/04/2017,Social Services Pooled Budgets,Jcs For People With Learning Disabilitie,Third Party Payments,Home Care,568,28/04/2017,1704-00419,0.00,255.68,R,Affinity Trust,No
Http://opendatacommunities.org/id/metropolitan-district-council/leeds,Leeds City Council as Accountable Body,30/04/2017,Social Services Pooled Budgets,Jcs For People With Learning Disabilitie,Third Party Payments,Home Care,568,28/04/2017,1704-00420,0.00,408.64,R,Affinity Trust,No
Http://opendatacommunities.org/id/metropolitan-district-council/leeds,Leeds City Council as Accountable Body,30/04/2017,Social Services Pooled Budgets,Jcs For People With Learning Disabilitie,Third Party Payments,Home Care,568,28/04/2017,1704-00421,0.00,941.92,R,Affinity Trust,No
Http://opendatacommunities.org/id/metropolitan-district-council/leeds,Leeds City Council as Accountable Body,30/04/2017,Social Services Pooled Budgets,Jcs For People With Learning Disabilitie,Third Party Payments,Home Care,568,28/04/2017,1704-00422,0.00,301.68,R,Affinity Trust,No
Http://opendatacommunities.org/id/metropolitan-district-council/leeds,Leeds City Council as Accountable Body,30/04/2017,Social Services Pooled Budgets,Jcs For People With Learning Disabilitie,Third Party Payments,Day Centre,564,28/04/2017,1704-00423,0.00,404.42,R,Affinity Trust,No
Http://opendatacommunities.org/id/metropolitan-district-council/leeds,Leeds City Council as Accountable Body,30/04/2017,Social Services Pooled Budgets,Jcs For People With Learning Disabilitie,Third Party Payments,Day Centre,564,28/04/2017,1704-00424,0.00,1994.44,R,Affinity Trust,No
Http://opendatacommunities.org/id/metropolitan-district-council/leeds,Leeds City Council as Accountable Body,30/04/2017,Social Services Pooled Budgets,Jcs For People With Learning Disabilitie,Third Party Payments,Day Centre,564,28/04/2017,1704-00425,0.00,1111.32,R,Affinity Trust,No
Http://opendatacommunities.org/id/metropolitan-district-council/leeds,Leeds City Council as Accountable Body,30/04/2017,Social Services Pooled Budgets,Jcs For People With Learning Disabilitie,Third Party Payments,Home Care,568,28/04/2017,1704-00426,0.00,966.79,R,Affinity Trust,No
Http://opendatacommunities.org/id/metropolitan-district-council/leeds,Leeds City Council as Accountable Body,30/04/2017,Social Services Pooled Budgets,Jcs For People With Learning Disabilitie,Third Party Payments,Home Care,568,28/04/2017,1704-00427,0.00,1150.56,R,Affinity Trust,No
Http://opendatacommunities.org/id/metropolitan-district-council/leeds,Leeds City Council as Accountable Body,30/04/2017,Social Services Pooled Budgets,Jcs For People With Learning Disabilitie,Third Party Payments,Home Care,568,28/04/2017,1704-00428,0.00,300.00,R,Affinity Trust,No
Http://opendatacommunities.org/id/metropolitan-district-council/leeds,Leeds City Council as Accountable Body,30/04/2017,Social Services Pooled Budgets,Jcs For People With Learning Disabilitie,Third Party Payments,Home Care,568,28/04/2017,1704-00429,0.00,1342.32,R,Affinity Trust,No
Http://opendatacommunities.org/id/metropolitan-district-council/leeds,Leeds City Council as Accountable Body,30/04/2017,Social Services Pooled Budgets,Jcs For People With Learning Disabilitie,Third Party Payments,Home Care,568,28/04/2017,1704-00430,0.00,447.44,R,Affinity Trust,No
Http://opendatacommunities.org/id/metropolitan-district-council/leeds,Leeds City Council as Accountable Body,30/04/2017,Social Services Pooled Budgets,Jcs For People With Learning Disabilitie,Third Party Payments,Home Care,568,28/04/2017,1704-00431,0.00,816.00,R,Affinity Trust,No
Http://opendatacommunities.org/id/metropolitan-district-council/leeds,Leeds City Council as Accountable Body,30/04/2017,Social Services Pooled Budgets,Jcs For People With Learning Disabilitie,Third Party Payments,Day Centre,564,28/04/2017,1704-00432,0.00,416.64,R,Affinity Trust,No
Http://opendatacommunities.org/id/metropolitan-district-council/leeds,Leeds City Council as Accountable Body,30/04/2017,Social Services Pooled Budgets,Jcs For People With Learning Disabilitie,Third Party Payments,Home Care,568,28/04/2017,1704-00433,0.00,767.04,R,Affinity Trust,No
Http://opendatacommunities.org/id/metropolitan-district-council/leeds,Leeds City Council as Accountable Body,30/04/2017,Social Services Pooled Budgets,Jcs For People With Learning Disabilitie,Third Party Payments,Home Care,568,28/04/2017,1704-00434,0.00,1518.00,R,Affinity Trust,No
Http://opendatacommunities.org/id/metropolitan-district-council/leeds,Leeds City Council as Accountable Body,30/04/2017,Social Services Pooled Budgets,Jcs For People With Learning Disabilitie,Third Party Payments,Home Care,568,28/04/2017,1704-00435,0.00,1211.04,R,Affinity Trust,No
Http://opendatacommunities.org/id/metropolitan-district-council/leeds,Leeds City Council as Accountable Body,30/04/2017,Social Services Pooled Budgets,Jcs For People With Learning Disabilitie,Third Party Payments,Home Care,568,28/04/2017,1704-00436,0.00,1518.10,R,Affinity Trust,No
Http://opendatacommunities.org/id/metropolitan-district-council/leeds,Leeds City Council as Accountable Body,30/04/2017,Social Services Pooled Budgets,Jcs For People With Learning Disabilitie,Third Party Payments,Home Care,568,28/04/2017,1704-00437,0.00,383.52,R,Affinity Trust,No
Http://opendatacommunities.org/id/metropolitan-district-council/leeds,Leeds City Council as Accountable Body,30/04/2017,Social Services Pooled Budgets,Jcs For People With Learning Disabilitie,Third Party Payments,Home Care,568,28/04/2017,1704-00438,0.00,639.20,R,Affinity Trust,No
Http://opendatacommunities.org/id/metropolitan-district-council/leeds,Leeds City Council as Accountable Body,30/04/2017,Social Services Pooled Budgets,Jcs For People With Learning Disabilitie,Third Party Payments,Home Care,568,28/04/2017,1704-00439,0.00,408.00,R,Affinity Trust,No
Http://opendatacommunities.org/id/metropolitan-district-council/leeds,Leeds City Council as Accountable Body,30/04/2017,Social Services Pooled Budgets,Jcs For People With Learning Disabilitie,Third Party Payments,Home Care,568,28/04/2017,1704-00440,0.00,1118.60,R,Affinity Trust,No
Http://opendatacommunities.org/id/metropolitan-district-council/leeds,Leeds City Council as Accountable Body,30/04/2017,Social Services Pooled Budgets,Jcs For People With Learning Disabilitie,Third Party Payments,Home Care,568,28/04/2017,1704-00441,0.00,2924.34,R,Affinity Trust,No
Http://opendatacommunities.org/id/metropolitan-district-council/leeds,Leeds City Council as Accountable Body,30/04/2017,Social Services Pooled Budgets,Jcs For People With Learning Disabilitie,Third Party Payments,Home Care,568,28/04/2017,1704-00442,0.00,255.68,R,Affinity Trust,No
Http://opendatacommunities.org/id/metropolitan-district-council/leeds,Leeds City Council as Accountable Body,30/04/2017,Social Services Pooled Budgets,Jcs For People With Learning Disabilitie,Third Party Payments,Home Care,568,28/04/2017,1704-00443,0.00,204.32,R,Affinity Trust,No
Http://opendatacommunities.org/id/metropolitan-district-council/leeds,Leeds City Council as Accountable Body,30/04/2017,Social Services Pooled Budgets,Jcs For People With Learning Disabilitie,Third Party Payments,Home Care,568,28/04/2017,1704-00444,0.00,941.92,R,Affinity Trust,No
Http://opendatacommunities.org/id/metropolitan-district-council/leeds,Leeds City Council as Accountable Body,30/04/2017,Social Services Pooled Budgets,Jcs For People With Learning Disabilitie,Third Party Payments,Home Care,568,28/04/2017,1704-00445,0.00,255.68,R,Affinity Trust,No
Http://opendatacommunities.org/id/metropolitan-district-council/leeds,Leeds City Council as Accountable Body,30/04/2017,Social Services Pooled Budgets,Jcs For People With Learning Disabilitie,Third Party Payments,Home Care,568,28/04/2017,1704-00446,0.00,511.36,R,Affinity Trust,No
Http://opendatacommunities.org/id/metropolitan-district-council/leeds,Leeds City Council as Accountable Body,30/04/2017,Social Services Pooled Budgets,Jcs For People With Learning Disabilitie,Third Party Payments,Home Care,568,28/04/2017,1704-00447,0.00,440.98,R,Affinity Trust,No
Http://opendatacommunities.org/id/metropolitan-district-council/leeds,Leeds City Council as Accountable Body,30/04/2017,Social Services Pooled Budgets,Jcs For People With Learning Disabilitie,Third Party Payments,Day Centre,564,28/04/2017,1704-00448,0.00,1440.00,R,Affinity Trust,No
Http://opendatacommunities.org/id/metropolitan-district-council/leeds,Leeds City Council as Accountable Body,30/04/2017,Social Services Pooled Budgets,Jcs For People With Learning Disabilitie,Third Party Payments,Day Centre,564,28/04/2017,1704-00449,0.00,780.66,R,Affinity Trust,No
Http://opendatacommunities.org/id/metropolitan-district-council/leeds,Leeds City Council as Accountable Body,30/04/2017,Social Services Pooled Budgets,Jcs For People With Learning Disabilitie,Third Party Payments,Home Care,568,28/04/2017,1704-00450,0.00,1050.00,R,Affinity Trust,No
Http://opendatacommunities.org/id/metropolitan-district-council/leeds,Leeds City Council as Accountable Body,30/04/2017,Social Services Pooled Budgets,Jcs For People With Learning Disabilitie,Third Party Payments,Home Care,568,28/04/2017,1704-00451,0.00,742.86,R,Affinity Trust,No
Http://opendatacommunities.org/id/metropolitan-district-council/leeds,Leeds City Council as Accountable Body,30/04/2017,Social Services Pooled Budgets,Jcs For People With Learning Disabilitie,Third Party Payments,Home Care,568,28/04/2017,1704-00452,0.00,1560.00,R,Affinity Trust,No
Http://opendatacommunities.org/id/metropolitan-district-council/leeds,Leeds City Council as Accountable Body,30/04/2017,Social Services Pooled Budgets,Jcs For People With Learning Disabilitie,Third Party Payments,Home Care,568,28/04/2017,1704-00453,0.00,2722.80,R,Affinity Trust,No
Http://opendatacommunities.org/id/metropolitan-district-council/leeds,Leeds City Council as Accountable Body,30/04/2017,Social Services Pooled Budgets,Jcs For People With Learning Disabilitie,Third Party Payments,Home Care,568,28/04/2017,1704-00454,0.00,1731.09,R,Affinity Trust,No
Http://opendatacommunities.org/id/metropolitan-district-council/leeds,Leeds City Council as Accountable Body,30/04/2017,Social Services Pooled Budgets,Jcs For People With Learning Disabilitie,Third Party Payments,Home Care,568,28/04/2017,1704-00455,0.00,991.98,R,Affinity Trust,No
Http://opendatacommunities.org/id/metropolitan-district-council/leeds,Leeds City Council as Accountable Body,30/04/2017,Social Services Pooled Budgets,Jcs For People With Learning Disabilitie,Third Party Payments,Home Care,568,28/04/2017,1704-00456,0.00,3283.70,R,Affinity Trust,No
Http://opendatacommunities.org/id/metropolitan-district-council/leeds,Leeds City Council as Accountable Body,30/04/2017,Social Services Pooled Budgets,Jcs For People With Learning Disabilitie,Third Party Payments,Day Centre,564,28/04/2017,1704-00457,0.00,838.00,R,Affinity Trust,No
Http://opendatacommunities.org/id/metropolitan-district-council/leeds,Leeds City Council as Accountable Body,30/04/2017,Social Services Pooled Budgets,Jcs For People With Learning Disabilitie,Third Party Payments,Home Care,568,28/04/2017,1704-00458,0.00,525.72,R,Affinity Trust,No
Http://opendatacommunities.org/id/metropolitan-district-council/leeds,Leeds City Council as Accountable Body,30/04/2017,Social Services Pooled Budgets,Jcs For People With Learning Disabilitie,Third Party Payments,Day Centre,564,28/04/2017,1704-00459,0.00,3306.85,R,Affinity Trust,No
Http://opendatacommunities.org/id/metropolitan-district-council/leeds,Leeds City Council as Accountable Body,30/04/2017,Social Services Pooled Budgets,Jcs For People With Learning Disabilitie,Third Party Payments,Home Care,568,28/04/2017,1704-00460,0.00,1421.62,R,Affinity Trust,No
Http://opendatacommunities.org/id/metropolitan-district-council/leeds,Leeds City Council as Accountable Body,30/04/2017,Social Services Pooled Budgets,Jcs For People With Learning Disabilitie,Third Party Payments,Home Care,568,28/04/2017,1704-00461,0.00,402.24,R,Affinity Trust,No
Http://opendatacommunities.org/id/metropolitan-district-council/leeds,Leeds City Council as Accountable Body,30/04/2017,Social Services Pooled Budgets,Jcs For People With Learning Disabilitie,Third Party Payments,Home Care,568,28/04/2017,1704-00462,0.00,1270.08,R,Affinity Trust,No
Http://opendatacommunities.org/id/metropolitan-district-council/leeds,Leeds City Council as Accountable Body,30/04/2017,Social Services Pooled Budgets,Jcs For People With Learning Disabilitie,Third Party Payments,Home Care,568,28/04/2017,1704-00463,0.00,1278.63,R,Affinity Trust,No
Http://opendatacommunities.org/id/metropolitan-district-council/leeds,Leeds City Council as Accountable Body,30/04/2017,Social Services Pooled Budgets,Jcs For People With Learning Disabilitie,Third Party Payments,Home Care,568,28/04/2017,1704-00464,0.00,1005.60,R,Affinity Trust,No
Http://opendatacommunities.org/id/metropolitan-district-council/leeds,Leeds City Council as Accountable Body,30/04/2017,Social Services Pooled Budgets,Jcs For People With Learning Disabilitie,Third Party Payments,Home Care,568,28/04/2017,1704-00465,0.00,360.00,R,Affinity Trust,No
Http://opendatacommunities.org/id/metropolitan-district-council/leeds,Leeds City Council as Accountable Body,30/04/2017,Social Services Pooled Budgets,Jcs For People With Learning Disabilitie,Third Party Payments,Home Care,568,28/04/2017,1704-00466,0.00,518.80,R,Affinity Trust,No
Http://opendatacommunities.org/id/metropolitan-district-council/leeds,Leeds City Council as Accountable Body,30/04/2017,Social Services Pooled Budgets,Jcs For People With Learning Disabilitie,Third Party Payments,Home Care,568,28/04/2017,1704-00467,0.00,301.68,R,Affinity Trust,No
Http://opendatacommunities.org/id/metropolitan-district-council/leeds,Leeds City Council as Accountable Body,30/04/2017,Social Services Pooled Budgets,Jcs For People With Learning Disabilitie,Third Party Payments,Day Centre,564,28/04/2017,1704-00468,0.00,648.95,R,Affinity Trust,No
Http://opendatacommunities.org/id/metropolitan-district-council/leeds,Leeds City Council as Accountable Body,30/04/2017,Social Services Pooled Budgets,Jcs For People With Learning Disabilitie,Third Party Payments,Day Centre,564,28/04/2017,1704-00469,0.00,2346.40,R,Affinity Trust,No
Http://opendatacommunities.org/id/metropolitan-district-council/leeds,Leeds City Council as Accountable Body,30/04/2017,Social Services Pooled Budgets,Jcs For People With Learning Disabilitie,Third Party Payments,Day Centre,564,28/04/2017,1704-00470,0.00,112.31,R,Affinity Trust,No
Http://opendatacommunities.org/id/metropolitan-district-council/leeds,Leeds City Council,30/04/2017,Adult Social Care,Services For Older People Under 65 P/Dis,Third Party Payments,Home Care,568,28/04/2017,1704-00471,0.00,1086.64,R,Affinity Trust,No
Http://opendatacommunities.org/id/metropolitan-district-council/leeds,Leeds City Council as Accountable Body,30/04/2017,Social Services Pooled Budgets,Jcs For People With Learning Disabilitie,Third Party Payments,Sheltered Accommodation,569,05/04/2017,1704-00472,0.00,127409.32,R,Affinity Trust North Divisional Office,No
Http://opendatacommunities.org/id/metropolitan-district-council/leeds,Leeds City Council,30/04/2017,Adult Social Care,Social Services Support Services,Employees,Training Costs,71,26/04/2017,1704-00473,0.00,900.00,R,Affleck Care Ltd,No
Http://opendatacommunities.org/id/metropolitan-district-council/leeds,Leeds City Council,30/04/2017,Environment & Housing,Parks And Countryside ,Transport,Hire Of Movable Plant & Machinery,315,28/03/2017,1704-00474,0.00,7600.00,R,Afi Uplift Ltd,Yes
Http://opendatacommunities.org/id/metropolitan-district-council/leeds,Leeds City Council,30/04/2017,Environment & Housing,Environmental Health,Supplies And Services,Construction,3,21/04/2017,1704-00475,0.00,5000.00,C,Afzal & Co,No
Http://opendatacommunities.org/id/metropolitan-district-council/leeds,Leeds City Council,30/04/2017,Childrens Services,Learning Skills & Universal,Supplies and Services,College Contracts,276,28/04/2017,1704-00476,0.00,9900.00,R,Age Uk Leeds,No
Http://opendatacommunities.org/id/metropolitan-district-council/leeds,Leeds City Council,30/04/2017,Adult Social Care,Services For Older People - 65 And Over,Third Party Payments,Payments To Voluntary Organisations,561,03/04/2017,1704-00477,0.00,8024.75,R,Age Uk Leeds Enterprises,No
Http://opendatacommunities.org/id/metropolitan-district-council/leeds,Leeds City Council,30/04/2017,Childrens Services,Learning Skills & Universal,Supplies and Services,Digital Inclusion - ICT,214,21/04/2017,1704-00478,0.00,374.97,R,Age Uk Leeds Enterprises,No
Http://opendatacommunities.org/id/metropolitan-district-council/leeds,Leeds City Council,30/04/2017,Insurance,Insurance,Supplies and Services,Insurance Claims,248,07/04/2017,1704-00479,0.00,4572.88,R,Ageas Insurance Limited,No
Http://opendatacommunities.org/id/metropolitan-district-council/leeds,Leeds City Council,30/04/2017,City Development,Libraries  Arts & Heritage,Supplies and Services,Bought In Professional Services,277,07/04/2017,1704-00480,0.00,3600.00,R,Agere Learning,No
Http://opendatacommunities.org/id/metropolitan-district-council/leeds,Leeds City Council,30/04/2017,City Development,Libraries  Arts & Heritage,Supplies and Services,Bought In Professional Services,277,19/04/2017,1704-00481,0.00,680.00,R,Agere Learning,No
Http://opendatacommunities.org/id/metropolitan-district-council/leeds,Leeds City Council,30/04/2017,Adult Social Care,Services For Older People Under 65 P/Dis,Third Party Payments,Residential,580,05/04/2017,1704-00482,0.00,5408.28,R,Agricola House,No
Http://opendatacommunities.org/id/metropolitan-district-council/leeds,Leeds City Council,30/04/2017,Childrens Services,Learning Skills & Universal,Supplies and Services,Teaching Materials,202,12/04/2017,1704-00483,0.00,43.44,R,Aid Training & Operations Ltd,No
Http://opendatacommunities.org/id/metropolitan-district-council/leeds,Leeds City Council,30/04/2017,Childrens Services,Learning Skills & Universal,Supplies and Services,Teaching Materials,202,13/04/2017,1704-00484,0.00,40.94,R,Aid Training & Operations Ltd,No
Http://opendatacommunities.org/id/metropolitan-district-council/leeds,Leeds City Council as Accountable Body,30/04/2017,Social Services Pooled Budgets,Leeds Community Equip Store Pooled Budgt,Supplies and Services,Other Equipment,203,05/04/2017,1704-00485,0.00,2250.50,R,Aidapt Bathrooms Ltd,No
Http://opendatacommunities.org/id/metropolitan-district-council/leeds,Leeds City Council as Accountable Body,30/04/2017,Social Services Pooled Budgets,Leeds Community Equip Store Pooled Budgt,Supplies and Services,Other Equipment,203,05/04/2017,1704-00486,0.00,142.40,R,Aidapt Bathrooms Ltd,No
Http://opendatacommunities.org/id/metropolitan-district-council/leeds,Leeds City Council as Accountable Body,30/04/2017,Social Services Pooled Budgets,Leeds Community Equip Store Pooled Budgt,Supplies and Services,Other Equipment,203,07/04/2017,1704-00487,0.00,633.20,R,Aidapt Bathrooms Ltd,No
Http://opendatacommunities.org/id/metropolitan-district-council/leeds,Leeds City Council as Accountable Body,30/04/2017,Social Services Pooled Budgets,Leeds Community Equip Store Pooled Budgt,Supplies and Services,Other Equipment,203,07/04/2017,1704-00488,0.00,279.50,R,Aidapt Bathrooms Ltd,No
Http://opendatacommunities.org/id/metropolitan-district-council/leeds,Leeds City Council,30/04/2017,Adult Social Care,Services For Older People - 65 And Over,Supplies and Services,General Amenity For Clients/Residents,285,07/04/2017,1704-00489,0.00,445.00,R,Aidapt Bathrooms Ltd,No
Http://opendatacommunities.org/id/metropolitan-district-council/leeds,Leeds City Council as Accountable Body,30/04/2017,Social Services Pooled Budgets,Leeds Community Equip Store Pooled Budgt,Supplies and Services,Other Equipment,203,13/04/2017,1704-00490,0.00,1125.00,R,Aidapt Bathrooms Ltd,No
Http://opendatacommunities.org/id/metropolitan-district-council/leeds,Leeds City Council as Accountable Body,30/04/2017,Social Services Pooled Budgets,Leeds Community Equip Store Pooled Budgt,Supplies and Services,Other Equipment,203,13/04/2017,1704-00491,0.00,178.00,R,Aidapt Bathrooms Ltd,No
Http://opendatacommunities.org/id/metropolitan-district-council/leeds,Leeds City Council as Accountable Body,30/04/2017,Social Services Pooled Budgets,Leeds Community Equip Store Pooled Budgt,Supplies and Services,Other Equipment,203,20/04/2017,1704-00492,0.00,1160.00,R,Aidapt Bathrooms Ltd,No
Http://opendatacommunities.org/id/metropolitan-district-council/leeds,Leeds City Council as Accountable Body,30/04/2017,Social Services Pooled Budgets,Leeds Community Equip Store Pooled Budgt,Supplies and Services,Other Equipment,203,26/04/2017,1704-00493,0.00,-54.97,R,Aidapt Bathrooms Ltd,No
Http://opendatacommunities.org/id/metropolitan-district-council/leeds,Leeds City Council as Accountable Body,30/04/2017,Social Services Pooled Budgets,Leeds Community Equip Store Pooled Budgt,Supplies and Services,Other Equipment,203,26/04/2017,1704-00494,0.00,194.64,R,Aidapt Bathrooms Ltd,No
Http://opendatacommunities.org/id/metropolitan-district-council/leeds,Leeds City Council as Accountable Body,30/04/2017,Social Services Pooled Budgets,Jcs For People With Learning Disabilitie,Supplies and Services,Other Equipment,203,28/04/2017,1704-00495,0.00,394.00,R,Aidservice Ltd,No
Http://opendatacommunities.org/id/metropolitan-district-council/leeds,Leeds City Council,30/04/2017,Strategic Accounts,Miscellaneous,Transfer Payments,Land Drainage Levies,665,28/04/2017,1704-00496,0.00,3615.02,R,Ainsty (2008) Internal Drainage Board,No
Http://opendatacommunities.org/id/metropolitan-district-council/leeds,Leeds City Council,30/04/2017,Environment & Housing,Leeds Building Services,Supplies and Services,Operational Materials,205,03/04/2017,1704-00497,0.00,20.81,R,Air Conditioning Accessories,No
Http://opendatacommunities.org/id/metropolitan-district-council/leeds,Leeds City Council,30/04/2017,Environment & Housing,Leeds Building Services,Supplies and Services,Operational Materials,205,07/04/2017,1704-00498,0.00,488.50,R,Air Conditioning Accessories,No
Http://opendatacommunities.org/id/metropolitan-district-council/leeds,Leeds City Council,30/04/2017,Environment & Housing,Leeds Building Services,Supplies and Services,Operational Materials,205,18/04/2017,1704-00499,0.00,109.38,R,Air Conditioning Accessories,No
Http://opendatacommunities.org/id/metropolitan-district-council/leeds,Leeds City Council,30/04/2017,Environment & Housing,Leeds Building Services,Supplies and Services,Operational Materials,205,18/04/2017,1704-00500,0.00,60.00,R,Air Conditioning Accessories,No
Http://opendatacommunities.org/id/metropolitan-district-council/leeds,Leeds City Council,30/04/2017,Environment & Housing,Leeds Building Services,Supplies and Services,Operational Materials,205,18/04/2017,1704-00501,0.00,52.45,R,Air Conditioning Accessories,No
Http://opendatacommunities.org/id/metropolitan-district-council/leeds,Leeds City Council,30/04/2017,Environment & Housing,Leeds Building Services,Supplies and Services,Operational Materials,205,18/04/2017,1704-00502,0.00,79.48,R,Air Conditioning Accessories,No
Http://opendatacommunities.org/id/metropolitan-district-council/leeds,Leeds City Council,30/04/2017,Environment & Housing,Leeds Building Services,Supplies and Services,Operational Materials,205,18/04/2017,1704-00503,0.00,172.86,R,Air Conditioning Accessories,No
Http://opendatacommunities.org/id/metropolitan-district-council/leeds,Leeds City Council,30/04/2017,Environment & Housing,Leeds Building Services,Supplies and Services,Operational Furniture And Equipment,203,18/04/2017,1704-00504,0.00,77.47,R,Air Conditioning Accessories,No
Http://opendatacommunities.org/id/metropolitan-district-council/leeds,Leeds City Council,30/04/2017,Environment & Housing,Leeds Building Services,Supplies and Services,Operational Materials,205,18/04/2017,1704-00505,0.00,20.48,R,Air Conditioning Accessories,No
Http://opendatacommunities.org/id/metropolitan-district-council/leeds,Leeds City Council,30/04/2017,Environment & Housing,Leeds Building Services,Supplies and Services,Operational Materials,205,21/04/2017,1704-00506,0.00,-120.00,R,Air Conditioning Accessories,No
Http://opendatacommunities.org/id/metropolitan-district-council/leeds,Leeds City Council,30/04/2017,Environment & Housing,Leeds Building Services,Supplies and Services,Operational Materials,205,21/04/2017,1704-00507,0.00,88.96,R,Air Conditioning Accessories,No
Http://opendatacommunities.org/id/metropolitan-district-council/leeds,Leeds City Council,30/04/2017,Environment & Housing,Leeds Building Services,Supplies and Services,Operational Materials,205,21/04/2017,1704-00508,0.00,42.34,R,Air Conditioning Accessories,No
Http://opendatacommunities.org/id/metropolitan-district-council/leeds,Leeds City Council,30/04/2017,Environment & Housing,Leeds Building Services,Supplies and Services,Operational Materials,205,25/04/2017,1704-00509,0.00,237.36,R,Air Conditioning Accessories,No
Http://opendatacommunities.org/id/metropolitan-district-council/leeds,Leeds City Council,30/04/2017,Environment & Housing,Leeds Building Services,Supplies and Services,Operational Materials,205,28/04/2017,1704-00510,0.00,22.32,R,Air Conditioning Accessories,No
Http://opendatacommunities.org/id/metropolitan-district-council/leeds,Leeds City Council,30/04/2017,Environment & Housing,Leeds Building Services,Supplies and Services,Operational Materials,205,28/04/2017,1704-00511,0.00,199.51,R,Air Conditioning Accessories,No
Http://opendatacommunities.org/id/metropolitan-district-council/leeds,Leeds City Council,30/04/2017,Civic Enterprise Leeds,Commercial Services ,Supplies and Services,Operational Materials,205,13/03/2017,1704-00512,0.00,179.90,R,Air Force Pneumati,Yes
Http://opendatacommunities.org/id/metropolitan-district-council/leeds,Leeds City Council,30/04/2017,Strategic Landlord,Housing Management,Supplies and Services,Grants To Voluntary Organisations,293,24/04/2017,1704-00513,0.00,170.00,R,Air Line Connections,No
Http://opendatacommunities.org/id/metropolitan-district-council/leeds,Leeds City Council,30/04/2017,Environment & Housing,Leeds Building Services,Supplies and Services,Operational Materials,205,07/04/2017,1704-00514,0.00,45.24,R,Air Liquide Uk,No
Http://opendatacommunities.org/id/metropolitan-district-council/leeds,Leeds City Council,30/04/2017,Environment & Housing,Leeds Building Services,Supplies and Services,Operational Materials,205,07/04/2017,1704-00515,0.00,12.00,R,Air Liquide Uk,No
Http://opendatacommunities.org/id/metropolitan-district-council/leeds,Leeds City Council,30/04/2017,Environment & Housing,Environmental Health,Supplies and Services,Operational Furniture And Equipment,203,12/04/2017,1704-00516,0.00,71.52,R,Air Liquide Uk,No
Http://opendatacommunities.org/id/metropolitan-district-council/leeds,Leeds City Council,30/04/2017,Environment & Housing,Leeds Building Services,Supplies and Services,Operational Materials,205,28/04/2017,1704-00517,0.00,78.48,R,Air Liquide Uk,No
Http://opendatacommunities.org/id/metropolitan-district-council/leeds,Leeds City Council,30/04/2017,Environment & Housing,Leeds Building Services,Supplies and Services,Operational Materials,205,28/04/2017,1704-00518,0.00,12.00,R,Air Liquide Uk,No
Http://opendatacommunities.org/id/metropolitan-district-council/leeds,Leeds City Council,30/04/2017,Environment & Housing,Leeds Building Services,Supplies and Services,Operational Materials,205,28/04/2017,1704-00519,0.00,158.80,R,Air Liquide Uk,No
Http://opendatacommunities.org/id/metropolitan-district-council/leeds,Leeds City Council,30/04/2017,Adult Social Care,Services For Adults Under 65 Mental/Dis,Third Party Payments,Residential,580,05/04/2017,1704-00520,0.00,6028.00,R,Aire House,No
Http://opendatacommunities.org/id/metropolitan-district-council/leeds,Leeds City Council as Accountable Body,30/04/2017,Social Services Pooled Budgets,Jcs For People With Learning Disabilitie,Third Party Payments,Residential,580,05/04/2017,1704-00521,0.00,3059.84,R,Aire House,No
Http://opendatacommunities.org/id/metropolitan-district-council/leeds,Leeds City Council,30/04/2017,Adult Social Care,Services For Older People - 65 And Over,Third Party Payments,Residential Care Dementia,571,05/04/2017,1704-00522,0.00,45467.92,R,Aire View Residential Home,No
Http://opendatacommunities.org/id/metropolitan-district-council/leeds,Leeds City Council,30/04/2017,Adult Social Care,Services For Older People - 65 And Over,Third Party Payments,Residential,580,05/04/2017,1704-00523,0.00,12933.09,R,Aire View Residential Home,No
Http://opendatacommunities.org/id/metropolitan-district-council/leeds,Leeds City Council,30/04/2017,Citizens and Communities,Customer Access,Supplies and Services,Resaleable Materials,204,03/04/2017,1704-00524,0.00,135.00,R,Aireborough Historical Society,No
Http://opendatacommunities.org/id/metropolitan-district-council/leeds,Leeds City Council,30/04/2017,Adult Social Care,Services For Older People - 65 And Over,Third Party Payments,Residential Care Dementia,571,05/04/2017,1704-00525,0.00,6020.96,R,Airedale (Goldsborough),No
Http://opendatacommunities.org/id/metropolitan-district-council/leeds,Leeds City Council,30/04/2017,Adult Social Care,Services For Older People - 65 And Over,Third Party Payments,Residential,580,05/04/2017,1704-00526,0.00,15373.04,R,Airedale (Goldsborough),No
Http://opendatacommunities.org/id/metropolitan-district-council/leeds,Leeds City Council,30/04/2017,Civic Enterprise Leeds,Commercial Services,Supplies and Services,Operational Furniture And Equipment,203,28/04/2017,1704-00527,0.00,-3700.00,R,Airedale Catering Equipment Ltd,No
Http://opendatacommunities.org/id/metropolitan-district-council/leeds,Leeds City Council,30/04/2017,Civic Enterprise Leeds,Commercial Services,Supplies and Services,Operational Furniture And Equipment,203,28/04/2017,1704-00528,0.00,3700.00,R,Airedale Catering Equipment Ltd,No
Http://opendatacommunities.org/id/metropolitan-district-council/leeds,Leeds City Council,30/04/2017,Adult Social Care,Assessment And Care Management,Employees,Training Costs,71,07/04/2017,1704-00529,0.00,120.00,R,Airedale Community Trading (Act) Ltd,No
Http://opendatacommunities.org/id/metropolitan-district-council/leeds,Leeds City Council as Accountable Body,30/04/2017,Social Services Pooled Budgets,Jcs For People With Learning Disabilitie,Third Party Payments,Home Care,568,20/04/2017,1704-00530,0.00,101.53,R,Airedale Nhs Foundation Trust,No
Http://opendatacommunities.org/id/metropolitan-district-council/leeds,Leeds City Council,30/04/2017,Environment & Housing,Environmental Health,Supplies and Services,Other Hired And Contracted Services,265,19/04/2017,1704-00531,0.00,167.02,R,Aireworth Vets,No
Http://opendatacommunities.org/id/metropolitan-district-council/leeds,Leeds City Council,30/04/2017,Environment & Housing,Environmental Health,Supplies and Services,Other Hired And Contracted Services,265,28/04/2017,1704-00532,0.00,179.19,R,Aireworth Vets,No
Http://opendatacommunities.org/id/metropolitan-district-council/leeds,Leeds City Council,30/04/2017,Civic Enterprise Leeds,Commercial Services,Supplies and Services,Other Hired And Contracted Services,265,21/04/2017,1704-00533,0.00,545.00,R,Air-Weigh Europe Limited,No
Http://opendatacommunities.org/id/metropolitan-district-council/leeds,Leeds City Council,30/04/2017,Adult Social Care,Services For Adults Under 65 Mental/Dis,Third Party Payments,Fees - Level 4,520,07/04/2017,1704-00534,0.00,239.50,R,Ait Mitra,No
Http://opendatacommunities.org/id/metropolitan-district-council/leeds,Leeds City Council,30/04/2017,Adult Social Care,Services For Adults Under 65 Mental/Dis,Third Party Payments,Fees - Level 4,520,07/04/2017,1704-00535,0.00,175.00,R,Ait Mitra,No
Http://opendatacommunities.org/id/metropolitan-district-council/leeds,Leeds City Council,30/04/2017,Adult Social Care,Services For Adults Under 65 Mental/Dis,Third Party Payments,Fees - Level 4,520,19/04/2017,1704-00536,0.00,175.00,R,Ait Mitra,No
Http://opendatacommunities.org/id/metropolitan-district-council/leeds,Leeds City Council,30/04/2017,Adult Social Care,Services For Adults Under 65 Mental/Dis,Third Party Payments,Fees - Level 4,520,19/04/2017,1704-00537,0.00,175.00,R,Ait Mitra,No
Http://opendatacommunities.org/id/metropolitan-district-council/leeds,Leeds City Council,30/04/2017,Adult Social Care,Services For Adults Under 65 Mental/Dis,Third Party Payments,Fees - Level 4,520,21/04/2017,1704-00538,0.00,175.00,R,Ait Mitra,No
Http://opendatacommunities.org/id/metropolitan-district-council/leeds,Leeds City Council,30/04/2017,Adult Social Care,Services For Adults Under 65 Mental/Dis,Third Party Payments,Fees - Level 4,520,21/04/2017,1704-00539,0.00,175.00,R,Ait Mitra,No
Http://opendatacommunities.org/id/metropolitan-district-council/leeds,Leeds City Council,30/04/2017,Adult Social Care,Services For Adults Under 65 Mental/Dis,Third Party Payments,Fees - Level 4,520,21/04/2017,1704-00540,0.00,175.00,R,Ait Mitra,No
Http://opendatacommunities.org/id/metropolitan-district-council/leeds,Leeds City Council,30/04/2017,Adult Social Care,Services For Adults Under 65 Mental/Dis,Third Party Payments,Fees - Level 4,520,26/04/2017,1704-00541,0.00,175.00,R,Ait Mitra,No
Http://opendatacommunities.org/id/metropolitan-district-council/leeds,Leeds City Council,30/04/2017,Adult Social Care,Services For Adults Under 65 Mental/Dis,Third Party Payments,Fees - Level 4,520,26/04/2017,1704-00542,0.00,175.00,R,Ait Mitra,No
Http://opendatacommunities.org/id/metropolitan-district-council/leeds,Leeds City Council,30/04/2017,Adult Social Care,Services For Adults Under 65 Mental/Dis,Third Party Payments,Fees - Level 4,520,28/04/2017,1704-00543,0.00,175.00,R,Ait Mitra,No
Http://opendatacommunities.org/id/metropolitan-district-council/leeds,Leeds City Council,30/04/2017,Adult Social Care,Services For Adults Under 65 Mental/Dis,Third Party Payments,Fees - Level 4,520,28/04/2017,1704-00544,0.00,175.00,R,Ait Mitra,No
Http://opendatacommunities.org/id/metropolitan-district-council/leeds,Leeds City Council as Accountable Body,30/04/2017,Social Services Pooled Budgets,Jcs For People With Learning Disabilitie,Third Party Payments,Residential,580,05/04/2017,1704-00545,0.00,6173.24,R,Aitch Care Homes,No
Http://opendatacommunities.org/id/metropolitan-district-council/leeds,Leeds City Council,30/04/2017,Environment & Housing,Parks and Countryside,Supplies and Services,Operational Materials,205,19/04/2017,1704-00546,0.00,363.00,R,Aitkens Sportsturf Ltd,No
Http://opendatacommunities.org/id/metropolitan-district-council/leeds,Leeds City Council,30/04/2017,Environment & Housing,Parks and Countryside,Supplies and Services,Operational Materials,205,28/04/2017,1704-00547,0.00,130.70,R,Aitkens Sportsturf Ltd,No
Http://opendatacommunities.org/id/metropolitan-district-council/leeds,Leeds City Council,30/04/2017,Adult Social Care,Services For Older People - 65 And Over,Third Party Payments,Home Care,568,28/04/2017,1704-00548,0.00,1677.90,R,Aj Social Care,No
Http://opendatacommunities.org/id/metropolitan-district-council/leeds,Leeds City Council,30/04/2017,Adult Social Care,Services For Older People Under 65 P/Dis,Third Party Payments,Home Care,568,28/04/2017,1704-00549,0.00,2684.53,R,Aj Social Care,No
Http://opendatacommunities.org/id/metropolitan-district-council/leeds,Leeds City Council,30/04/2017,Adult Social Care,Services For Older People - 65 And Over,Third Party Payments,Home Care,568,28/04/2017,1704-00550,0.00,8405.07,R,Aj Social Care,No
Http://opendatacommunities.org/id/metropolitan-district-council/leeds,Leeds City Council,30/04/2017,Adult Social Care,Services For Older People Under 65 P/Dis,Third Party Payments,Home Care,568,28/04/2017,1704-00551,0.00,13477.96,R,Aj Social Care,No
Http://opendatacommunities.org/id/metropolitan-district-council/leeds,Leeds City Council,30/04/2017,Environment & Housing,Leeds Building Services,Supplies and Services,Operational Furniture And Equipment,203,13/04/2017,1704-00552,0.00,78.39,R,Ajm Fixings & Power Tools Ltd,No
Http://opendatacommunities.org/id/metropolitan-district-council/leeds,Leeds City Council,30/04/2017,Environment & Housing,Leeds Building Services,Supplies and Services,Operational Furniture And Equipment,203,13/04/2017,1704-00553,0.00,3542.00,R,Ajm Fixings & Power Tools Ltd,No
Http://opendatacommunities.org/id/metropolitan-district-council/leeds,Leeds City Council,30/04/2017,Environment & Housing,Leeds Building Services,Supplies and Services,Stores - Central And Other Depots,5,13/04/2017,1704-00554,0.00,199.50,R,Ajm Fixings & Power Tools Ltd,No
Http://opendatacommunities.org/id/metropolitan-district-council/leeds,Leeds City Council,30/04/2017,Environment & Housing,Leeds Building Services,Supplies and Services,Operational Materials,205,13/04/2017,1704-00555,0.00,33.12,R,Ajm Fixings & Power Tools Ltd,No
Http://opendatacommunities.org/id/metropolitan-district-council/leeds,Leeds City Council,30/04/2017,Environment & Housing,Leeds Building Services,Supplies and Services,Operational Furniture And Equipment,203,13/04/2017,1704-00556,0.00,570.00,R,Ajm Fixings & Power Tools Ltd,No
Http://opendatacommunities.org/id/metropolitan-district-council/leeds,Leeds City Council,30/04/2017,Environment & Housing,Leeds Building Services,Supplies and Services,Operational Furniture And Equipment,203,25/04/2017,1704-00557,0.00,346.92,R,Ajm Fixings & Power Tools Ltd,No
Http://opendatacommunities.org/id/metropolitan-district-council/leeds,Leeds City Council,30/04/2017,Environment & Housing,Leeds Building Services,Supplies and Services,Stores - Central And Other Depots,5,25/04/2017,1704-00558,0.00,942.60,R,Ajm Fixings & Power Tools Ltd,No
Http://opendatacommunities.org/id/metropolitan-district-council/leeds,Leeds City Council,30/04/2017,Environment & Housing,Leeds Building Services,Supplies and Services,Stores - Central And Other Depots,5,28/04/2017,1704-00559,0.00,458.00,R,Ajm Fixings & Power Tools Ltd,No
Http://opendatacommunities.org/id/metropolitan-district-council/leeds,Leeds City Council,30/04/2017,Adult Social Care,Services For Older People - 65 And Over,Third Party Payments,Nursing Home,570,05/04/2017,1704-00560,0.00,1250.96,R,Akari Care Ltd,No
Http://opendatacommunities.org/id/metropolitan-district-council/leeds,Leeds City Council,30/04/2017,Environment & Housing,Leeds Building Services,Supplies and Services,Operational Materials,205,24/04/2017,1704-00561,0.00,52.57,R,Akw Medicare Ltd,No
Http://opendatacommunities.org/id/metropolitan-district-council/leeds,Leeds City Council,30/04/2017,Environment & Housing,Leeds Building Services,Supplies and Services,Operational Materials,205,24/04/2017,1704-00562,0.00,52.57,R,Akw Medicare Ltd,No
Http://opendatacommunities.org/id/metropolitan-district-council/leeds,Leeds City Council,30/04/2017,Environment & Housing,Leeds Building Services,Supplies and Services,Operational Materials,205,24/04/2017,1704-00563,0.00,64.57,R,Akw Medicare Ltd,No
Http://opendatacommunities.org/id/metropolitan-district-council/leeds,Leeds City Council,30/04/2017,City Development,Libraries  Arts & Heritage ,Supplies and Services,Operational Materials,205,24/03/2017,1704-00564,0.00,24.89,R,Akzonobel,Yes
Http://opendatacommunities.org/id/metropolitan-district-council/leeds,Leeds City Council,30/04/2017,Adult Social Care,Services For Older People - 65 And Over,Third Party Payments,Payments To Voluntary Organisations,561,03/04/2017,1704-00565,0.00,3000.00,R,Al Khidmat Centre,No
Http://opendatacommunities.org/id/metropolitan-district-council/leeds,Leeds City Council,30/04/2017,City Development,Libraries  Arts & Heritage,Supplies and Services,Non-Recurring Grants,227,18/04/2017,1704-00566,0.00,1900.00,R,Alchemy Anew,No
Http://opendatacommunities.org/id/metropolitan-district-council/leeds,Leeds City Council,30/04/2017,Environment & Housing,Leeds Building Services,Supplies and Services,Memberships,226,13/04/2017,1704-00567,0.00,4200.00,R,Alcumus Sypol Limited,No
Http://opendatacommunities.org/id/metropolitan-district-council/leeds,Leeds City Council,30/04/2017,Environment & Housing,Parks And Countryside ,Supplies and Services,Food & Drink,231,14/03/2017,1704-00568,0.00,5.11,R,Aldi,Yes
Http://opendatacommunities.org/id/metropolitan-district-council/leeds,Leeds City Council,30/04/2017,Environment & Housing,Parks And Countryside ,Supplies and Services,Food & Drink,231,14/03/2017,1704-00569,0.00,-5.11,R,Aldi,Yes
Http://opendatacommunities.org/id/metropolitan-district-council/leeds,Leeds City Council,30/04/2017,Citizens And Communities,Customer Access ,Supplies and Services,Office Furniture & Equipment,201,15/03/2017,1704-00570,0.00,229.80,R,Aldi,Yes
Http://opendatacommunities.org/id/metropolitan-district-council/leeds,Leeds City Council,30/04/2017,Environment & Housing,Waste Management ,Supplies and Services,Office Consumables,210,15/03/2017,1704-00571,0.00,1.98,R,Aldi,Yes
Http://opendatacommunities.org/id/metropolitan-district-council/leeds,Leeds City Council,30/04/2017,City Development,Recreation ,Supplies and Services,Clothing & Uniforms,241,22/03/2017,1704-00572,0.00,52.43,R,Aldi,Yes
Http://opendatacommunities.org/id/metropolitan-district-council/leeds,Leeds City Council,30/04/2017,Childrens Services,Safeguarding Targeted & Specialist ,Transfer Payments,Leaving Care Grants,635,22/03/2017,1704-00573,0.00,6.65,R,Aldi,Yes
Http://opendatacommunities.org/id/metropolitan-district-council/leeds,Leeds City Council,30/04/2017,Childrens Services,Safeguarding Targeted & Specialist,Support Services,Legal Disbursements,411,07/04/2017,1704-00574,0.00,462.20,R,Alere Toxicology Plc,No
Http://opendatacommunities.org/id/metropolitan-district-council/leeds,Leeds City Council,30/04/2017,Childrens Services,Safeguarding Targeted & Specialist,Support Services,Legal Disbursements,411,13/04/2017,1704-00575,0.00,135.25,R,Alere Toxicology Plc,No
Http://opendatacommunities.org/id/metropolitan-district-council/leeds,Leeds City Council,30/04/2017,Childrens Services,Safeguarding Targeted & Specialist,Support Services,Legal Disbursements,411,21/04/2017,1704-00576,0.00,54.00,R,Alere Toxicology Plc,No
Http://opendatacommunities.org/id/metropolitan-district-council/leeds,Leeds City Council,30/04/2017,Childrens Services,Safeguarding Targeted & Specialist,Support Services,Legal Disbursements,411,21/04/2017,1704-00577,0.00,917.80,R,Alere Toxicology Plc,No
Http://opendatacommunities.org/id/metropolitan-district-council/leeds,Leeds City Council,30/04/2017,City Development,Libraries  Arts & Heritage,Supplies and Services,Other Hired And Contracted Services,265,12/04/2017,1704-00578,0.00,150.00,R,Alex Fisher,No
Http://opendatacommunities.org/id/metropolitan-district-council/leeds,Leeds City Council,30/04/2017,Childrens Services,Learning Skills & Universal,Supplies and Services,Training Allowances,257,07/04/2017,1704-00579,0.00,264.84,R,REDACTED PERSONAL DATA,No
Http://opendatacommunities.org/id/metropolitan-district-council/leeds,Leeds City Council,30/04/2017,Childrens Services,Learning Skills & Universal,Supplies and Services,Training Allowances,257,13/04/2017,1704-00580,0.00,264.84,R,REDACTED PERSONAL DATA,No
Http://opendatacommunities.org/id/metropolitan-district-council/leeds,Leeds City Council,30/04/2017,Childrens Services,Learning Skills & Universal,Supplies and Services,Training Allowances,257,21/04/2017,1704-00581,0.00,264.84,R,REDACTED PERSONAL DATA,No
Http://opendatacommunities.org/id/metropolitan-district-council/leeds,Leeds City Council,30/04/2017,Childrens Services,Learning Skills & Universal,Supplies and Services,Training Allowances,257,28/04/2017,1704-00582,0.00,264.84,R,REDACTED PERSONAL DATA,No
Http://opendatacommunities.org/id/metropolitan-district-council/leeds,Leeds City Council,30/04/2017,Childrens Services,Safeguarding Targeted & Specialist,Support Services,Legal Disbursements,411,03/04/2017,1704-00583,0.00,625.00,R,Alex Taylor,No
Http://opendatacommunities.org/id/metropolitan-district-council/leeds,Leeds City Council,30/04/2017,Childrens Services,Safeguarding Targeted & Specialist,Support Services,Legal Disbursements,411,13/04/2017,1704-00584,0.00,550.00,R,Alex Taylor,No
Http://opendatacommunities.org/id/metropolitan-district-council/leeds,Leeds City Council,30/04/2017,Childrens Services,Safeguarding Targeted & Specialist,Support Services,Legal Disbursements,411,13/04/2017,1704-00585,0.00,442.00,R,Alex Taylor,No
Http://opendatacommunities.org/id/metropolitan-district-council/leeds,Leeds City Council,30/04/2017,Childrens Services,Safeguarding Targeted & Specialist,Support Services,Legal Disbursements,411,25/04/2017,1704-00586,0.00,844.00,R,Alex Taylor,No
Http://opendatacommunities.org/id/metropolitan-district-council/leeds,Leeds City Council,30/04/2017,Childrens Services,Safeguarding Targeted & Specialist,Support Services,Legal Disbursements,411,25/04/2017,1704-00587,0.00,1602.00,R,Alex Taylor,No
Http://opendatacommunities.org/id/metropolitan-district-council/leeds,Leeds City Council,30/04/2017,Civic Enterprise Leeds,Commercial Services,Supplies and Services,Other Hired And Contracted Services,265,13/04/2017,1704-00588,0.00,200.00,R,Alex Wagg,No
Http://opendatacommunities.org/id/metropolitan-district-council/leeds,Leeds City Council,30/04/2017,Civic Enterprise Leeds,Commercial Services,Supplies and Services,Other Hired And Contracted Services,265,13/04/2017,1704-00589,0.00,100.00,R,Alex Wagg,No
Http://opendatacommunities.org/id/metropolitan-district-council/leeds,Leeds City Council,30/04/2017,Adult Social Care,Services For Older People - 65 And Over,Third Party Payments,Residential Care Dementia,571,05/04/2017,1704-00590,0.00,8478.46,R,Alexander Residential Home,No
Http://opendatacommunities.org/id/metropolitan-district-council/leeds,Leeds City Council,30/04/2017,Adult Social Care,Services For Older People - 65 And Over,Third Party Payments,Residential,580,05/04/2017,1704-00591,0.00,17144.20,R,Alexander Residential Home,No
Http://opendatacommunities.org/id/metropolitan-district-council/leeds,Leeds City Council,30/04/2017,Citizens and Communities,Customer Access,Supplies and Services,Other Hired And Contracted Services,265,04/04/2017,1704-00592,0.00,875.40,R,Alexandra Costenco,No
Http://opendatacommunities.org/id/metropolitan-district-council/leeds,Leeds City Council,30/04/2017,Citizens and Communities,Customer Access,Supplies and Services,Other Hired And Contracted Services,265,18/04/2017,1704-00593,0.00,92.95,R,Alexandra Costenco,No
Http://opendatacommunities.org/id/metropolitan-district-council/leeds,Leeds City Council,30/04/2017,Adult Social Care,Services For Older People - 65 And Over,Third Party Payments,Residential Care Dementia,571,05/04/2017,1704-00594,0.00,1501.29,R,Alexandra Court,No
Http://opendatacommunities.org/id/metropolitan-district-council/leeds,Leeds City Council,30/04/2017,Adult Social Care,Services For Older People - 65 And Over,Third Party Payments,Residential,580,05/04/2017,1704-00595,0.00,5090.06,R,Alexandra Court,No
Http://opendatacommunities.org/id/metropolitan-district-council/leeds,Leeds City Council,30/04/2017,Citizens and Communities,Customer Access,Supplies and Services,Other Hired And Contracted Services,265,04/04/2017,1704-00596,0.00,537.25,R,Alexandra Hirst,No
Http://opendatacommunities.org/id/metropolitan-district-council/leeds,Leeds City Council,30/04/2017,Citizens and Communities,Customer Access,Supplies and Services,Other Hired And Contracted Services,265,18/04/2017,1704-00597,0.00,65.75,R,Alexandra Hirst,No
Http://opendatacommunities.org/id/metropolitan-district-council/leeds,Leeds City Council,30/04/2017,Childrens Services,Learning Skills & Universal,Third Party Payments,Services Rendered By Other Organisations,511,21/04/2017,1704-00598,0.00,2363.40,R,Alexandra Leigh,No
Http://opendatacommunities.org/id/metropolitan-district-council/leeds,Leeds City Council,30/04/2017,Citizens and Communities,Customer Access,Supplies and Services,Bought In Professional Services,277,28/04/2017,1704-00599,0.00,93.00,R,Alexia Blohm-Pain,No
Http://opendatacommunities.org/id/metropolitan-district-council/leeds,Leeds City Council,30/04/2017,Environment & Housing,Strategic Housing Support,Supplies and Services,Other Hired And Contracted Services,265,03/04/2017,1704-00600,0.00,650.00,R,Alfa Estates Ltd,No
Http://opendatacommunities.org/id/metropolitan-district-council/leeds,Leeds City Council,30/04/2017,Environment & Housing,Leeds Building Services,Supplies and Services,Other Hired And Contracted Services,265,04/04/2017,1704-00601,0.00,280.00,R,Alfred Bagnall & Sons (Leeds) Ltd,No
Http://opendatacommunities.org/id/metropolitan-district-council/leeds,Leeds City Council,30/04/2017,Citizens and Communities,Customer Access,Supplies and Services,Other Hired And Contracted Services,265,28/04/2017,1704-00602,0.00,4600.00,R,Alfred Bagnall & Sons (Leeds) Ltd,No
Http://opendatacommunities.org/id/metropolitan-district-council/leeds,Leeds City Council,30/04/2017,City Development,Libraries  Arts & Heritage,Supplies and Services,Other Hired And Contracted Services,265,28/04/2017,1704-00603,0.00,5220.00,R,Alfred Bagnall & Sons (Leeds) Ltd,No
Http://opendatacommunities.org/id/metropolitan-district-council/leeds,Leeds City Council,30/04/2017,Civic Enterprise Leeds,Facilities Management,Supplies and Services,Other Hired And Contracted Services,265,28/04/2017,1704-00604,0.00,1395.00,R,Alfred Bagnall & Sons (Leeds) Ltd,No
Http://opendatacommunities.org/id/metropolitan-district-council/leeds,Leeds City Council,30/04/2017,Environment & Housing,Leeds Building Services,Supplies and Services,Other Hired And Contracted Services,265,28/04/2017,1704-00605,0.00,1235.00,R,Alfred Bagnall & Sons (Leeds) Ltd,No
Http://opendatacommunities.org/id/metropolitan-district-council/leeds,Leeds City Council,30/04/2017,City Development,Recreation,Premises,Maintenance Of Buildings,101,28/04/2017,1704-00606,0.00,3290.00,R,Alfred Bagnall & Sons (Leeds) Ltd,No
Http://opendatacommunities.org/id/metropolitan-district-council/leeds,Leeds City Council,30/04/2017,City Development,Libraries  Arts & Heritage,Premises,Painting Interior,193,28/04/2017,1704-00607,0.00,2790.00,R,Alfred Bagnall & Sons (Leeds) Ltd,No
Http://opendatacommunities.org/id/metropolitan-district-council/leeds,Leeds City Council,30/04/2017,Environment & Housing,Leeds Building Services,Supplies and Services,Other Hired And Contracted Services,265,28/04/2017,1704-00608,0.00,-14820.00,R,Alfred Bagnall & Sons (Leeds) Ltd,No
Http://opendatacommunities.org/id/metropolitan-district-council/leeds,Leeds City Council,30/04/2017,Environment & Housing,Leeds Building Services,Supplies and Services,Other Hired And Contracted Services,265,28/04/2017,1704-00609,0.00,887.62,R,Alfred Bagnall & Sons (Leeds) Ltd,No
Http://opendatacommunities.org/id/metropolitan-district-council/leeds,Leeds City Council,30/04/2017,Childrens Services,Safeguarding Targeted & Specialist,Third Party Payments,Section 17,551,26/04/2017,1704-00610,0.00,147.80,R,REDACTED PERSONAL DATA,No
Http://opendatacommunities.org/id/metropolitan-district-council/leeds,Leeds City Council,30/04/2017,Childrens Services,Learning Skills & Universal,Third Party Payments,Services Rendered By Other Organisations,511,28/04/2017,1704-00611,0.00,1310.40,R,Alison Brook,No
Http://opendatacommunities.org/id/metropolitan-district-council/leeds,Leeds City Council,30/04/2017,City Development,Libraries  Arts & Heritage,Supplies and Services,Bought In Professional Services,277,28/04/2017,1704-00612,0.00,2450.00,R,Alison Glew,No
Http://opendatacommunities.org/id/metropolitan-district-council/leeds,Leeds City Council,30/04/2017,City Development,Libraries  Arts & Heritage,Supplies and Services,Bought In Professional Services,277,06/04/2017,1704-00613,0.00,1250.00,R,Alison Mcintyre,No
Http://opendatacommunities.org/id/metropolitan-district-council/leeds,Leeds City Council,30/04/2017,City Development,Libraries  Arts & Heritage,Supplies and Services,Bought In Professional Services,277,21/04/2017,1704-00614,0.00,3400.00,R,Alison Mcintyre,No
Http://opendatacommunities.org/id/metropolitan-district-council/leeds,Leeds City Council,30/04/2017,Adult Social Care,Services For Adults Under 65 Mental/Dis,Third Party Payments,Services Provided By Other NHS Bodies,522,10/04/2017,1704-00615,0.00,170.00,R,Alistair Paul,No
Http://opendatacommunities.org/id/metropolitan-district-council/leeds,Leeds City Council,30/04/2017,Childrens Services,Safeguarding Targeted & Specialist,Transfer Payments,Leaving Care Allowances,634,04/04/2017,1704-00616,0.00,45.00,R,All Abode,No
Http://opendatacommunities.org/id/metropolitan-district-council/leeds,Leeds City Council,30/04/2017,Childrens Services,Safeguarding Targeted & Specialist,Transfer Payments,Leaving Care Grants,635,12/04/2017,1704-00617,0.00,60.00,R,All Abode,No
Http://opendatacommunities.org/id/metropolitan-district-council/leeds,Leeds City Council,30/04/2017,Citizens And Communities,Customer Access ,Supplies and Services,Office Consumables,210,10/03/2017,1704-00618,0.00,27.50,R,All About Ice,Yes
Http://opendatacommunities.org/id/metropolitan-district-council/leeds,Leeds City Council,30/04/2017,Environment & Housing,Leeds Building Services,Supplies and Services,Other Hired And Contracted Services,265,07/04/2017,1704-00619,0.00,195.00,R,All Clear Solutions Ltd,No
Http://opendatacommunities.org/id/metropolitan-district-council/leeds,Leeds City Council,30/04/2017,Environment & Housing,Leeds Building Services,Supplies and Services,Other Hired And Contracted Services,265,20/04/2017,1704-00620,0.00,195.00,R,All Clear Solutions Ltd,No
Http://opendatacommunities.org/id/metropolitan-district-council/leeds,Leeds City Council,30/04/2017,City Development,Libraries  Arts & Heritage,Transport,External Hire -Occasional,304,27/04/2017,1704-00621,0.00,1665.00,R,All Connections Limited,No
Http://opendatacommunities.org/id/metropolitan-district-council/leeds,Leeds City Council,30/04/2017,Childrens Services,Learning Skills & Universal,Third Party Payments,Services Rendered By Other Organisations,511,21/04/2017,1704-00622,0.00,3151.20,R,All Stars Childcare,No
Http://opendatacommunities.org/id/metropolitan-district-council/leeds,Leeds City Council,30/04/2017,Childrens Services,Learning Skills & Universal,Third Party Payments,Services Rendered By Other Organisations,511,28/04/2017,1704-00623,0.00,19656.00,R,All Stars Childcare,No
Http://opendatacommunities.org/id/metropolitan-district-council/leeds,Leeds City Council,30/04/2017,Public Health,Public Health,Supplies and Services,Other Hired And Contracted Services,265,21/04/2017,1704-00624,0.00,130.00,R,All Things Considered Theatre,No
Http://opendatacommunities.org/id/metropolitan-district-council/leeds,Leeds City Council,30/04/2017,Civic Enterprise Leeds,Facilities Management,Supplies and Services,Operational Furniture And Equipment,203,10/04/2017,1704-00625,0.00,225.00,R,Allansound Communications,No
Http://opendatacommunities.org/id/metropolitan-district-council/leeds,Leeds City Council as Accountable Body,30/04/2017,Social Services Pooled Budgets,Jcs For People With Learning Disabilitie,Third Party Payments,Sheltered Accommodation,569,05/04/2017,1704-00626,0.00,16596.04,R,Allerton Avenue,No
Http://opendatacommunities.org/id/metropolitan-district-council/leeds,Leeds City Council,30/04/2017,Strategic Accounts,Strategic,Supplies and Services,Non-Recurring Grants,227,03/04/2017,1704-00627,0.00,2332.00,R,Allerton Bywater Parish Council,No
Http://opendatacommunities.org/id/metropolitan-district-council/leeds,Leeds City Council,30/04/2017,Strategic Accounts,Strategic,Supplies and Services,Office Consumables,210,03/04/2017,1704-00628,0.00,37000.00,R,Allerton Bywater Parish Council,No
Http://opendatacommunities.org/id/metropolitan-district-council/leeds,Leeds City Council,30/04/2017,Strategic Accounts,Miscellaneous,Supplies and Services,Non-Recurring Grants,227,19/04/2017,1704-00629,0.00,300.00,R,Allerton Bywater Parish Council,No
Http://opendatacommunities.org/id/metropolitan-district-council/leeds,Leeds City Council,30/04/2017,Strategic Accounts,Central Control Accounts (Ex Cttee 07),Premises,Payments/Recharges,124,04/04/2017,1704-00630,0.00,-481.71,R,Allerton Bywater Primary School,No
Http://opendatacommunities.org/id/metropolitan-district-council/leeds,Leeds City Council,30/04/2017,Central & Corporate,Finance,Supplies and Services,Bank Charges,263,03/04/2017,1704-00631,0.00,-70.53,R,Alliance & Leicester Commercial Bank,No
Http://opendatacommunities.org/id/metropolitan-district-council/leeds,Leeds City Council,30/04/2017,Strategic Landlord,Housing Management,Supplies and Services,Other Hired And Contracted Services,265,05/04/2017,1704-00632,0.00,251.82,R,Alliance & Leicester Commercial Bank,No
Http://opendatacommunities.org/id/metropolitan-district-council/leeds,Leeds City Council,30/04/2017,Central & Corporate,Finance,Supplies and Services,Bank Charges,263,05/04/2017,1704-00633,0.00,1.52,R,Alliance & Leicester Commercial Bank,No
Http://opendatacommunities.org/id/metropolitan-district-council/leeds,Leeds City Council,30/04/2017,Central & Corporate,Finance,Supplies and Services,Bank Charges,263,05/04/2017,1704-00634,0.00,157.57,R,Alliance & Leicester Commercial Bank,No
Http://opendatacommunities.org/id/metropolitan-district-council/leeds,Leeds City Council,30/04/2017,Central & Corporate,Finance,Supplies and Services,Bank Charges,263,05/04/2017,1704-00635,0.00,1138.91,R,Alliance & Leicester Commercial Bank,No
Http://opendatacommunities.org/id/metropolitan-district-council/leeds,Leeds City Council,30/04/2017,Central & Corporate,Finance,Supplies and Services,Bank Charges,263,05/04/2017,1704-00636,0.00,100.00,R,Alliance & Leicester Commercial Bank,No
Http://opendatacommunities.org/id/metropolitan-district-council/leeds,Leeds City Council,30/04/2017,City Development,Recreation,Supplies and Services,Publication And Promotion,267,13/04/2017,1704-00637,0.00,1400.00,R,Alliance Leisure Service Ltd,No
Http://opendatacommunities.org/id/metropolitan-district-council/leeds,Leeds City Council,30/04/2017,City Development,Recreation,Supplies and Services,Printing,215,13/04/2017,1704-00638,0.00,1081.00,R,Alliance Leisure Service Ltd,No
Http://opendatacommunities.org/id/metropolitan-district-council/leeds,Leeds City Council,30/04/2017,City Development,Recreation,Supplies and Services,Publication And Promotion,267,21/04/2017,1704-00639,0.00,205.00,R,Alliance Leisure Service Ltd,No
Http://opendatacommunities.org/id/metropolitan-district-council/leeds,Leeds City Council,30/04/2017,City Development,Recreation,Supplies and Services,Printing,215,21/04/2017,1704-00640,0.00,816.00,R,Alliance Leisure Service Ltd,No
Http://opendatacommunities.org/id/metropolitan-district-council/leeds,Leeds City Council,30/04/2017,City Development,Recreation,Supplies and Services,Publication And Promotion,267,21/04/2017,1704-00641,0.00,1242.00,R,Alliance Leisure Service Ltd,No
Http://opendatacommunities.org/id/metropolitan-district-council/leeds,Leeds City Council,30/04/2017,City Development,Recreation,Supplies and Services,Publication And Promotion,267,21/04/2017,1704-00642,0.00,380.00,R,Alliance Leisure Service Ltd,No
Http://opendatacommunities.org/id/metropolitan-district-council/leeds,Leeds City Council,30/04/2017,City Development,Recreation,Supplies and Services,Printing,215,21/04/2017,1704-00643,0.00,948.00,R,Alliance Leisure Service Ltd,No
Http://opendatacommunities.org/id/metropolitan-district-council/leeds,Leeds City Council,30/04/2017,City Development,Recreation,Supplies and Services,Printing,215,21/04/2017,1704-00644,0.00,848.00,R,Alliance Leisure Service Ltd,No
Http://opendatacommunities.org/id/metropolitan-district-council/leeds,Leeds City Council,30/04/2017,City Development,Recreation,Supplies and Services,Publication And Promotion,267,28/04/2017,1704-00645,0.00,8600.00,R,Alliance Leisure Service Ltd,No
Http://opendatacommunities.org/id/metropolitan-district-council/leeds,Leeds City Council,30/04/2017,City Development,Recreation,Supplies and Services,Printing,215,28/04/2017,1704-00646,0.00,387.60,R,Alliance Leisure Service Ltd,No
Http://opendatacommunities.org/id/metropolitan-district-council/leeds,Leeds City Council,30/04/2017,City Development,Highways,Supplies and Services,Other Hired And Contracted Services,265,26/04/2017,1704-00647,0.00,623.80,R,Allied Exploration & Geotechnics Ltd,No
Http://opendatacommunities.org/id/metropolitan-district-council/leeds,Leeds City Council,30/04/2017,Childrens Services,Safeguarding Targeted & Specialist,Third Party Payments,Services Rendered By Voluntary Sector,505,06/04/2017,1704-00648,0.00,738.90,R,Allied Healthcare,No
Http://opendatacommunities.org/id/metropolitan-district-council/leeds,Leeds City Council,30/04/2017,Childrens Services,Safeguarding Targeted & Specialist,Third Party Payments,Services Rendered By Voluntary Sector,505,06/04/2017,1704-00649,0.00,738.90,R,Allied Healthcare,No
Http://opendatacommunities.org/id/metropolitan-district-council/leeds,Leeds City Council,30/04/2017,Childrens Services,Safeguarding Targeted & Specialist,Third Party Payments,Services Rendered By Voluntary Sector,505,06/04/2017,1704-00650,0.00,738.90,R,Allied Healthcare,No
Http://opendatacommunities.org/id/metropolitan-district-council/leeds,Leeds City Council,30/04/2017,Childrens Services,Safeguarding Targeted & Specialist,Third Party Payments,Services Rendered By Voluntary Sector,505,06/04/2017,1704-00651,0.00,678.05,R,Allied Healthcare,No
Http://opendatacommunities.org/id/metropolitan-district-council/leeds,Leeds City Council,30/04/2017,Childrens Services,Safeguarding Targeted & Specialist,Third Party Payments,Services Rendered By Voluntary Sector,505,06/04/2017,1704-00652,0.00,488.05,R,Allied Healthcare,No
Http://opendatacommunities.org/id/metropolitan-district-council/leeds,Leeds City Council,30/04/2017,Childrens Services,Safeguarding Targeted & Specialist,Third Party Payments,Services Rendered By Voluntary Sector,505,06/04/2017,1704-00653,0.00,501.70,R,Allied Healthcare,No
Http://opendatacommunities.org/id/metropolitan-district-council/leeds,Leeds City Council,30/04/2017,Childrens Services,Safeguarding Targeted & Specialist,Third Party Payments,Services Rendered By Voluntary Sector,505,06/04/2017,1704-00654,0.00,738.90,R,Allied Healthcare,No
Http://opendatacommunities.org/id/metropolitan-district-council/leeds,Leeds City Council,30/04/2017,Childrens Services,Safeguarding Targeted & Specialist,Third Party Payments,Services Rendered By Voluntary Sector,505,06/04/2017,1704-00655,0.00,250.85,R,Allied Healthcare,No
Http://opendatacommunities.org/id/metropolitan-district-council/leeds,Leeds City Council as Accountable Body,30/04/2017,Social Services Pooled Budgets,Jcs For People With Learning Disabilitie,Third Party Payments,Home Care,568,12/04/2017,1704-00656,0.00,564.75,R,Allied Healthcare,No
Http://opendatacommunities.org/id/metropolitan-district-council/leeds,Leeds City Council,30/04/2017,Adult Social Care,Other Generic Services,Third Party Payments,Home Care,568,13/04/2017,1704-00657,0.00,16103.45,R,Allied Healthcare,No
Http://opendatacommunities.org/id/metropolitan-district-council/leeds,Leeds City Council,30/04/2017,Adult Social Care,Other Generic Services,Third Party Payments,Home Care,568,13/04/2017,1704-00658,0.00,7279.14,R,Allied Healthcare,No
Http://opendatacommunities.org/id/metropolitan-district-council/leeds,Leeds City Council as Accountable Body,30/04/2017,Social Services Pooled Budgets,Jcs For People With Learning Disabilitie,Third Party Payments,Home Care,568,26/04/2017,1704-00659,0.00,15201.60,R,Allied Healthcare,No
Http://opendatacommunities.org/id/metropolitan-district-council/leeds,Leeds City Council as Accountable Body,30/04/2017,Social Services Pooled Budgets,Jcs For People With Learning Disabilitie,Third Party Payments,Home Care,568,26/04/2017,1704-00660,0.00,564.75,R,Allied Healthcare,No
Http://opendatacommunities.org/id/metropolitan-district-council/leeds,Leeds City Council as Accountable Body,30/04/2017,Social Services Pooled Budgets,Jcs For People With Learning Disabilitie,Third Party Payments,Home Care,568,26/04/2017,1704-00661,0.00,1050.56,R,Allied Healthcare,No
Http://opendatacommunities.org/id/metropolitan-district-council/leeds,Leeds City Council as Accountable Body,30/04/2017,Social Services Pooled Budgets,Jcs For People With Learning Disabilitie,Third Party Payments,Home Care,568,26/04/2017,1704-00662,0.00,1034.36,R,Allied Healthcare,No
Http://opendatacommunities.org/id/metropolitan-district-council/leeds,Leeds City Council as Accountable Body,30/04/2017,Social Services Pooled Budgets,Jcs For People With Learning Disabilitie,Third Party Payments,Home Care,568,26/04/2017,1704-00663,0.00,177.92,R,Allied Healthcare,No
Http://opendatacommunities.org/id/metropolitan-district-council/leeds,Leeds City Council as Accountable Body,30/04/2017,Social Services Pooled Budgets,Jcs For People With Learning Disabilitie,Third Party Payments,Home Care,568,26/04/2017,1704-00664,0.00,552.20,R,Allied Healthcare,No
Http://opendatacommunities.org/id/metropolitan-district-council/leeds,Leeds City Council,30/04/2017,Childrens Services,Safeguarding Targeted & Specialist,Third Party Payments,Services Rendered By Voluntary Sector,505,26/04/2017,1704-00665,0.00,684.00,R,Allied Healthcare,No
Http://opendatacommunities.org/id/metropolitan-district-council/leeds,Leeds City Council as Accountable Body,30/04/2017,Social Services Pooled Budgets,Jcs For People With Learning Disabilitie,Third Party Payments,Home Care,568,26/04/2017,1704-00666,0.00,564.75,R,Allied Healthcare,No
Http://opendatacommunities.org/id/metropolitan-district-council/leeds,Leeds City Council as Accountable Body,30/04/2017,Social Services Pooled Budgets,Jcs For People With Learning Disabilitie,Third Party Payments,Home Care,568,26/04/2017,1704-00667,0.00,16434.06,R,Allied Healthcare,No
Http://opendatacommunities.org/id/metropolitan-district-council/leeds,Leeds City Council,30/04/2017,Adult Social Care,Services For Older People - 65 And Over,Third Party Payments,Home Care,568,28/04/2017,1704-00668,0.00,2708.29,R,Allied Healthcare,No
Http://opendatacommunities.org/id/metropolitan-district-council/leeds,Leeds City Council,30/04/2017,Adult Social Care,Services For Older People - 65 And Over,Third Party Payments,Home Care,568,28/04/2017,1704-00669,0.00,0.00,R,Allied Healthcare,No
Http://opendatacommunities.org/id/metropolitan-district-council/leeds,Leeds City Council,30/04/2017,Adult Social Care,Services For Older People - 65 And Over,Third Party Payments,Home Care,568,28/04/2017,1704-00670,0.00,2396.56,R,Allied Healthcare,No
Http://opendatacommunities.org/id/metropolitan-district-council/leeds,Leeds City Council,30/04/2017,Adult Social Care,Services For Older People - 65 And Over,Third Party Payments,Home Care,568,28/04/2017,1704-00671,0.00,0.00,R,Allied Healthcare,No
Http://opendatacommunities.org/id/metropolitan-district-council/leeds,Leeds City Council,30/04/2017,Adult Social Care,Services For Older People Under 65 P/Dis,Third Party Payments,Home Care,568,28/04/2017,1704-00672,0.00,219.02,R,Allied Healthcare,No
Http://opendatacommunities.org/id/metropolitan-district-council/leeds,Leeds City Council,30/04/2017,Adult Social Care,Services For Older People Under 65 P/Dis,Third Party Payments,Home Care,568,28/04/2017,1704-00673,0.00,0.00,R,Allied Healthcare,No
Http://opendatacommunities.org/id/metropolitan-district-council/leeds,Leeds City Council,30/04/2017,Adult Social Care,Services For Older People - 65 And Over,Third Party Payments,Home Care,568,28/04/2017,1704-00674,0.00,6469.37,R,Allied Healthcare,No
Http://opendatacommunities.org/id/metropolitan-district-council/leeds,Leeds City Council,30/04/2017,Adult Social Care,Services For Older People - 65 And Over,Third Party Payments,Home Care,568,28/04/2017,1704-00675,0.00,0.00,R,Allied Healthcare,No
Http://opendatacommunities.org/id/metropolitan-district-council/leeds,Leeds City Council,30/04/2017,Adult Social Care,Services For Older People Under 65 P/Dis,Third Party Payments,Home Care,568,28/04/2017,1704-00676,0.00,2843.38,R,Allied Healthcare,No
Http://opendatacommunities.org/id/metropolitan-district-council/leeds,Leeds City Council,30/04/2017,Adult Social Care,Services For Older People Under 65 P/Dis,Third Party Payments,Home Care,568,28/04/2017,1704-00677,0.00,0.00,R,Allied Healthcare,No
Http://opendatacommunities.org/id/metropolitan-district-council/leeds,Leeds City Council,30/04/2017,Adult Social Care,Services For Older People - 65 And Over,Third Party Payments,Home Care,568,28/04/2017,1704-00678,0.00,12557.89,R,Allied Healthcare,No
Http://opendatacommunities.org/id/metropolitan-district-council/leeds,Leeds City Council,30/04/2017,Adult Social Care,Services For Older People - 65 And Over,Third Party Payments,Home Care,568,28/04/2017,1704-00679,0.00,0.00,R,Allied Healthcare,No
Http://opendatacommunities.org/id/metropolitan-district-council/leeds,Leeds City Council,30/04/2017,Adult Social Care,Services For Older People Under 65 P/Dis,Third Party Payments,Home Care,568,28/04/2017,1704-00680,0.00,1523.86,R,Allied Healthcare,No
Http://opendatacommunities.org/id/metropolitan-district-council/leeds,Leeds City Council,30/04/2017,Adult Social Care,Services For Older People Under 65 P/Dis,Third Party Payments,Home Care,568,28/04/2017,1704-00681,0.00,0.00,R,Allied Healthcare,No
Http://opendatacommunities.org/id/metropolitan-district-council/leeds,Leeds City Council,30/04/2017,Adult Social Care,Services For Older People - 65 And Over,Third Party Payments,Home Care,568,28/04/2017,1704-00682,0.00,13355.33,R,Allied Healthcare,No
Http://opendatacommunities.org/id/metropolitan-district-council/leeds,Leeds City Council,30/04/2017,Adult Social Care,Services For Older People - 65 And Over,Third Party Payments,Home Care,568,28/04/2017,1704-00683,0.00,0.00,R,Allied Healthcare,No
Http://opendatacommunities.org/id/metropolitan-district-council/leeds,Leeds City Council,30/04/2017,Adult Social Care,Services For Older People Under 65 P/Dis,Third Party Payments,Home Care,568,28/04/2017,1704-00684,0.00,11655.96,R,Allied Healthcare,No
Http://opendatacommunities.org/id/metropolitan-district-council/leeds,Leeds City Council,30/04/2017,Adult Social Care,Services For Older People Under 65 P/Dis,Third Party Payments,Home Care,568,28/04/2017,1704-00685,0.00,0.00,R,Allied Healthcare,No
Http://opendatacommunities.org/id/metropolitan-district-council/leeds,Leeds City Council,30/04/2017,Strategic Landlord,Housing Management,Supplies and Services,Other Hired And Contracted Services,265,07/04/2017,1704-00686,0.00,23.64,R,Allpay Limted,No
Http://opendatacommunities.org/id/metropolitan-district-council/leeds,Leeds City Council,30/04/2017,Strategic Landlord,Housing Management,Supplies and Services,Other Hired And Contracted Services,265,07/04/2017,1704-00687,0.00,21.77,R,Allpay Limted,No
Http://opendatacommunities.org/id/metropolitan-district-council/leeds,Leeds City Council,30/04/2017,Strategic Landlord,Housing Management,Supplies and Services,Other Hired And Contracted Services,265,07/04/2017,1704-00688,0.00,469.61,R,Allpay Limted,No
Http://opendatacommunities.org/id/metropolitan-district-council/leeds,Leeds City Council,30/04/2017,Central & Corporate,Democratic Services,Transport,Fuel (Non LCC Supplies),321,07/04/2017,1704-00689,0.00,363.87,R,Allstar Business Solutions Ltd,No
Http://opendatacommunities.org/id/metropolitan-district-council/leeds,Leeds City Council,30/04/2017,Childrens Services,Learning Skills & Universal,Transport,Fuel (Non LCC Supplies),321,07/04/2017,1704-00690,0.00,1881.96,R,Allstar Business Solutions Ltd,No
Http://opendatacommunities.org/id/metropolitan-district-council/leeds,Leeds City Council,30/04/2017,Environment & Housing,Parks and Countryside,Transport,Fuel (Non LCC Supplies),321,07/04/2017,1704-00691,0.00,86.28,R,Allstar Business Solutions Ltd,No
Http://opendatacommunities.org/id/metropolitan-district-council/leeds,Leeds City Council,30/04/2017,City Development,Highways,Transport,Fuel (Non LCC Supplies),321,07/04/2017,1704-00692,0.00,460.66,R,Allstar Business Solutions Ltd,No
Http://opendatacommunities.org/id/metropolitan-district-council/leeds,Leeds City Council,30/04/2017,Environment & Housing,Waste Management,Transport,Fuel (Non LCC Supplies),321,07/04/2017,1704-00693,0.00,2.70,R,Allstar Business Solutions Ltd,No
Http://opendatacommunities.org/id/metropolitan-district-council/leeds,Leeds City Council,30/04/2017,Environment & Housing,Strategic Housing Support,Supplies and Services,Other Hired And Contracted Services,265,05/04/2017,1704-00694,0.00,524.98,R,Alpesh Patel,No
Http://opendatacommunities.org/id/metropolitan-district-council/leeds,Leeds City Council,30/04/2017,Environment & Housing,SP Contracts & SECC,Third Party Payments,Supporting Ppl - Block Gross Chargeable,514,13/04/2017,1704-00695,0.00,29.44,R,Alpha (Rsl) Limited,No
Http://opendatacommunities.org/id/metropolitan-district-council/leeds,Leeds City Council,30/04/2017,City Development,Recreation,Supplies and Services,Other Hired And Contracted Services,265,13/04/2017,1704-00696,0.00,636.99,R,Alpha Awards Ltd,No
Http://opendatacommunities.org/id/metropolitan-district-council/leeds,Leeds City Council,30/04/2017,City Development,Recreation,Supplies and Services,Other Hired And Contracted Services,265,13/04/2017,1704-00697,0.00,176.40,R,Alpha Awards Ltd,No
Http://opendatacommunities.org/id/metropolitan-district-council/leeds,Leeds City Council,30/04/2017,City Development,Recreation,Supplies and Services,Other Hired And Contracted Services,265,13/04/2017,1704-00698,0.00,25.80,R,Alpha Awards Ltd,No
Http://opendatacommunities.org/id/metropolitan-district-council/leeds,Leeds City Council,30/04/2017,Civic Enterprise Leeds,Shared Services,Supplies and Services,Other Hired And Contracted Services,265,20/04/2017,1704-00699,0.00,1334.00,R,Alpha Card Compact Media Ltd,No
Http://opendatacommunities.org/id/metropolitan-district-council/leeds,Leeds City Council,30/04/2017,Childrens Services,Safeguarding Targeted & Specialist,Support Services,Legal Disbursements,411,03/04/2017,1704-00700,0.00,390.00,R,Alphabiolabs,No
Http://opendatacommunities.org/id/metropolitan-district-council/leeds,Leeds City Council,30/04/2017,Childrens Services,Safeguarding Targeted & Specialist,Support Services,Legal Disbursements,411,06/04/2017,1704-00701,0.00,390.00,R,Alphabiolabs,No
Http://opendatacommunities.org/id/metropolitan-district-council/leeds,Leeds City Council,30/04/2017,Childrens Services,Safeguarding Targeted & Specialist,Support Services,Legal Disbursements,411,07/04/2017,1704-00702,0.00,630.00,R,Alphabiolabs,No
Http://opendatacommunities.org/id/metropolitan-district-council/leeds,Leeds City Council,30/04/2017,Childrens Services,Safeguarding Targeted & Specialist,Support Services,Legal Disbursements,411,13/04/2017,1704-00703,0.00,130.01,R,Alphabiolabs,No
Http://opendatacommunities.org/id/metropolitan-district-council/leeds,Leeds City Council,30/04/2017,Childrens Services,Safeguarding Targeted & Specialist,Support Services,Legal Disbursements,411,13/04/2017,1704-00704,0.00,136.00,R,Alphabiolabs,No
Http://opendatacommunities.org/id/metropolitan-district-council/leeds,Leeds City Council,30/04/2017,Childrens Services,Safeguarding Targeted & Specialist,Support Services,Legal Disbursements,411,20/04/2017,1704-00705,0.00,145.00,R,Alphabiolabs,No
Http://opendatacommunities.org/id/metropolitan-district-council/leeds,Leeds City Council,30/04/2017,Childrens Services,Safeguarding Targeted & Specialist,Support Services,Legal Disbursements,411,20/04/2017,1704-00706,0.00,390.00,R,Alphabiolabs,No
Http://opendatacommunities.org/id/metropolitan-district-council/leeds,Leeds City Council,30/04/2017,Childrens Services,Safeguarding Targeted & Specialist,Support Services,Legal Disbursements,411,21/04/2017,1704-00707,0.00,105.00,R,Alphabiolabs,No
Http://opendatacommunities.org/id/metropolitan-district-council/leeds,Leeds City Council,30/04/2017,Childrens Services,Safeguarding Targeted & Specialist,Third Party Payments,Section 17,551,27/04/2017,1704-00708,0.00,260.00,R,Alphabiolabs,No
Http://opendatacommunities.org/id/metropolitan-district-council/leeds,Leeds City Council,30/04/2017,Childrens Services,Safeguarding Targeted & Specialist,Support Services,Legal Disbursements,411,27/04/2017,1704-00709,0.00,95.00,R,Alphabiolabs,No
Http://opendatacommunities.org/id/metropolitan-district-council/leeds,Leeds City Council,30/04/2017,Childrens Services,Safeguarding Targeted & Specialist,Third Party Payments,Section 17,551,28/04/2017,1704-00710,0.00,255.00,R,Alphabiolabs,No
Http://opendatacommunities.org/id/metropolitan-district-council/leeds,Leeds City Council,30/04/2017,Childrens Services,Safeguarding Targeted & Specialist,Support Services,Legal Disbursements,411,28/04/2017,1704-00711,0.00,170.00,R,Alphabiolabs,No
Http://opendatacommunities.org/id/metropolitan-district-council/leeds,Leeds City Council,30/04/2017,Environment & Housing,Waste Management,Supplies and Services,Other Hired And Contracted Services,265,05/04/2017,1704-00712,0.00,360.00,R,Als Life Sciences Limited,No
Http://opendatacommunities.org/id/metropolitan-district-council/leeds,Leeds City Council,30/04/2017,Environment & Housing,Environmental Health,Supplies and Services,Other Hired And Contracted Services,265,07/04/2017,1704-00713,0.00,179.41,R,Als Life Sciences Limited,No
Http://opendatacommunities.org/id/metropolitan-district-council/leeds,Leeds City Council,30/04/2017,Environment & Housing,Waste Management,Supplies and Services,Other Hired And Contracted Services,265,20/04/2017,1704-00714,0.00,219.00,R,Als Life Sciences Limited,No
Http://opendatacommunities.org/id/metropolitan-district-council/leeds,Leeds City Council,30/04/2017,Strategic Accounts,Strategic,Supplies and Services,Non-Recurring Grants,227,03/04/2017,1704-00715,0.00,902.00,R,Alwoodley Parish Council,No
Http://opendatacommunities.org/id/metropolitan-district-council/leeds,Leeds City Council,30/04/2017,Strategic Accounts,Strategic,Supplies and Services,Office Consumables,210,03/04/2017,1704-00716,0.00,43835.00,R,Alwoodley Parish Council,No
Http://opendatacommunities.org/id/metropolitan-district-council/leeds,Leeds City Council,30/04/2017,Childrens Services,Learning Skills & Universal,Third Party Payments,Services Rendered By Other Organisations,511,21/04/2017,1704-00717,0.00,787.80,R,REDACTED PERSONAL DATA,No
Http://opendatacommunities.org/id/metropolitan-district-council/leeds,Leeds City Council,30/04/2017,Childrens Services,Learning Skills & Universal,Third Party Payments,Services Rendered By Other Organisations,511,28/04/2017,1704-00718,0.00,131.04,R,REDACTED PERSONAL DATA,No
Http://opendatacommunities.org/id/metropolitan-district-council/leeds,Leeds City Council,30/04/2017,Citizens and Communities,Customer Access,Supplies and Services,Other Hired And Contracted Services,265,06/04/2017,1704-00719,0.00,1012.04,R,Amanda Kershaw,No
Http://opendatacommunities.org/id/metropolitan-district-council/leeds,Leeds City Council,30/04/2017,Environment & Housing,Streetscene Environmental Services,Income,Penalties  Fines & Car Parking Charges,934,27/04/2017,1704-00720,0.00,1.20,R,REDACTED PERSONAL DATA,No
Http://opendatacommunities.org/id/metropolitan-district-council/leeds,Leeds City Council,30/04/2017,Childrens Services,Learning Skills & Universal,Third Party Payments,Services Rendered By Other Organisations,511,21/04/2017,1704-00721,0.00,1575.60,R,Amanda Wharton,No
Http://opendatacommunities.org/id/metropolitan-district-council/leeds,Leeds City Council,30/04/2017,Childrens Services,Learning Skills & Universal,Third Party Payments,Services Rendered By Other Organisations,511,28/04/2017,1704-00722,0.00,1310.40,R,Amanda Wharton,No
Http://opendatacommunities.org/id/metropolitan-district-council/leeds,Leeds City Council,30/04/2017,Civic Enterprise Leeds,Shared Services,Supplies and Services,Operational Materials,205,07/04/2017,1704-00723,0.00,530.40,R,Amari Plastics Plc,No
Http://opendatacommunities.org/id/metropolitan-district-council/leeds,Leeds City Council,30/04/2017,Civic Enterprise Leeds,Shared Services,Supplies and Services,Operational Materials,205,07/04/2017,1704-00724,0.00,200.00,R,Amari Plastics Plc,No
Http://opendatacommunities.org/id/metropolitan-district-council/leeds,Leeds City Council,30/04/2017,Civic Enterprise Leeds,Shared Services,Supplies and Services,Operational Materials,205,07/04/2017,1704-00725,0.00,51.00,R,Amari Plastics Plc,No
Http://opendatacommunities.org/id/metropolitan-district-council/leeds,Leeds City Council,30/04/2017,Childrens Services,Learning Skills & Universal,Third Party Payments,Services Rendered By Other Organisations,511,21/04/2017,1704-00726,0.00,13392.60,R,Amazing Grace Early Years Childcare,No
Http://opendatacommunities.org/id/metropolitan-district-council/leeds,Leeds City Council,30/04/2017,Childrens Services,Learning Skills & Universal,Third Party Payments,Services Rendered By Other Organisations,511,28/04/2017,1704-00727,0.00,11793.60,R,Amazing Grace Early Years Childcare,No
Http://opendatacommunities.org/id/metropolitan-district-council/leeds,Leeds City Council,30/04/2017,City Development,Recreation,Supplies and Services,Operational Furniture And Equipment,203,06/04/2017,1704-00728,0.00,308.28,R,Amazon Leisure Uk Ltd,No
Http://opendatacommunities.org/id/metropolitan-district-council/leeds,Leeds City Council,30/04/2017,City Development,Recreation,Supplies and Services,Operational Furniture And Equipment,203,06/04/2017,1704-00729,0.00,105.00,R,Amazon Leisure Uk Ltd,No
Http://opendatacommunities.org/id/metropolitan-district-council/leeds,Leeds City Council,30/04/2017,City Development,Recreation,Supplies and Services,Operational Furniture And Equipment,203,13/04/2017,1704-00730,0.00,361.29,R,Amazon Leisure Uk Ltd,No
Http://opendatacommunities.org/id/metropolitan-district-council/leeds,Leeds City Council,30/04/2017,City Development,Recreation,Supplies and Services,Operational Furniture And Equipment,203,27/04/2017,1704-00731,0.00,449.24,R,Amazon Leisure Uk Ltd,No
Http://opendatacommunities.org/id/metropolitan-district-council/leeds,Leeds City Council,30/04/2017,City Development,Recreation,Supplies and Services,Operational Furniture And Equipment,203,27/04/2017,1704-00732,0.00,-239.82,R,Amazon Leisure Uk Ltd,No
Http://opendatacommunities.org/id/metropolitan-district-council/leeds,Leeds City Council,30/04/2017,City Development,Recreation,Supplies and Services,Operational Furniture And Equipment,203,28/04/2017,1704-00733,0.00,163.51,R,Amazon Leisure Uk Ltd,No
Http://opendatacommunities.org/id/metropolitan-district-council/leeds,Leeds City Council,30/04/2017,City Development,Recreation,Supplies and Services,Operational Furniture And Equipment,203,28/04/2017,1704-00734,0.00,386.57,R,Amazon Leisure Uk Ltd,No
Http://opendatacommunities.org/id/metropolitan-district-council/leeds,Leeds City Council,30/04/2017,Strategic Landlord,Housing Management ,Supplies and Services,Operational Furniture And Equipment,203,01/03/2017,1704-00735,0.00,6.66,R,Amazon Prime,Yes
Http://opendatacommunities.org/id/metropolitan-district-council/leeds,Leeds City Council,30/04/2017,Childrens Services,Learning Skills & Universal ,Supplies and Services,Teaching Furniture & Equipment,207,02/03/2017,1704-00736,0.00,7.99,R,Amazon Prime,Yes
Http://opendatacommunities.org/id/metropolitan-district-council/leeds,Leeds City Council,30/04/2017,Strategic Landlord,Housing Management ,Supplies and Services,Operational Furniture And Equipment,203,03/03/2017,1704-00737,0.00,-7.99,R,Amazon Prime,Yes
Http://opendatacommunities.org/id/metropolitan-district-council/leeds,Leeds City Council,30/04/2017,City Development,Libraries  Arts & Heritage ,Supplies and Services,Operational Materials,205,27/03/2017,1704-00738,0.00,7.99,R,Amazon Prime,Yes
Http://opendatacommunities.org/id/metropolitan-district-council/leeds,Leeds City Council,30/04/2017,Citizens And Communities,Customer Access ,Supplies and Services,Teaching Materials,202,01/03/2017,1704-00739,0.00,21.76,R,Amazon Svcs Europe sar,Yes
Http://opendatacommunities.org/id/metropolitan-district-council/leeds,Leeds City Council,30/04/2017,City Development,Libraries  Arts & Heritage ,Supplies and Services,Operational Materials,205,09/03/2017,1704-00740,0.00,2.81,R,Amazon Svcs Europe sar,Yes
Http://opendatacommunities.org/id/metropolitan-district-council/leeds,Leeds City Council,30/04/2017,Central & Corporate,Strategy And Improvement ,Supplies and Services,Operational Furniture And Equipment,203,09/03/2017,1704-00741,0.00,2114.90,R,Amazon Svcs Europe sar,Yes
Http://opendatacommunities.org/id/metropolitan-district-council/leeds,Leeds City Council,30/04/2017,Childrens Services,Learning Skills & Universal ,Supplies and Services,Teaching Materials,202,28/02/2017,1704-00742,0.00,42.39,R,Amazon UK Marketplace,Yes
Http://opendatacommunities.org/id/metropolitan-district-council/leeds,Leeds City Council,30/04/2017,Childrens Services,Learning Skills & Universal ,Supplies and Services,Teaching Materials,202,28/02/2017,1704-00743,0.00,12.97,R,Amazon UK Marketplace,Yes
Http://opendatacommunities.org/id/metropolitan-district-council/leeds,Leeds City Council,30/04/2017,Childrens Services,Learning Skills & Universal ,Supplies and Services,Teaching Materials,202,28/02/2017,1704-00744,0.00,30.85,R,Amazon UK Marketplace,Yes
Http://opendatacommunities.org/id/metropolitan-district-council/leeds,Leeds City Council,30/04/2017,Citizens And Communities,Benefits  Wlefare And Poverty ,Supplies and Services,Office Furniture & Equipment,201,28/02/2017,1704-00745,0.00,5.93,R,Amazon UK Marketplace,Yes
Http://opendatacommunities.org/id/metropolitan-district-council/leeds,Leeds City Council,30/04/2017,Childrens Services,Learning Skills & Universal ,Supplies and Services,Teaching Materials,202,28/02/2017,1704-00746,0.00,55.88,R,Amazon UK Marketplace,Yes
Http://opendatacommunities.org/id/metropolitan-district-council/leeds,Leeds City Council,30/04/2017,City Development,Libraries  Arts & Heritage ,Supplies and Services,Books & Audio-Visual Materials,206,28/02/2017,1704-00747,0.00,82.61,R,Amazon UK Marketplace,Yes
Http://opendatacommunities.org/id/metropolitan-district-council/leeds,Leeds City Council,30/04/2017,City Development,Libraries  Arts & Heritage ,Supplies and Services,Books & Audio-Visual Materials,206,28/02/2017,1704-00748,0.00,2.63,R,Amazon UK Marketplace,Yes
Http://opendatacommunities.org/id/metropolitan-district-council/leeds,Leeds City Council,30/04/2017,City Development,Libraries  Arts & Heritage ,Supplies and Services,Books & Audio-Visual Materials,206,28/02/2017,1704-00749,0.00,82.08,R,Amazon UK Marketplace,Yes
Http://opendatacommunities.org/id/metropolitan-district-council/leeds,Leeds City Council,30/04/2017,Childrens Services,Learning Skills & Universal ,Supplies and Services,Operational Furniture And Equipment,203,28/02/2017,1704-00750,0.00,26.49,R,Amazon UK Marketplace,Yes
Http://opendatacommunities.org/id/metropolitan-district-council/leeds,Leeds City Council,30/04/2017,Childrens Services,Learning Skills & Universal ,Supplies and Services,Teaching Materials,202,28/02/2017,1704-00751,0.00,13.99,R,Amazon UK Marketplace,Yes
Http://opendatacommunities.org/id/metropolitan-district-council/leeds,Leeds City Council,30/04/2017,Environment & Housing,Environmental Health ,Supplies and Services,Office Consumables,210,01/03/2017,1704-00752,0.00,6.79,R,Amazon UK Marketplace,Yes
Http://opendatacommunities.org/id/metropolitan-district-council/leeds,Leeds City Council,30/04/2017,Childrens Services,Learning Skills & Universal ,Supplies and Services,Teaching Materials,202,01/03/2017,1704-00753,0.00,11.99,R,Amazon UK Marketplace,Yes
Http://opendatacommunities.org/id/metropolitan-district-council/leeds,Leeds City Council,30/04/2017,Environment & Housing,Environmental Health ,Supplies and Services,Operational Furniture And Equipment,203,01/03/2017,1704-00754,0.00,27.90,R,Amazon UK Marketplace,Yes
Http://opendatacommunities.org/id/metropolitan-district-council/leeds,Leeds City Council,30/04/2017,Environment & Housing,Leeds Building Services ,Supplies and Services,Computer Software & Equipment,214,01/03/2017,1704-00755,0.00,68.79,R,Amazon UK Marketplace,Yes
Http://opendatacommunities.org/id/metropolitan-district-council/leeds,Leeds City Council,30/04/2017,City Development,Libraries  Arts & Heritage ,Supplies and Services,Operational Materials,205,01/03/2017,1704-00756,0.00,7.98,R,Amazon UK Marketplace,Yes
